Workbook

Sheet Indice Anexo estadístico 2025
B1: NÚMERO | C1: TÍTULO TABLAS Y GRÁFICAS | D1: PÁGINA
B2: Eje 1: Formación de Calidad para la Vida
B3: Tabla 1 | C3: Matrícula de estudiantes por programa educativo y sexo, 2025
B4: Tabla 2 | C4: Programas educativos de pregrado con acreditación nacional e internacional, 2025
B5: Tabla 3 | C5: Programas educativos de posgrados con reconocimiento en el SNP, 2025
B6: Tabla 4 | C6: Estudiantes registrados en la base del Programa Institucional Plataforma de Inclusión y Equidad que presentan alguna discapacidad, 2025
B7: Tabla 5 | C7: Estudiantes registrados en la base del Programa Institucional Plataforma de Inclusión y Equidad, 2025
B8: Tabla 6 | C8: Estudiantes con alguna discapacidad por nivel educativo, 2019-2025
B9: Tabla 7 | C9: Atención a la demanda, 2025
B10: Tabla 8 | C10: Estudiantes inscritos y aprobados al curso Matemáticas Cero, 2021-2025
B11: Tabla 9 | C11: Titulación a nivel pregrado por programa educativo, 2025
B12: Tabla 10 | C12: Titulación a nivel posgrado por sexo, 2025
B13: Tabla 11 | C13: Estudiantes beneficiarios por becas, apoyos y programas por sexo, 2025
B14: Tabla 12 | C14: Estudiantes de posgrado becados por el SECIHTI, 2019-2025
B15: Tabla 13 | C15: Estudiantes en tutoría, 2025
B16: Tabla 14 | C16: Programas educativos con Reconocimiento de Validez Oficial de Estudios, 2025
B17: Tabla 15 | C17: Matrícula por programa educativo de IREVOE, 2019-2025
B18: Tabla 16 | C18: Egreso por programa educativo de IREVOE, 2019-2025
B19: Tabla 17 | C19: Participación de Profesorado por sexo en cursos de actualización docente, 2025
B20: Tabla 18 | C20: Profesorado con perfil PRODEP por departamento y sexo, 2025
B21: Tabla 19 | C21: Profesorado beneficiados del PROESDE, 2025
B22: Tabla 20 | C22: Profesorado beneficiados del PROESDE por Nivel, 2025
B23: Tabla 21 | C23: Estudiantes de movilidad entrante por nivel educativo, continente y país de origen, 2025
B24: Tabla 22 | C24: Estudiantes de movilidad saliente por nivel educativo, continente y país de destino, 2025
B25: Tabla 23 | C25: Matrícula de estudiantes que presentaron movilidad académica (entrante), 2025
B26: Tabla 24 | C26: Matrícula de estudiantes que presentaron movilidad académica (Saliente), 2025
B27: Tabla 25 | C27: Talleres Abiertos (sin valor curricular) ofrecidos por el PALE, 2025
B28: Tabla 26 | C28: Talleres de idiomas realizados en el PALE (con valor curricular), 2025
B29: Tabla 27 | C29: Talleres de formación integral, 2025
B30: Gráfica 1 | C30: Egreso por programa educativo y sexo, 2025
B31: Tabla 28 | C31: Egreso de licenciatura por sexo, 2019-2025
B32: Tabla 29 | C32: Resultados de la aplicación de EGEL, 2025
B33: Tabla 30 | C33: Nivel de Rendimiento Académico en el EGEL, 2025
B34: Tabla 31 | C34: Educación continua por áreas temáticas, modalidad, participantes y sexo, 2025
B35: Eje 2: Generar conocimiento
B36: Tabla 32 | C36: Empresas atendidas por el Hospital PyME, 2025
B37: Tabla 33 | C37: Empresas atendidas en el Hospital PyME por giro, 2025
B38: Tabla 34 | C38: Resultados de la convocatoria 2025 del Sistema Nacional de Investigadoras e Investigadores (SNII)
B39: Tabla 35 | C39: Profesorado de tiempo completo miembros del Sistema Nacional de Investigadoras e Investigadores (SNII), 2019-2025
B40: Tabla 36 | C40: Cuerpos Académicos por grado de consolidación, 2019-2025
B41: Tabla 37 | C41: Composición de los Cuerpos Académicos en Formación (CAEF), 2025
B42: Tabla 38 | C42: Composición de Cuerpos Académicos en Consolidación (CAEC), 2025
B43: Tabla 39 | C43: Composición de los Cuerpos Académicos Consolidados (CAC), 2025
B44: Tabla 40 | C44: Líneas de Generación y Aplicación del Conocimiento (LGAC) de los Cuerpos Académicos en Formación (CAEF), 2025
B45: Tabla 41 | C45: Líneas de Generación y Aplicación del Conocimiento (LGAC) de los Cuerpos Académicos en Consolidación (CAEC), 2025
B46: Tabla 42 | C46: Líneas de Generación y Aplicación del Conocimiento (LGAC) de los Cuerpos Académicos Consolidados (CAC), 2025
B47: Tabla 43 | C47: Redes de investigación nacionales e internacionales, 2025
B48: Tabla 44 | C48: Redes de Investigación nacionales e internacionales registradas en PRODEP, 2025
B49: Tabla 45 | C49: Proyectos de Investigación por tipo, 2019-2025
B50: Tabla 46 | C50: Proyectos de investigación con la colaboración de estudiantes, 2025
B51: Tabla 47 | C51: Recursos aprobados por Programas de apoyo a la investigación, 2025
B52: Tabla 48 | C52: Estudiantes que participan en programas para la formación como investigadores, 2025
B53: Tabla 49 | C53: Proyectos de investigación con becario PROSNII por departamento, 2025
B54: Tabla 50 | C54: Estudiantes participantes como becarios PROSNII por carrera, 2025
B55: Tabla 51 | C55: Estudiantes de licenciatura participantes en el Programa Delfín (Salientes), 2025
B56: Tabla 52 | C56: Estudiantes nacionales y extranjeros entrantes en el programa Delfín, 2025
B57: Tabla 53 | C57: Estudiantes que participan en olimpiadas y concursos científicos nacionales e internacionales, 2025
B58: Tabla 54 | C58: Logros obtenidos por estudiantes en las olimpiadas nacionales e internacionales de la ciencia, por División, 2025
B59: Tabla 55 | C59: Producción Científica, 2019 - 2025
B60: Tabla 56 | C60: Publicaciones científicas y patentes por tipo, departamentos y posgrado, 2025
B61: Tabla 57 | C61: Libros publicados con recursos de CUCEA, 2025
B62: Tabla 58 | C62: Publicaciones apoyadas por el Programa de Revistas Científicas, 2025
B63: Tabla 59 | C63: Cátedras impartidas, 2025
B64: Eje 3: De la Mano con la Sociedad
B65: Tabla 60 | C65: Prestadores de servicio social por programa educativo y sector, 2025
B66: Tabla 61 | C66: Convenios de vinculación para servicio social vigentes, 2025
B67: Tabla 62 | C67: Personas beneficiarias por los servicios brindados por sexo y área de servicio, 2025
B68: Tabla 63 | C68: Personas con alguna discapacidad beneficiarias de los servicios brindados por sexo y área de servicio, 2025
B69: Tabla 64 | C69: Acervo impreso del Centro de Recursos Informativos, 2019-2025
B70: Tabla 65 | C70: Revistas impresas y electrónicas del Centro de Recursos Informativos, 2019-2025
B71: Tabla 66 | C71: Servicios bibliotecarios del Centro de Recursos Informativos, 2019-2025
B72: Tabla 67 | C72: Infraestructura, 2025
B73: Tabla 68 | C73: Obras realizadas, 2025
B74: Tabla 69 | C74: Estudiantes que realizan prácticas profesionales por modalidad y programa educativo, 2025
B75: Tabla 70 | C75: Convenios de Prácticas Profesionales por sector, 2025
B76: Tabla 71 | C76: Convenios vigentes por sector, 2025
B77: Tabla 72 | C77: Convenios con el sector social, público y privado, 2019-2025
B78: Tabla 73 | C78: Convenios de colaboración firmados con los sectores públicos y privados, 2025
B79: Tabla 74 | C79: Resultados del proyecto Energía 4.0, 2025
B80: Tabla 75 | C80: Energía limpia generada, 2025
B81: Tabla 76 | C81: Actividades y sus participantes que contribuyen al desarrollo sostenible, 2025
B82: Eje 4: Cultura que nos une
B83: Tabla 77 | C83: Atenciones de salud brindadas a la comunidad, 2025
B84: Tabla 78 | C84: Servicios médicos ofrecidos, 2025
B85: Tabla 79 | C85: Atención psicológica a estudiantes vulnerables, 2025
B86: Tabla 80 | C86: Participantes en actividades de formación que contribuyen a la Cultura de Paz, 2025
B87: Tabla 81 | C87: Participantes en cursos afines a la temática de derechos humanos por licenciatura y sexo, 2025
B88: Tabla 82 | C88: Exhibiciones de arte y cultura, 2025
B89: Tabla 83 | C89: Participantes / Intérpretes y asistentes a presentaciones de eventos culturales, 2025
B90: Eje 5: Gestión que construye
B91: Tabla 84 | C91: Sesiones y dictámenes aprobados en el H. Consejo de Centro, 2025
B92: Tabla 85 | C92: Dictámenes aprobados por comisión y sesión del H. Consejo de Centro, 2025
B93: Tabla 86 | C93: Dictámenes aprobados por comisión de origen y CUCEA, 2025
B94: Tabla 87 | C94: Sesiones de la Junta divisional por modalidad, 2025
B95: Tabla 88 | C95: Sesiones y acuerdos de los colegios departamentales, 2025
B96: Tabla 89 | C96: Sesiones y acuerdos de los Consejo Divisional, 2025
B97: Tabla 90 | C97: Personal académico por tipo de nombramiento y departamento, 2025
B98: Tabla 91 | C98: Profesorado de tiempo completo por función, 2019-2025
B99: Tabla 92 | C99: Personal académico por Nivel de estudios y sexo, 2025
B100: Tabla 93 | C100: Personal administrativo por categoría, 2019-2025
B101: Tabla 94 | C101: Personal administrativo por áreas, 2025
B102: Tabla 95 | C102: Escolaridad del personal administrativo, 2025
B103: Tabla 96 | C103: Personal pensionado por plazas académicas, sindicalizadas y de confianza, 2019-2025
B104: Tabla 97 | C104: Personal jubilado por plazas académicas, sindicalizadas y de confianza, 2019-2025
B105: Tabla 98 | C105: Personal fallecido por plazas académicas, sindicalizadas y de confianza, 2019-2025
B106: Tabla 99 | C106: Proyectos capturados en el presupuesto ordinario federal, 2025
B107: Tabla 100 | C107: Proyectos capturados en el presupuesto ordinario estatal, 2025
B108: Tabla 101 | C108: Proyectos capturados en el presupuesto autogenerado, 2025
B109: Tabla 102 | C109: Presupuesto Ejercido, 2019-2025
B110: Tabla 103 | C110: Presupuesto de ingresos y egresos, 2021-2025
B111: Tabla 104 | C111: Procesos de adjudicación a través del Comité de Compras, 2025
B112: Tabla 105 | C112: Informe global de transferencias, 2025
B113: Tabla 106 | C113: Solicitudes de Acceso a la Información Pública, 2025
B114: Tabla 107 | C114: Solicitudes de Acceso a la Información Pública, por dependencia, 2025
B115: Tabla 108 | C115: Protección de Datos Personales, 2025
B116: Tabla 109 | C116: Posición de las maestrías en rankings Eduniversal, 2025
B117: Tabla 110 | C117: Solicitudes de información de la Auditoría Superior de la Federación (ASF) y la Auditoría Superior de Jalisco (ASJ), 2025
B118: Logros y Retos
B119: Tabla 111 | C119: Cursos, talleres y conferencias presenciales y asistencia realizados , 2025
B120: Tabla 112 | C120: Jornadas y congresos presenciales y asistencia realizados, 2025
B121: Tabla 113 | C121: Foros y seminarios presenciales y asistencia realizados, 2025
B122: Tabla 114 | C122: Simposios y coloquios presenciales y asistencia realizados, 2025
B123: Tabla 115 | C123: Festivales, exhibiciones y exposiciones presenciales y asistencia realizados, 2025
B124: Premios y reconocimientos
B125: Tabla 116 | C125: Premios y reconocimientos, 2025

Sheet T-1
A1: Eje 1: Formación de Calidad para la Vida | F1: Índice
A2: Matrícula de estudiantes por programa educativo y sexo, 2025 | D2: Tabla 1
A3: Nivel Educativo / Programa Educativo | B3: Total | C3: Sexo
C4: Hombres | D4: Mujeres
A5: Técnico Superior Universitarios | B5: =SUM(B6) -> 24 | C5: 14 | D5: 10
A6: Tecnologías de la Información | B6: =SUM(C6+D6) -> 24 | C6: 14 | D6: 10
A7: Licenciatura | B7: =SUM(C7+D7) -> 23834 | C7: =SUM(C8:C23) -> 10704 | D7: 13130
A8: Administración | B8: =SUM(C8+D8) -> 2999 | C8: 1418 | D8: 1581
A9: Administración Financiera y Sistemas | B9: 2349 | C9: 1417 | D9: 932
A10: Administración Gubernamental y Políticas Públicas | B10: 392 | C10: 193 | D10: 199
A11: Auditoría y Contabilidad Gubernamental | B11: 39 | C11: 24 | D11: 15
A12: Contaduría Pública | B12: 3664 | C12: 1933 | D12: 1731
A13: Economía | B13: 605 | C13: 413 | D13: 192
A14: Gestión de Negocios Gastronómicos | B14: 1113 | C14: 406 | D14: 707
A15: Gestión y Economía Ambiental | B15: 269 | C15: 122 | D15: 147
A16: Ingeniería en Negocios | B16: 845 | C16: 467 | D16: 378
A17: Mercadotecnia | B17: 2520 | C17: 932 | D17: 1588
A18: Mercadotecnia Digital | B18: 1157 | C18: 385 | D18: 772
A19: Negocios Internacionales | B19: 3958 | C19: 1668 | D19: 2290
A20: Recursos Humanos | B20: 1214 | C20: 261 | D20: 953
A21: Relaciones Públicas y Comunicación | B21: 775 | C21: 202 | D21: 573
A22: Tecnologías de la información | B22: 796 | C22: 612 | D22: 184
A23: Turismo | B23: 1139 | C23: 251 | D23: 888
A24: Posgrado | B24: =B25+B45 -> 950 | C24: 521 | D24: 429
A25: Maestría | B25: =SUM(B26:B44) -> 687 | C25: 381 | D25: 306
A26: Administración de Negocios | B26: =SUM(C26+D26) -> 146 | C26: 92 | D26: 54
A27: Ciencia de los Datos | B27: 53 | C27: 39 | D27: 14
A28: Dirección de Mercadotecnia | B28: 21 | C28: 9 | D28: 12
A29: Economía | B29: 17 | C29: 11 | D29: 6
A30: Educación Superior Internacional | B30: 10 | C30: 3 | D30: 7
A31: Estudios de las Violencias de Género | B31: 6 | C31: 2 | D31: 4
A32: Estudios Fiscales | B32: 57 | C32: 35 | D32: 22
A33: Estudios sobre Juventudes | B33: 8 | C33: 6 | D33: 2
A34: Finanzas | B34: 77 | C34: 40 | D34: 37
A35: Gestión de la Seguridad y Salud en el Trabajo | B35: 34 | C35: 17 | D35: 17
A36: Gestión y Políticas de la Educación Superior | B36: 19 | C36: 9 | D36: 10
A37: Gobierno Electrónico | B37: 43 | C37: 23 | D37: 20
A38: Innovación Social y Gestión del Bienestar | B38: 30 | C38: 16 | D38: 14
A39: Negocios y Estudios Económicos | B39: 23 | C39: 11 | D39: 12
A40: Políticas Públicas | B40: 15 | C40: 8 | D40: 7
A41: Relaciones Económicas Internacionales y Cooperación | B41: 9 | C41: 3 | D41: 6
A42: Resolución de Conflictos | B42: 34 | C42: 14 | D42: 20
A43: Tecnologías de Información | B43: 46 | C43: 34 | D43: 12
A44: Tecnologías para el Aprendizaje | B44: 39 | C44: 9 | D44: 30
A45: Doctorado | B45: 263 | C45: =SUM(C46:C52) -> 140 | D45: 123
A46: Estudios Económicos | B46: =SUM(C46+D46) -> 17 | C46: 11 | D46: 6
A47: Estudios Fiscales | B47: 44 | C47: 29 | D47: 15
A48: Gestión de la Educación Superior | B48: 56 | C48: 20 | D48: 36
A49: Gestión de Paz y Prevención de las Violencias | B49: 27 | C49: 12 | D49: 15
A50: Innovación y Sustentabilidad en los Negocios | B50: 45 | C50: 23 | D50: 22
A51: Políticas Públicas y Desarrollo | B51: 27 | C51: 14 | D51: 13
A52: Tecnologías de Información | B52: 47 | C52: 31 | D52: 16
A53: Total | B53: =B7+B24+B5 -> 24808 | C53: 11239 | D53: 13569
A54: Fuente: Elaboración propia a partir de los datos proporcionados por la Coordinación General de Planeación y Evaluación. Corte: Diciembre, 2025
A88: Programa Educativo | B88: Estudiantes
A89: TSU Tecnologías de la Información | B89: 21
A90: Administración | B90: 2970
A91: Administración Financiera y Sistemas | B91: 2175
A92: Administración Gubernamental y Políticas Públicas | B92: 433
A93: Contaduría Pública | B93: 3592
A94: Economía | B94: 608
A95: Gestión de Negocios Gastronómicos | B95: 1088
A96: Gestión y Economía Ambiental | B96: 306
A97: Ingeniería en Negocios | B97: 825
A98: Mercadotecnia | B98: 2489
A99: Mercadotecnia Digital | B99: 1148
A100: Negocios Internacionales | B100: 3902
A101: Recursos Humanos | B101: 1223
A102: Relaciones Públicas y Comunicación | B102: 744
A103: Tecnologías de la información | B103: 771
A104: Turismo | B104: 1240

Sheet T-2
A1: Eje 1: Formación de Calidad para la Vida | H1: Índice
A2: Programas educativos de pregrado con acreditación nacional e internacional, 2025 | F2: Tabla 2
A3: Nivel Educativo / Programa Educativo | B3: Año de Creación | C3: Actualización | D3: Organismo Acreditador | E3: Vigencia | F3: Estudiantes
A4: Técnico Superior Universitarios | F4: =F5 -> 24
A5: Tecnologías de la Información | B5: 2023 | C5: N/A | D5: N/A | E5: N/A | F5: 24
A6: Licenciatura | F6: =SUM(F7:F22) -> 23834
A7: Administración | B7: 1996 | C7: 2012 | D7: CACECA | E7: 2030 | F7: 2999
A8: Administración Financiera y Sistemas | B8: 1997 | C8: 2012 | D8: CACECA | E8: 2030 | F8: 2349
A9: Administración Gubernamental y Políticas Públicas | B9: 2012 | C9: 2012 | D9: CONACE | E9: 2026 | F9: 392
A10: Auditoría y Contabilidad Gubernamental | B10: 2025 | C10: N/A | D10: NO EVALUABLE | E10: N/A | F10: 39
A11: Contaduría Pública | B11: 1996 | C11: 2012 | D11: CACECA | E11: 2030 | F11: 3664
A12: Economía | B12: 1996 | C12: 2012 | D12: CONACE | E12: 2027 | F12: 605
A13: Gestión de Negocios Gastronómicos | B13: 2017 | C13: N/A | D13: CONAET | E13: 2030 | F13: 1113
A14: Gestión y Economía Ambiental | B14: 2009 | C14: 2012 | D14: CONACE | E14: 2026 | F14: 269
A15: Ingeniería en Negocios | B15: 2019 | C15: N/A | D15: NO EVALUABLE | E15: N/A | F15: 845
A16: Mercadotecnia | B16: 1996 | C16: 2012 | D16: CACECA | E16: 2030 | F16: 2520
A17: Mercadotecnia Digital | B17: 2019 | C17: N/A | D17: N/A | E17: N/A | F17: 1157
A18: Negocios Internacionales | B18: 1996 | C18: 2012 | D18: CACECA | E18: 2030 | F18: 3958
A19: Recursos Humanos | B19: 1996 | C19: 2012 | D19: CACECA | E19: 2030 | F19: 1214
A20: Relaciones Públicas y Comunicación | B20: 2017 | C20: N/A | D20: CACECA | E20: 2030 | F20: 775
A21: Tecnologías de la Información | B21: 2012 | C21: 2012 | D21: CACECA | E21: 2025 | F21: 796
A22: Turismo | B22: 1996 | C22: 2012 | D22: CONAET/OMT Internacional en Red OMT | E22: 2026/VIGENTE | F22: 1139
A23: Fuente: Secretaría Académica Corte: Diciembre, 2025 Nota: CACECA "Consejo de Acreditación de Ciencias Administrativas, Contables y Afines" CONACE "Consejo Nacional de Acreditación de la Ciencia Económica" CONAET "Consejo para la Acreditación de la Educación Turística y Gastronómica" OMT " Organización Mundial del Turismo"

Sheet T-3
A1: Eje 1: Formación de Calidad para la Vida
A2: Programas educativos de posgrados con reconocimiento en el SNP, 2025 | F2: Tabla 3
A3: Nivel Educativo / Programa Educativo | B3: Año de creación | C3: Actualización | D3: Estatus* | E3: Categoría 2025 ** | F3: Vigencia
A4: Maestría
A5: Administración de Negocios | B5: 2006 | C5: 2019 | D5: No elegible | E5: 3 (Profesionalizante) | F5: N/A
A6: Ciencia de los Datos | B6: 2018 | C6: 2018 | D6: Elegible | E6: 3 (Profesionalizante) | F6: Dic 2025-Dic 2028 (3 años)
A7: Dirección de Mercadotecnia | B7: 2006 | C7: 2019 | D7: No elegible | E7: 3 (Profesionalizante) | F7: N/A
A8: Economía | B8: 1999 | C8: 2020 | D8: Elegible | E8: 1 (De investigación) | F8: Dic 2025-Dic 2028 (3 años)
A9: Educación Superior Internacional | B9: 2018 | C9: 2018 | D9: Elegible | E9: 3 (Profesionalizante) | F9: Dic 2025-Dic 2028 (3 años)
A10: Gestión de la Educación Superior | B10: 2006 | C10: 2020 | D10: Elegible | E10: 1 (De investigación) | F10: Dic 2025-Dic 2028 (3 años)
A11: Estudios Fiscales | B11: 2018 | C11: 2018 | D11: No elegible | E11: 3 (Profesionalizante) | F11: N/A
A12: Finanzas | B12: 2018 | C12: 2018 | D12: Elegible | E12: 3 (Profesionalizante) | F12: Dic 2025-Dic 2028 (3 años)
A13: Gestión de la Seguridad y Salud en el Trabajo | B13: 2015 | C13: 2015 | D13: Elegible | E13: 3 (Profesionalizante) | F13: Dic 2025-Dic 2028 (3 años)
A14: Gobierno Electrónico | B14: 2018 | C14: 2018 | D14: Elegible | E14: 3 (Profesionalizante) | F14: Dic 2025-Dic 2028 (3 años)
A15: Innovación Social y Gestión del Bienestar | B15: 2018 | C15: 2018 | D15: No elegible | E15: 3 (Profesionalizante) | F15: N/A
A16: Negocios Internacionales | B16: 2015 | C16: 2024 | D16: Elegible | E16: 3 (Profesionalizante) | F16: Dic 2025-Dic 2028 (3 años)
A17: Estudios de las Violencias de Género | B17: 2024 | C17: 2024 | D17: Elegible | E17: 1 (De investigación) | F17: Dic 2025-Dic 2028 (3 años)
A18: Estudios Sobre Juventudes | B18: 2025 | C18: 2025 | D18: Elegible | E18: 1 (De investigación) | F18: Dic 2025-Dic 2028 (3 años)
A19: Negocios y Estudios Económicos | B19: 1996 | C19: 2018 | D19: Elegible | E19: 1 (De investigación) | F19: Dic 2025-Dic 2028 (3 años)
A20: Políticas Públicas | B20: 2012 | C20: 2024 | D20: Elegible | E20: 3 (Profesionalizante) | F20: Dic 2025-Dic 2028 (3 años)
A21: Relaciones Económicas Internacionales y Cooperación | B21: 2006 | C21: 2020 | D21: No elegible | E21: 3 (Profesionalizante) | F21: N/A
A22: Resolución de Conflictos | B22: 2019 | C22: 2019 | D22: Elegible | E22: 3 (Profesionalizante) | F22: Dic 2025-Dic 2028 (3 años)
A23: Tecnologías de Información | B23: 2013 | C23: 2013 | D23: Elegible | E23: 3 (Profesionalizante) | F23: Dic 2025-Dic 2028 (3 años)
A24: Tecnologías para el Aprendizaje | B24: 2000 | C24: 2021 | D24: Elegible | E24: 3 (Profesionalizante) | F24: Dic 2025-Dic 2028 (3 años)
A25: Doctorado
A26: Ciencias de la Administración | B26: 2014 | C26: 2014 | D26: No elegible | E26: 1 (De investigación) | F26: N/A
A27: Estudios Económicos | B27: 2014 | C27: 2014 | D27: En Revisión | E27: 1 (De investigación) | F27: N/A
A28: Estudios Fiscales | B28: 2012 | C28: 2014 | D28: Elegible | E28: 1 (De investigación) | F28: Dic 2025-Dic 2028 (3 años)
A29: Finanzas | B29: 2025 | C29: 2025 | D29: No elegible | E29: 1 (De investigación) | F29: N/A
A30: Gestión de la Educación Superior | B30: 2011 | C30: 2011 | D30: Elegible | E30: 1 (De investigación) | F30: Dic 2025-Dic 2028 (3 años)
A31: Gestión de Paz y Prevención de las Violencias | B31: 2023 | C31: 2023 | D31: Elegible | E31: 1 (De investigación) | F31: Dic 2025-Dic 2028 (3 años)
A32: Innovación y Sustentabilidad en los Negocios | B32: 2022 | C32: 2022 | D32: Elegible | E32: 1 (De investigación) | F32: Dic 2025-Dic 2028 (3 años)
A33: Políticas Públicas y Desarrollo | B33: 2014 | C33: 2014 | D33: Elegible | E33: 1 (De investigación) | F33: Dic 2025-Dic 2028 (3 años)
A34: Tecnologías de Información | B34: 2006 | C34: 2006 | D34: En Revisión | E34: 1 (De investigación) | F34: N/A
A35: Fuente: Secretaría Académica / Coordinación Posgrado Corte: Diciembre, 2025 Nota: SNP "Sistema Nacional de Posgrados" * Estatus "Elegible" para otorgamientos de becas y, "en revisión" para otorgamiento de becas. ** Categoría: 1 = de investigación. 3 = Profesionalizante

Sheet T-4
A1: Eje 1: Formación de Calidad para la Vida | F1: Índice
A2: Estudiantes registrados en la base del Programa Institucional Plataforma de Inclusión y Equidad que presentan alguna discapacidad, 2025 | D2: Tabla 4
A3: Tipo de Discapacidad | B3: Total | C3: Hombres | D3: Mujeres
A4: Discapacidad Física / Motriz | B4: =C4+D4 -> 8 | C4: 3 | D4: 5
A5: Discapacidad Intelectual | B5: 2 | C5: 1 | D5: 1
A6: Discapacidad Múltiple | B6: 4 | C6: 1 | D6: 3
A7: Discapacidad Auditiva | B7: 5 | C7: =C8+C9 -> 1 | D7: 4
A8: Hipoacusia | B8: 3 | C8: 0 | D8: 3
A9: Sordera | B9: 2 | C9: 1 | D9: 1
A10: Discapacidad Visual | B10: 4 | C10: =C11+C12 -> 2 | D10: 2
A11: Baja Visión | B11: 2 | C11: 1 | D11: 1
A12: Ceguera | B12: 2 | C12: 1 | D12: 1
A13: Discapacidad Psicosocial | B13: 10 | C13: 6 | D13: 4
A14: Total | B14: =B13+B10+B7+B6+B5+B4 -> 33 | C14: 14 | D14: 19
A15: Fuente: Secretaría Académica / Programa Institucional de Inclusión y Equidad / Coordinación General de Planeación y Evaluación Corte: Diciembre, 2025

Sheet T-5
A1: Eje 1: Formación de Calidad para la Vida | F1: Índice
A2: Estudiantes registrados en la base del Programa Institucional Plataforma de Inclusión y Equidad, 2025 | D2: Tabla 5
A3: Tipo de Vulnerabilidad | B3: Total | C3: Hombres | D3: Mujeres
A4: Discapacidad Física / Motriz | B4: =SUM(C4:D4) -> 33 | C4: 13 | D4: 20
A5: Pueblos Originarios | B5: 39 | C5: 12 | D5: 27
A6: Neurodiversidad | B6: 10 | C6: 6 | D6: 4
A7: Con hijos | B7: 504 | C7: 64 | D7: 440
A8: Embarazo | B8: 12 | C8: 0 | D8: 12
A9: Cuidado | B9: 19 | C9: 5 | D9: 14
A10: Trayecto largo | B10: 1100 | C10: 407 | D10: 693
A11: Salud mental | B11: 205 | C11: 48 | D11: 157
A12: Enfermedades | B12: 60 | C12: 28 | D12: 32
A13: Migrantes | B13: 11 | C13: 8 | D13: 3
A14: Violencia | B14: 4 | C14: 1 | D14: 3
A15: Trastorno por uso de sustancias | B15: 5 | C15: 5 | D15: 0
A16: Total | B16: =SUM(B4:B15) -> 2002 | C16: 597 | D16: 1405
A17: Fuente: Secretaría Académica / Programa Institucional de Inclusión y Equidad Corte: Diciembre, 2025

Sheet T-6
A1: Eje 1: Formación de Calidad para la Vida | H1: Índice
A2: Estudiantes con alguna discapacidad por nivel educativo, 2019-2025 | F2: Tabla 6
A3: Ciclo Escolar | B3: Total | C3: Nivel Educativo
C4: Técnico Superior Universitario | D4: Licenciatura | E4: Maestría | F4: Doctorado
A5: 2019 | B5: =D5+E5+F5 -> 219 | C5: - | D5: 206 | E5: 12 | F5: 1
A6: 2020 | B6: =D6+E6 -> 308 | C6: - | D6: 296 | E6: 12 | F6: -
A7: 2021 | B7: =D7+E7+F7 -> 386 | C7: - | D7: 376 | E7: 8 | F7: 2
A8: 2022 | B8: =D8+E8+F8 -> 409 | C8: - | D8: 402 | E8: 4 | F8: 3
A9: 2023 | B9: =SUM(C9:F9) -> 425 | C9: 0 | D9: 417 | E9: 6 | F9: 2
A10: 2024 | B10: =SUM(C10:F10) -> 467 | C10: 0 | D10: 462 | E10: 3 | F10: 2
A11: 2025 | B11: 310 | C11: 0 | D11: 300 | E11: 8 | F11: 2
A12: Fuente: Secretaría Académica / Programa Integral de Inclusión y Equidad Corte: Diciembre, 2025

Sheet T-7
A1: Eje 1: Formación de Calidad para la Vida | H1: Índice
A2: Atención a la demanda, 2025 | F2: Tabla 7
A3: Ciclo Escolar | B3: Aspirantes | C3: Admitidos | D3: No Admitidos | E3: Cupo | F3: Puntaje Mínimo
A4: Total 2025 | B4: =B5+B25 -> 9916 | C4: 6442 | D4: 4147 | E4: 5838 | F4: -
A5: 2025-A | B5: =B6+B8+B23 -> 3924 | C5: 3050 | D5: 874 | E5: 3119 | F5: -
A6: Técnico Superior Universitario | B6: =SUM(B7) -> 0 | C6: 0 | D6: 0 | E6: 0 | F6: -
A7: Tecnologías de la Información | B7: 0 | C7: 0 | D7: 0 | E7: 0 | F7: 0
A8: Licenciatura | B8: =SUM(B9:B22) -> 3788 | C8: 2929 | D8: 859 | E8: 3076 | F8: -
A9: Administración | B9: 451 | C9: 430 | D9: 21 | E9: 430 | F9: 100.13
A10: Administración Financiera y Sistemas | B10: 444 | C10: 310 | D10: 134 | E10: 310 | F10: 128.5033
A11: Administración Gubernamental y Políticas Públicas | B11: 43 | C11: 43 | D11: 0 | E11: 55 | F11: 91.1467
A12: Contaduría Pública | B12: 615 | C12: 488 | D12: 127 | E12: 488 | F12: 116.5833
A13: Economía | B13: 88 | C13: 88 | D13: 0 | E13: 90 | F13: 88.83
A14: Gestión de Negocios Gastronómicos | B14: 288 | C14: 137 | D14: 151 | E14: 137 | F14: 133.5
A15: Gestión y Economía Ambiental | B15: 23 | C15: 23 | D15: 0 | E15: 50 | F15: 104.3333
A16: Ingeniería en Negocios | B16: 175 | C16: 138 | D16: 37 | E16: 138 | F16: 117.1833
A17: Mercadotecnia | B17: 403 | C17: 342 | D17: 61 | E17: 342 | F17: 112.3333
A18: Negocios Internacionales | B18: 777 | C18: 471 | D18: 306 | E18: 471 | F18: 126.2067
A19: Recursos Humanos | B19: 152 | C19: 152 | D19: 0 | E19: 169 | F19: 89.2133
A20: Relaciones Públicas y Comunicación | B20: 126 | C20: 104 | D20: 22 | E20: 104 | F20: 114.8867
A21: Tecnologías de la Información | B21: 101 | C21: 101 | D21: 0 | E21: 114 | F21: 87.25
A22: Turismo | B22: 102 | C22: 102 | D22: 0 | E22: 178 | F22: 90.1667
A23: Sede Virtual CUCEA | B23: =B24 -> 136 | C23: 121 | D23: 15 | E23: 43 | F23: -
A24: Mercadotecnia Digital | B24: 136 | C24: 121 | D24: 15 | E24: 43 | F24: 60
A25: 2025-B | B25: =B26+B28+B44 -> 5992 | C25: 3392 | D25: 3273 | E25: 2719 | F25: -
A26: Técnico Superior Universitario | B26: =SUM(B27) -> 21 | C26: 21 | D26: 21 | E26: 0
A27: Tecnologías de la Información | B27: 21 | C27: 21 | D27: 21 | E27: 0 | F27: 111.4433
A28: Licenciatura | B28: =SUM(B29:B43) -> 5782 | C28: 3107 | D28: 3063 | E28: 2719 | F28: -
A29: Administración | B29: 516 | C29: 430 | D29: 430 | E29: 86 | F29: 111.5533
A30: Administración Financiera y Sistemas | B30: 730 | C30: 310 | D30: 310 | E30: 420 | F30: 143.3633
A31: Administración Gubernamental y Políticas Públicas | B31: 55 | C31: 55 | D31: 55 | E31: 0 | F31: 81.0267
A32: Auditoría y Contabilidad Gubernamental | B32: 25 | C32: 40 | D32: 25 | E32: 0 | F32: 97.4167
A33: Contaduría Pública | B33: 944 | C33: 488 | D33: 488 | E33: 456 | F33: 133.6033
A34: Economía | B34: 145 | C34: 90 | D34: 90 | E34: 55 | F34: 131.29
A35: Gestión de Negocios Gastronómicos | B35: 397 | C35: 138 | D35: 138 | E35: 259 | F35: 141
A36: Gestión y Economía Ambiental | B36: 12 | C36: 40 | D36: 12 | E36: 0 | F36: 101.9967
A37: Ingeniería en Negocios | B37: 204 | C37: 138 | D37: 138 | E37: 66 | F37: 129.6033
A38: Mercadotecnia | B38: 600 | C38: 342 | D38: 342 | E38: 258 | F38: 126.7933
A39: Negocios Internacionales | B39: 1359 | C39: 471 | D39: 471 | E39: 888 | F39: 139.1433
A40: Recursos Humanos | B40: 247 | C40: 169 | D40: 169 | E40: 78 | F40: 113.8267
A41: Relaciones Públicas y Comunicación | B41: 235 | C41: 104 | D41: 104 | E41: 131 | F41: 135.0333
A42: Tecnologías de la Información | B42: 113 | C42: 114 | D42: 113 | E42: 0 | F42: 92.9
A43: Turismo | B43: 200 | C43: 178 | D43: 178 | E43: 22 | F43: 104.9633
A44: Sede Virtual CUCEA | B44: =B45 -> 189 | C44: 264 | D44: 189 | E44: 0 | F44: -
A45: Mercadotecnia Digital | B45: 189 | C45: 264 | D45: 189 | E45: 0 | F45: 60
A46: Fuente: Elaboración propia a partir de los datos publicados por la Coordinación General de Control Escolar. http://escolar.udg.mx/estadisticas/puntajes-minimos Corte: Diciembre, 2025

Sheet T-8
A1: Eje 1: Formación de Calidad para la Vida | E1: Índice
A2: Estudiantes inscritos y aprobados al curso Matemáticas Cero, 2021-2025 | C2: Tabla 8
A3: Ciclo escolar | B3: Estudiantes
B4: Inscritos | C4: Aprobados
A5: 2021A | B5: 290 | C5: 183
A6: 2021B | B6: 345 | C6: 232
A7: 2022A | B7: 296 | C7: 218
A8: 2022B | B8: 302 | C8: 190
A9: 2023A | B9: 318 | C9: 147
A10: 2023B | B10: 384 | C10: 281
A11: 2024A | B11: 346 | C11: 206
A12: 2024B | B12: 355 | C12: 258
A13: 2025A | B13: 286 | C13: 172
A14: 2025B | B14: 179 | C14: 138
A15: Fuente: Secretaría Académica / División de Economía y Sociedad / Departamento de Métodos Cuantitativos Corte: Diciembre, 2025

Sheet T-9
A1: Eje 1: Formación de Calidad para la Vida | F1: Índice
A2: Titulación a nivel pregrado por programa educativo, 2025 | D2: Tabla 9
A3: Licenciatura | B3: Total | C3: Sexo
C4: Hombres | D4: Mujeres
A5: Técnico Superior Universitario | B5: =B6 -> 10 | C5: 3 | D5: 7
A6: Redes y Telecomunicaciones | B6: =C6+D6 -> 10 | C6: 3 | D6: 7
A7: Licenciatura | B7: =C7+D7 -> 3571 | C7: =SUM(C8:C23) -> 1372 | D7: 2199
A8: Administración | B8: =C8+D8 -> 574 | C8: 219 | D8: 355
A9: Administración Financiera y Sistemas | B9: 359 | C9: 180 | D9: 179
A10: Administración Gubernamental y Políticas Públicas | B10: 81 | C10: 45 | D10: 36
A11: Auditoría y Contabilidad Gubernamental | B11: 0 | C11: 0 | D11: 0
A12: Contaduría Pública | B12: 755 | C12: 322 | D12: 433
A13: Economía | B13: 108 | C13: 61 | D13: 47
A14: Gestión de Negocios Gastronómicos | B14: 49 | C14: 10 | D14: 39
A15: Gestión y Economía Ambiental | B15: 57 | C15: 18 | D15: 39
A16: Ingeniería en Negocios | B16: 39 | C16: 16 | D16: 23
A17: Mercadotecnia | B17: 363 | C17: 132 | D17: 231
A18: Mercadotecnia Digital | B18: 29 | C18: 10 | D18: 19
A19: Negocios Internacionales | B19: 628 | C19: 222 | D19: 406
A20: Recursos Humanos | B20: 181 | C20: 16 | D20: 165
A21: Relaciones Públicas y Comunicación | B21: 75 | C21: 20 | D21: 55
A22: Tecnologías de la información | B22: 83 | C22: 64 | D22: 19
A23: Turismo | B23: 190 | C23: 37 | D23: 153
A24: Total | B24: 3581 | C24: =C7+C5 -> 1375 | D24: 2206
A25: Fuente: Secretaría Administrativa / Coordinación de Control Escolar Corte: Diciembre, 2025 Nota:

Sheet T-10
A1: Eje 1: Formación de Calidad para la Vida | F1: Índice
A2: Titulación a nivel posgrado por sexo, 2025 | D2: Tabla 10
A3: Posgrado | B3: Total | C3: Hombres | D3: Mujeres
A4: Maestría | B4: =SUM(B5:B29) -> 252 | C4: 126 | D4: 126
A5: Administración | B5: =SUM(C5+D5) -> 2 | C5: 2 | D5: 0
A6: Administración de Negocios | B6: 38 | C6: 19 | D6: 19
A7: Análisis Tributario | B7: 10 | C7: 9 | D7: 1
A8: Auditoría | B8: 4 | C8: 3 | D8: 1
A9: Ciencia de los Datos | B9: 3 | C9: 2 | D9: 1
A10: Dirección de Mercadotecnia | B10: 23 | C10: 5 | D10: 18
A11: Economía | B11: 11 | C11: 7 | D11: 4
A12: Educación Superior Internacional | B12: 1 | C12: 0 | D12: 1
A13: Estudios de las Violencias de Género | B13: 0 | C13: 0 | D13: 0
A14: Estudios Fiscales | B14: 6 | C14: 3 | D14: 3
A15: Estudios sobre Juventudes | B15: 0 | C15: 0 | D15: 0
A16: Finanzas | B16: 27 | C16: 15 | D16: 12
A17: Finanzas Empresariales | B17: 8 | C17: 5 | D17: 3
A18: Gestión de la Seguridad y Salud en el Trabajo | B18: 11 | C18: 5 | D18: 6
A19: Gestión y Políticas de la Educación Superior | B19: 10 | C19: 3 | D19: 7
A20: Gobierno Electrónico | B20: 4 | C20: 2 | D20: 2
A21: Innovación Social y Gestión del Bienestar | B21: 4 | C21: 1 | D21: 3
A22: Mercadotecnia | B22: 1 | C22: 0 | D22: 1
A23: Negocios Internacionales | B23: 6 | C23: 2 | D23: 4
A24: Negocios y Estudios Económicos | B24: 11 | C24: 4 | D24: 7
A25: Políticas Públicas | B25: 7 | C25: 4 | D25: 3
A26: Relaciones Económicas Internacionales y Cooperación | B26: 3 | C26: 1 | D26: 2
A27: Resolución de Conflictos | B27: 4 | C27: 1 | D27: 3
A28: Tecnologías de Información | B28: 25 | C28: 17 | D28: 8
A29: Tecnologías para el Aprendizaje | B29: 33 | C29: 16 | D29: 17
A30: Doctorado | B30: 45 | C30: =SUM(C31:C38) -> 30 | D30: 15
A31: Ciencias de la Administración | B31: =SUM(C31+D31) -> 6 | C31: 3 | D31: 3
A32: Estudios Económicos | B32: 5 | C32: 3 | D32: 2
A33: Estudios Fiscales | B33: 7 | C33: 6 | D33: 1
A34: Gestión de la Educación Superior | B34: 13 | C34: 6 | D34: 7
A35: Gestión de Paz y Prevención de las Violencias | B35: 0 | C35: 0 | D35: 0
A36: Innovación y Sustentabilidad en los Negocios | B36: 0 | C36: 0 | D36: 0
A37: Políticas Públicas y Desarrollo | B37: 4 | C37: 3 | D37: 1
A38: Tecnologías de Información | B38: 10 | C38: 9 | D38: 1
A39: Total | B39: =B30+B4 -> 297 | C39: 156 | D39: 141
A40: Fuente: Elaboración propia a partir de los datos proporcionados por la Coordinación General de Planeación y Evaluación. Corte: Diciembre, 2025

Sheet T-11
A1: Eje 1: Formación de Calidad para la Vida | J1: Índice
A2: Estudiantes beneficiarios por becas, apoyos y programas por sexo, 2025 | G2: Tabla 11
A3: Beca, apoyo o programa | B3: Total | C3: Estudiantes | E3: Periodicidad de la convocatoria | F3: Monto (pesos corrientes) | G3: Origen
C4: Hombres | D4: Mujeres
A5: Becario i | B5: =SUM(C5:D5) -> 137 | C5: 94 | D5: 43 | E5: ANUAL | F5: 4,000 3,000 2,500 2,000 | G5: PROPIA
A6: PEEES | B6: 56 | C6: 41 | D6: 15 | E6: ANUAL | F6: 4000 | G6: PROPIA
A7: PEEEI | B7: 1 | C7: 0 | D7: 1 | E7: SEMESTRAL | F7: 6000 | G7: PROPIA
A8: PEEED | B8: 41 | C8: 19 | D8: 22 | E8: SEMESTRAL | F8: 6000 | G8: PROPIA
A9: Apoyo a Madres Jefas de Familia de CONAHCYT | B9: 22 | C9: 0 | D9: 22 | E9: ANUAL | F9: 4000 | G9: FEDERAL
A10: Becas BBVA para Chavos que Inspiran | B10: 0 | C10: 0 | D10: 0 | E10: ANUAL | F10: 4000 | G10: ESTATAL
A11: GRODMAN - Excelencia académica | B11: 7 | C11: 4 | D11: 3 | E11: ANUAL | F11: 1,250 DLLS | G11: PARTICULAR
A12: Condonaciones CU 2025-A | B12: 56 | C12: 28 | D12: 28 | E12: Semestral | F12: 727148 | G12: CUCEA
A13: Condonaciones CU 2025-B | B13: 152 | C13: 88 | D13: 64 | E13: Semestral | F13: 1083758 | G13: CUCEA
A14: Exenciones de Matrícula SUTUDG 2025-A | B14: 12 | C14: 10 | D14: 2 | E14: Semestral | F14: 430275 | G14: SUTUDG
A15: Exenciones de Matrícula SUTUDG 2025-B | B15: 10 | C15: 7 | D15: 3 | E15: Semestral | F15: 363550 | G15: STAUDG
A16: Exenciones de Matrícula STAUDG 2025-A | B16: 21 | C16: 14 | D16: 7 | E16: Semestral | F16: 718153 | G16: SUTUDG
A17: Exenciones de Matrícula STAUDG 2025-B | B17: 25 | C17: 16 | D17: 9 | E17: Semestral | F17: 852983 | G17: STAUDG
A18: Beca SECIHTI Maestría 2025-A, Monto $15,477.57 por alumno | B18: 251 | C18: 123 | D18: 128 | E18: Semestral | F18: 3884870.07 | G18: SECIHTI, FEDERAL
A19: Beca SECIHTI Doctorado 2025-A, Monto $20,636.76 por alumno | B19: 191 | C19: 97 | D19: 94 | E19: Semestral | F19: 3941621.16 | G19: SECIHTI, FEDERAL
A20: Beca SECIHTI Maestría 2025-B, Monto $15,477.57 por alumno | B20: 265 | C20: 128 | D20: 137 | E20: Semestral | F20: 4101556.05 | G20: SECIHTI, FEDERAL
A21: Beca SECIHTI Doctorado 2025-B, Monto $20,636.76 por alumno | B21: 239 | C21: 126 | D21: 113 | E21: Semestral | F21: 4932185.64 | G21: SECIHTI, FEDERAL
A22: Gratuidad 2025-A, Maestría | B22: 272 | C22: 137 | D22: 135 | E22: Semestral | F22: 2572717.44 | G22: Programa Compensatorio para la Transición Gradual hacia la Gratuidad de los Servicios Educativos de Posgrado, Universidad de Guadalajara
A23: Gratuidad 2025-A, Doctorado | B23: 187 | C23: 96 | D23: 91 | E23: Semestral | F23: 2251126.57 | G23: Programa Compensatorio para la Transición Gradual hacia la Gratuidad de los Servicios Educativos de Posgrado, Universidad de Guadalajara
A24: Gratuidad 2025-B, Maestría | B24: 313 | C24: 155 | D24: 158 | E24: Semestral | F24: 2960516.76 | G24: Programa Compensatorio para la Transición Gradual hacia la Gratuidad de los Servicios Educativos de Posgrado, Universidad de Guadalajara
A25: Gratuidad 2025-B, Doctorado | B25: 243 | C25: 128 | D25: 115 | E25: Semestral | F25: 2925260.73 | G25: Programa Compensatorio para la Transición Gradual hacia la Gratuidad de los Servicios Educativos de Posgrado, Universidad de Guadalajara
A26: PAEP 2025-A, $5159.19 por alumno | B26: 23 | C26: 12 | D26: 11 | E26: Semestral | F26: 118661.37 | G26: VICERRECTORÍA ADJUNTA ACADÉMICA Y DE INVESTIGACIÓN
A27: PAEP 2025-B, $5159.19 por alumno | B27: 14 | C27: 6 | D27: 8 | E27: Semestral | F27: 72228.66 | G27: VICERRECTORÍA ADJUNTA ACADÉMICA Y DE INVESTIGACIÓN
A28: Total | B28: =SUM(B3:B27) -> 2538 | C28: 1329 | D28: 1209 | E28: - | F28: - | G28: -
A29: Fuente: Secretaría Académica / Coordinación de Posgrados / Coordinación de Servicios Académicos / Unidad de Becas Corte: Diciembre, 2025 Nota:

Sheet T-12
A1: Eje 1: Formación de Calidad para la Vida | F1: Índice
A2: Estudiantes de posgrado becados por el SECIHTI, 2019-2025 | D2: Tabla 12
A3: Año | B3: Total | C3: Nivel Educativo
C4: Maestría | D4: Doctorado
A5: 2019 | B5: =SUM(C5:D5) -> 441 | C5: 313 | D5: 128
A6: 2020 | B6: 471 | C6: 333 | D6: 138
A7: 2021 | B7: 457 | C7: 332 | D7: 125
A8: 2022 | B8: 394 | C8: 296 | D8: 98
A9: 2023 | B9: 391 | C9: 280 | D9: 111
A10: 2024 | B10: 442 | C10: 263 | D10: 179
A11: 2025 | B11: 473 | C11: 258 | D11: 215
A12: Fuente: Secretaría Académica / Coordinación de Posgrados Corte: Diciembre, 2025 Nota: La información reflejada son promedios ya que son diferente número de becarios en ambos ciclos, que no necesariamente son los mismos alumnos

Sheet T-13
A1: Eje 1: Formación de Calidad para la Vida | E1: Índice
A2: Estudiantes en tutoría, 2025 | C2: Tabla 13
A3: Nivel Educativo / Programa Educativo | B3: Matrícula | C3: Total
A4: Técnico Superior Universitarios | B4: =SUM(B5) -> 24 | C4: 21
A5: Tecnologías de la Información | B5: 24 | C5: 21
A6: Licenciatura | B6: =SUM(B7:B22) -> 23834 | C6: 7426
A7: Administración | B7: 2999 | C7: 946
A8: Administración Financiera y Sistemas | B8: 2349 | C8: 709
A9: Administración Gubernamental y Políticas Públicas | B9: 392 | C9: 162
A10: Auditoría y Contabilidad Gubernamental | B10: 39 | C10: 39
A11: Contaduría Pública | B11: 3664 | C11: 1127
A12: Economía | B12: 605 | C12: 223
A13: Gestión de Negocios Gastronómicos | B13: 1113 | C13: 328
A14: Gestión y Economía Ambiental | B14: 269 | C14: 95
A15: Ingeniería en Negocios | B15: 845 | C15: 302
A16: Mercadotecnia | B16: 2520 | C16: 777
A17: Mercadotecnia Digital | B17: 1157 | C17: 330
A18: Negocios Internacionales | B18: 3958 | C18: 1102
A19: Recursos Humanos | B19: 1214 | C19: 373
A20: Relaciones Públicas y Comunicación | B20: 775 | C20: 227
A21: Tecnologías de la información | B21: 796 | C21: 308
A22: Turismo | B22: 1139 | C22: 378
A23: Total | B23: =B6+B4 -> 23858 | C23: 7447
A24: Fuente: Secretaría Académica / Coordinación de Posgrados / Coordinación de Servicios Académicos / Unidad de Tutorías Corte: Diciembre, 2025

Sheet T-14
A1: Eje 1: Formación de Calidad para la Vida | I1: Índice
A2: Programas educativos con Reconocimiento de Validez Oficial de Estudios, 2025 | G2: Tabla 14
A3: Institución | B3: Matrícula | E3: Plantel | F3: Licenciatura/TSU | G3: Vigencia
B4: =SUM(B5:B31) -> 2604 | C4: 1365 | D4: 1239 | M4: =LOWER(H4) -> 
A5: Centro Universitario UNE, A.C. | B5: =C5+D5 -> 702 | C5: 358 | D5: 344 | E5: Av. República no. 10 | F5: Negocios Internacionales | G5: 2025B - 2028A
E6: Calle Chimalhuacan no. 3569 | F6: Mercadotecnia | G6: 2025B - 2028A
F7: Negocios Internacionales | G7: 2025B - 2028A
F8: Contaduría Pública | G8: 2025B - 2028A
F9: Administración | G9: 2025B - 2028A | M9: =LOWER(H9) -> 
A10: Centro Universitario UTEG, S.C. | B10: =C10+D10 -> 1419 | C10: 764 | D10: 655 | E10: Calle 1 de mayo no. 1355 | F10: Administración | G10: 2025B - 2028A
E11: Av. José Parres Arias no. 145 | F11: Administración | G11: 2025B - 2028A
F12: Contaduría Pública | G12: 2025B - 2028A
E13: Av. Héroes Ferrocarrileros no. 1325 | F13: Administración | G13: 2025B - 2028A
F14: Contaduría Pública | G14: 2025B - 2028A
E15: Av. Río Nilo no. 7546 | F15: Administración | G15: 2024A - 2026B
F16: Contaduría Pública | G16: 2024A - 2026B
A17: LAMAR Mexicana, A. C. | B17: =C17+D17 -> 63 | C17: 32 | D17: 31 | E17: Calle José Guadalupe Zuno no. 1964 | F17: Administración | G17: 2022B - 2025A* | M17: =LOWER(H17) -> 
F18: Contaduría Pública
F19: Negocios Internacionales
F20: Mercadotecnia
A21: Servicios de Educación Superior en Jalisco, A.C. UDEO | B21: =C21+D21 -> 343 | C21: 172 | D21: 171 | E21: Av. Americas no. 3 | F21: Negocios Internacionales | G21: 2025B - 2028A
F22: Contaduría Pública
F23: Administración
A24: RECAB de México, A.C. HERMOSA PROVINCIA | B24: =C24+D24 -> 77 | C24: 39 | D24: 38 | E24: Av. Elisa Flores no. 2270 | F24: Administración | G24: 2025B - 2028A
A32: Fuente: Secretaría Administrativa / Unidad de Enseñanza Incorporada Corte: Diciembre, 2025 Nota: *El Reconocimiento de Validez Oficial de Estudios de LAMAR Mexicana, A.C., terminó su vigencia en el ciclo 2025A.

Sheet T-15
A1: Eje 1: Formación de Calidad para la Vida | J1: Índice
A2: Matrícula por programa educativo de IREVOE, 2019-2025 | G2: Tabla 15
A3: Programa | B3: Estudiantes
B4: 2019 | C4: 2020 | D4: 2021 | E4: 2022 | F4: 2023 | G4: 2024 | H4: 2025
A5: Administración | B5: 2033 | C5: 1744 | D5: 1581 | E5: 1697 | F5: 1552 | G5: 1316 | H5: 1062
A6: Contaduría Pública | B6: 1827 | C6: 1667 | D6: 1419 | E6: 1439 | F6: 1322 | G6: 1174 | H6: 1032
A7: Mercadotecnia | B7: 184 | C7: 191 | D7: 158 | E7: 132 | F7: 116 | G7: 75 | H7: 61
A8: Negocios Internacionales | B8: 1025 | C8: 1055 | D8: 742 | E8: 827 | F8: 625 | G8: 482 | H8: 449
A9: Turismo | B9: 179 | C9: 126 | D9: 111 | E9: 95 | F9: 36 | G9: 2 | H9: 0
A10: Total | B10: =SUM(B5:B9) -> 5248 | C10: 4783 | D10: 4011 | E10: 4190 | F10: 3651 | G10: 3049 | H10: 2604
A11: Fuente: Secretaría Administrativa / Unidad de Enseñanza Incorporada Corte: Diciembre, 2025
U105: =SUM(U100:U104) -> 0

Sheet T-16
A1: Eje 1: Formación de Calidad para la Vida | J1: Índice
A2: Egreso por programa educativo de IREVOE, 2019-2025 | G2: Tabla 16
A3: Programa | B3: Egresados
B4: 2019 | C4: 2020 | D4: 2021 | E4: 2022 | F4: 2023 | G4: 2024 | H4: 2025
A5: Administración | B5: 105 | C5: 22 | D5: 14 | E5: 109 | F5: 48 | G5: 16 | H5: 21
A6: Contaduría Pública | B6: 79 | C6: 25 | D6: 3 | E6: 87 | F6: 47 | G6: 48 | H6: 46
A7: Mercadotecnia | B7: 12 | C7: 1 | D7: 1 | E7: 3 | F7: 13 | G7: 5 | H7: 0
A8: Negocios Internacionales | B8: 9 | C8: 10 | D8: 4 | E8: 65 | F8: 27 | G8: 17 | H8: 10
A9: Turismo | B9: 1 | C9: 0 | D9: 0 | E9: 1 | F9: 0 | G9: 0 | H9: 0
A10: Total | B10: =SUM(B5:B9) -> 206 | C10: 58 | D10: 22 | E10: 265 | F10: 135 | G10: 86 | H10: 77
A11: Fuente: Secretaría Administrativa / Unidad de Enseñanza Incorporada Corte: Diciembre, 2025 Nota: En el transcurso del presente año, se observó una baja significativa en el porcentaje de titulación de las Instituciones Incorporadas, se considera que los nuevos trámites para algunas modalidades resultaron fundamentales conforme al nuevo reglamento
U104: =SUM(U99:U103) -> 0

Sheet T-17
A1: Eje 1: Formación de Calidad para la Vida | I1: Índice
A2: Participación de profesorado por sexo en cursos de actualización docente, 2025 | G2: Tabla 17
A3: División/Departamento | B3: Total | C3: Cursos Proinnova | E3: Total | F3: Actualización Docente
C4: Hombres | D4: Mujeres | F4: Hombres | G4: Mujeres
A5: División de Contaduría | B5: =SUM(B6:B9) -> 56 | C5: 26 | D5: 30 | E5: 109 | F5: 74 | G5: 35
A6: Auditoría | B6: =SUM(C6:D6) -> 5 | C6: 2 | D6: 3 | E6: =SUM(F6:G6) -> 10 | F6: 3 | G6: 7
A7: Contabilidad | B7: 28 | C7: 11 | D7: 17 | E7: 64 | F7: 48 | G7: 16
A8: Finanzas | B8: 11 | C8: 5 | D8: 6 | E8: 23 | F8: 15 | G8: 8
A9: Impuestos | B9: 12 | C9: 8 | D9: 4 | E9: 12 | F9: 8 | G9: 4
A10: División de Economía y Sociedad | B10: 171 | C10: =SUM(C11:C15) -> 93 | D10: 78 | E10: 154 | F10: 71 | G10: 83
A11: Ciencias Sociales y Jurídicas | B11: =SUM(C11:D11) -> 28 | C11: 8 | D11: 20 | E11: =SUM(F11:G11) -> 52 | F11: 21 | G11: 31
A12: Economía | B12: 23 | C12: 19 | D12: 4 | E12: 33 | F12: 24 | G12: 9
A13: Estudios Regionales - INESER | B13: 35 | C13: 12 | D13: 23 | E13: 50 | F13: 19 | G13: 31
A14: Métodos Cuantitativos | B14: 65 | C14: 43 | D14: 22 | E14: 17 | F14: 5 | G14: 12
A15: Políticas Públicas | B15: 20 | C15: 11 | D15: 9 | E15: 2 | F15: 2 | G15: 0
A16: División de Gestión Empresarial | B16: =SUM(B17:B21) -> 210 | C16: 87 | D16: 123 | E16: 257 | F16: 138 | G16: 119
A17: Administración | B17: =SUM(C17:D17) -> 75 | C17: 32 | D17: 43 | E17: =SUM(F17:G17) -> 83 | F17: 34 | G17: 49
A18: Mercadotecnia y Negocios Internacionales | B18: 73 | C18: 31 | D18: 42 | E18: 69 | F18: 43 | G18: 26
A19: Recursos Humanos | B19: 12 | C19: 3 | D19: 9 | E19: 11 | F19: 7 | G19: 4
A20: Sistemas de Información | B20: 32 | C20: 14 | D20: 18 | E20: 40 | F20: 32 | G20: 8
A21: Turismo, Recreación y Servicios | B21: 18 | C21: 7 | D21: 11 | E21: 54 | F21: 22 | G21: 32
A22: Total | B22: =+B5+B10+B16 -> 437 | C22: 206 | D22: 231 | E22: 520 | F22: 283 | G22: 237
A23: Fuente: Centro de Innovación Docente / División de Contaduría / División de Economía y Sociedad / División de Gestión Empresarial / Departamentos Corte: Diciembre, 2025

Sheet T-18
A1: Eje 1: Formación de Calidad para la Vida | F1: Índice
A2: Profesorado con perfil PRODEP por departamento y sexo, 2025 | C2: Tabla 18
A3: División/Departamento | B3: Total | C3: Sexo
C4: Hombres | D4: Mujeres
A5: Contaduría | B5: =SUM(B6:B9) -> 34 | C5: 20 | D5: 14
A6: Auditoría | B6: =C6+D6 -> 1 | C6: 1 | D6: 0
A7: Contabilidad | B7: 9 | C7: 4 | D7: 5
A8: Finanzas | B8: 13 | C8: 8 | D8: 5
A9: Impuestos | B9: 11 | C9: 7 | D9: 4
A10: Economía y Sociedad | B10: 123 | C10: =+C11+C12+C13+C14+C15 -> 73 | D10: 50
A11: Ciencias Sociales y Jurídicas | B11: =C11+D11 -> 18 | C11: 11 | D11: 7
A12: Economía | B12: 13 | C12: 11 | D12: 2
A13: Estudios Regionales (INESER) | B13: 33 | C13: 13 | D13: 20
A14: Métodos Cuantitativos | B14: 24 | C14: 16 | D14: 8
A15: Políticas Públicas | B15: 35 | C15: 22 | D15: 13
A16: Gestión Empresarial | B16: 90 | C16: =+C17+C18+C19+C20+C21 -> 51 | D16: 39
A17: Administración | B17: =C17+D17 -> 23 | C17: 14 | D17: 9
A18: Mercadotecnia y Negocios Internacionales | B18: 20 | C18: 13 | D18: 7
A19: Recursos Humanos | B19: 10 | C19: 4 | D19: 6
A20: Sistemas de Información | B20: 24 | C20: 16 | D20: 8
A21: Turismo, Recreación y Servicios | B21: 13 | C21: 4 | D21: 9
A22: Total | B22: =+B5+B10+B16 -> 247 | C22: 144 | D22: 103
A23: Fuente: Secretaría Académica / Coordinación de Investigación Corte: Diciembre, 2025

Sheet T-19
A1: Eje 1: Formación de Calidad para la Vida | L1: Índice
A2: Profesorado beneficiados del PROESDE, 2025 | J2: Tabla 19
A3: División / Departamento | B3: Total | C3: Hombres | D3: Mujeres | E3: Total | F3: Beneficiarios | H3: Total | I3: Beneficiarios Condicionados
F4: Hombres | G4: Mujeres | I4: Hombres | J4: Mujeres
A5: Contaduría | B5: =SUM(C5:D5) -> 34 | C5: =SUM(C6:C9) -> 20 | D5: 14 | E5: =F5+G5 -> 28 | F5: =SUM(F6:F9) -> 14 | G5: 14 | H5: =I5+J5 -> 6 | I5: =SUM(I6:I9) -> 6 | J5: 0
A6: Auditoría | B6: 3 | C6: =F6+I6 -> 1 | D6: 2 | E6: 2 | F6: 0 | G6: 2 | H6: 1 | I6: 1 | J6: 0
A7: Contabilidad | B7: 8 | C7: =F7+I7 -> 4 | D7: 4 | E7: 6 | F7: 2 | G7: 4 | H7: 2 | I7: 2 | J7: 0
A8: Finanzas | B8: 13 | C8: =F8+I8 -> 9 | D8: 4 | E8: 11 | F8: 7 | G8: 4 | H8: 2 | I8: 2 | J8: 0
A9: Impuestos | B9: 10 | C9: =F9+I9 -> 6 | D9: 4 | E9: 9 | F9: 5 | G9: 4 | H9: 1 | I9: 1 | J9: 0
A10: Economía y Sociedad | B10: 112 | C10: =SUM(C11:C15) -> 68 | D10: 44 | E10: 97 | F10: =SUM(F11:F15) -> 58 | G10: 39 | H10: 15 | I10: =SUM(I11:I15) -> 10 | J10: 5
A11: Ciencias Sociales y Jurídicas | B11: 13 | C11: =F11+I11 -> 7 | D11: 6 | E11: 11 | F11: 5 | G11: 6 | H11: 2 | I11: 2 | J11: 0
A12: Economía | B12: 19 | C12: =F12+I12 -> 16 | D12: 3 | E12: 16 | F12: 15 | G12: 1 | H12: 3 | I12: 1 | J12: 2
A13: Estudios Regionales (INESER) | B13: 31 | C13: =F13+I13 -> 15 | D13: 16 | E13: 28 | F13: 13 | G13: 15 | H13: 3 | I13: 2 | J13: 1
A14: Métodos Cuantitativos | B14: 24 | C14: =F14+I14 -> 16 | D14: 8 | E14: 20 | F14: 13 | G14: 7 | H14: 4 | I14: 3 | J14: 1
A15: Políticas Públicas | B15: 25 | C15: =F15+I15 -> 14 | D15: 11 | E15: 22 | F15: 12 | G15: 10 | H15: 3 | I15: 2 | J15: 1
A16: Gestión Empresarial | B16: 100 | C16: =SUM(C17:C21) -> 53 | D16: 47 | E16: 84 | F16: =SUM(F17:F21) -> 43 | G16: 41 | H16: 16 | I16: =SUM(I17:I21) -> 10 | J16: 6
A17: Administración | B17: 26 | C17: =F17+I17 -> 16 | D17: 10 | E17: 21 | F17: 12 | G17: 9 | H17: 5 | I17: 4 | J17: 1
A18: Mercadotecnia y Negocios Internacionales | B18: 21 | C18: =F18+I18 -> 13 | D18: 8 | E18: 17 | F18: 11 | G18: 6 | H18: 4 | I18: 2 | J18: 2
A19: Recursos Humanos | B19: 11 | C19: =F19+I19 -> 5 | D19: 6 | E19: 11 | F19: 5 | G19: 6 | H19: 0 | I19: 0 | J19: 0
A20: Sistemas de Información | B20: 27 | C20: =F20+I20 -> 16 | D20: 11 | E20: 22 | F20: 12 | G20: 10 | H20: 5 | I20: 4 | J20: 1
A21: Turismo, Recreación y Servicios | B21: 15 | C21: =F21+I21 -> 3 | D21: 12 | E21: 13 | F21: 3 | G21: 10 | H21: 2 | I21: 0 | J21: 2
A22: Total | B22: =B16+B10+B5 -> 246 | C22: 141 | D22: 105 | E22: 209 | F22: 115 | G22: 94 | H22: 37 | I22: 26 | J22: 11
A23: Fuente: Secretaría Académica / Coordinación de Planeación Corte: Diciembre, 2025 Nota: PROESDE "Programa de Estímulos al Desempeño Docente"

Sheet T-20
A1: Eje 1: Formación de Calidad para la Vida | Y1: Índice
A2: Profesorado beneficiados del PROESDE por Nivel, 2025 | U2: Tabla 20
A3: División / Departamento | B3: Total | C3: Beneficiarios | D3: Beneficiarios Condicionados | E3: Nivel I | G3: Nivel II | I3: Nivel III | K3: Nivel IV | M3: Nivel V | O3: Nivel VI | Q3: Nivel VII | S3: Nivel VIII | U3: Nivel IX
E4: Beneficiarios | F4: Beneficiarios Condicionados | G4: Beneficiarios | H4: Beneficiarios Condicionados | I4: Beneficiarios | J4: Beneficiarios Condicionados | K4: Beneficiarios | L4: Beneficiarios Condicionados | M4: Beneficiarios | N4: Beneficiarios Condicionados | O4: Beneficiarios | P4: Beneficiarios Condicionados | Q4: Beneficiarios | R4: Beneficiarios Condicionados | S4: Beneficiarios | T4: Beneficiarios Condicionados | U4: Beneficiarios | V4: Beneficiarios Condicionados
A5: Contaduría | B5: =C5+D5 -> 34 | C5: =E5+G5+I5+K5+M5+O5+Q5+S5+U5 -> 28 | D5: 6 | E5: 0 | F5: 0 | G5: 0 | H5: 0 | I5: 0 | J5: 0 | K5: 0 | L5: 0 | M5: 1 | N5: 0 | O5: 2 | P5: 0 | Q5: 7 | R5: 2 | S5: 13 | T5: 1 | U5: 5 | V5: 3
A6: Auditoría | B6: 3 | C6: =E6+G6+I6+K6+M6+O6+Q6+S6+U6 -> 2 | D6: 1 | E6: 0 | F6: 0 | G6: 0 | H6: 0 | I6: 0 | J6: 0 | K6: 0 | L6: 0 | M6: 0 | N6: 0 | O6: 0 | P6: 0 | Q6: 0 | R6: 0 | S6: 2 | T6: 0 | U6: 0 | V6: 1
A7: Contabilidad | B7: 8 | C7: =E7+G7+I7+K7+M7+O7+Q7+S7+U7 -> 6 | D7: 2 | E7: 0 | F7: 0 | G7: 0 | H7: 0 | I7: 0 | J7: 0 | K7: 0 | L7: 0 | M7: 0 | N7: 0 | O7: 0 | P7: 0 | Q7: 1 | R7: 0 | S7: 3 | T7: 1 | U7: 2 | V7: 1
A8: Finanzas | B8: 13 | C8: =E8+G8+I8+K8+M8+O8+Q8+S8+U8 -> 11 | D8: 2 | E8: 0 | F8: 0 | G8: 0 | H8: 0 | I8: 0 | J8: 0 | K8: 0 | L8: 0 | M8: 1 | N8: 0 | O8: 2 | P8: 0 | Q8: 2 | R8: 2 | S8: 5 | T8: 0 | U8: 1 | V8: 0
A9: Impuestos | B9: 10 | C9: =E9+G9+I9+K9+M9+O9+Q9+S9+U9 -> 9 | D9: 1 | E9: 0 | F9: 0 | G9: 0 | H9: 0 | I9: 0 | J9: 0 | K9: 0 | L9: 0 | M9: 0 | N9: 0 | O9: 0 | P9: 0 | Q9: 4 | R9: 0 | S9: 3 | T9: 0 | U9: 2 | V9: 1
A10: Economía y Sociedad | B10: 112 | C10: =E10+G10+I10+K10+M10+O10+Q10+S10+U10 -> 97 | D10: 15 | E10: 1 | F10: 0 | G10: 2 | H10: 0 | I10: 1 | J10: 0 | K10: 3 | L10: 0 | M10: 3 | N10: 0 | O10: 4 | P10: 0 | Q10: 14 | R10: 2 | S10: 31 | T10: 5 | U10: 38 | V10: 8
A11: Ciencias Sociales y Jurídicas | B11: 13 | C11: =E11+G11+I11+K11+M11+O11+Q11+S11+U11 -> 11 | D11: 2 | E11: 0 | F11: 0 | G11: 0 | H11: 0 | I11: 0 | J11: 0 | K11: 2 | L11: 0 | M11: 0 | N11: 0 | O11: 0 | P11: 0 | Q11: 3 | R11: 2 | S11: 4 | T11: 0 | U11: 2 | V11: 0
A12: Economía | B12: 19 | C12: =E12+G12+I12+K12+M12+O12+Q12+S12+U12 -> 16 | D12: 3 | E12: 0 | F12: 0 | G12: 1 | H12: 0 | I12: 0 | J12: 0 | K12: 0 | L12: 0 | M12: 0 | N12: 0 | O12: 2 | P12: 0 | Q12: 5 | R12: 0 | S12: 2 | T12: 1 | U12: 6 | V12: 2
A13: Estudios Regionales (INESER) | B13: 31 | C13: =E13+G13+I13+K13+M13+O13+Q13+S13+U13 -> 28 | D13: 3 | E13: 1 | F13: 0 | G13: 1 | H13: 0 | I13: 1 | J13: 0 | K13: 0 | L13: 0 | M13: 1 | N13: 0 | O13: 1 | P13: 0 | Q13: 2 | R13: 0 | S13: 8 | T13: 2 | U13: 13 | V13: 1
A14: Métodos Cuantitativos | B14: 24 | C14: =E14+G14+I14+K14+M14+O14+Q14+S14+U14 -> 20 | D14: 4 | E14: 0 | F14: 0 | G14: 0 | H14: 0 | I14: 0 | J14: 0 | K14: 0 | L14: 0 | M14: 1 | N14: 0 | O14: 1 | P14: 0 | Q14: 2 | R14: 0 | S14: 8 | T14: 1 | U14: 8 | V14: 3
A15: Políticas Públicas | B15: 25 | C15: =E15+G15+I15+K15+M15+O15+Q15+S15+U15 -> 22 | D15: 3 | E15: 0 | F15: 0 | G15: 0 | H15: 0 | I15: 0 | J15: 0 | K15: 1 | L15: 0 | M15: 1 | N15: 0 | O15: 0 | P15: 0 | Q15: 2 | R15: 0 | S15: 9 | T15: 1 | U15: 9 | V15: 2
A16: Gestión Empresarial | B16: 100 | C16: =E16+G16+I16+K16+M16+O16+Q16+S16+U16 -> 84 | D16: 16 | E16: 1 | F16: 0 | G16: 3 | H16: 0 | I16: 4 | J16: 0 | K16: 0 | L16: 0 | M16: 4 | N16: 1 | O16: 3 | P16: 2 | Q16: 14 | R16: 3 | S16: 25 | T16: 4 | U16: 30 | V16: 6
A17: Administración | B17: 26 | C17: =E17+G17+I17+K17+M17+O17+Q17+S17+U17 -> 21 | D17: 5 | E17: 1 | F17: 0 | G17: 1 | H17: 0 | I17: 0 | J17: 0 | K17: 0 | L17: 0 | M17: 1 | N17: 0 | O17: 1 | P17: 1 | Q17: 4 | R17: 1 | S17: 5 | T17: 1 | U17: 8 | V17: 2
A18: Mercadotecnia y Negocios Internacionales | B18: 21 | C18: =E18+G18+I18+K18+M18+O18+Q18+S18+U18 -> 17 | D18: 4 | E18: 0 | F18: 0 | G18: 0 | H18: 0 | I18: 1 | J18: 0 | K18: 0 | L18: 0 | M18: 1 | N18: 0 | O18: 1 | P18: 1 | Q18: 1 | R18: 0 | S18: 3 | T18: 2 | U18: 10 | V18: 1
A19: Recursos Humanos | B19: 11 | C19: =E19+G19+I19+K19+M19+O19+Q19+S19+U19 -> 11 | D19: 0 | E19: 0 | F19: 0 | G19: 0 | H19: 0 | I19: 0 | J19: 0 | K19: 0 | L19: 0 | M19: 0 | N19: 0 | O19: 0 | P19: 0 | Q19: 3 | R19: 0 | S19: 4 | T19: 0 | U19: 4 | V19: 0
A20: Sistemas de Información | B20: 27 | C20: =E20+G20+I20+K20+M20+O20+Q20+S20+U20 -> 22 | D20: 5 | E20: 0 | F20: 0 | G20: 0 | H20: 0 | I20: 3 | J20: 0 | K20: 0 | L20: 0 | M20: 0 | N20: 0 | O20: 0 | P20: 0 | Q20: 2 | R20: 2 | S20: 10 | T20: 1 | U20: 7 | V20: 2
A21: Turismo, Recreación y Servicios | B21: 15 | C21: =E21+G21+I21+K21+M21+O21+Q21+S21+U21 -> 13 | D21: 2 | E21: 0 | F21: 0 | G21: 2 | H21: 0 | I21: 0 | J21: 0 | K21: 0 | L21: 0 | M21: 2 | N21: 1 | O21: 1 | P21: 0 | Q21: 4 | R21: 0 | S21: 3 | T21: 0 | U21: 1 | V21: 1
A22: Total | B22: 246 | C22: =E22+G22+I22+K22+M22+O22+Q22+S22+U22 -> 209 | D22: 37 | E22: =E16+E10+E5 -> 2 | F22: 0 | G22: 5 | H22: 0 | I22: 5 | J22: 0 | K22: 3 | L22: 0 | M22: 8 | N22: 1 | O22: 9 | P22: 2 | Q22: 35 | R22: 7 | S22: 69 | T22: 10 | U22: 73 | V22: 17
A23: Fuente: Secretaría Académica / Coordinación de Planeación Corte: Diciembre, 2025 Nota: PROESDE "Programa de Estímulos al Desempeño Docente"

Sheet T-21
A1: Eje 1: Formación de Calidad para la Vida
A2: Estudiantes de movilidad entrante por nivel educativo, continente y país de origen, 2025 | D2: Tabla 21 | F2: Índice
A3: Continente / País | B3: Total | C3: Sexo
C4: Hombres | D4: Mujeres
A5: América | B5: =SUM(B6:B11) -> 92 | C5: 29 | D5: 63
A6: Argentina | B6: =C6+D6 -> 2 | C6: 0 | D6: 2
A7: Bolivia | B7: 4 | C7: 1 | D7: 3
A8: Chile | B8: 2 | C8: 1 | D8: 1
A9: Colombia | B9: 23 | C9: 9 | D9: 14
A10: México | B10: 57 | C10: 18 | D10: 39
A11: Perú | B11: 4 | C11: 0 | D11: 4
A12: Asia | B12: 3 | C12: =SUM(C13:C14) -> 1 | D12: 2
A13: Japón | B13: =C13+D13 -> 1 | C13: 1 | D13: 0
A14: Taiwán | B14: 2 | C14: 0 | D14: 2
A15: Europa | B15: =SUM(B16:B24) -> 73 | C15: =SUM(C16:C20) -> 26 | D15: =SUM(D16:D24) -> 44
A16: Alemania | B16: =C16+D16 -> 14 | C16: 7 | D16: 7
A17: Austria | B17: 6 | C17: 2 | D17: 4
A18: Bélgica | B18: 1 | C18: 0 | D18: 1
A19: España | B19: 5 | C19: 2 | D19: 3
A20: Francia | B20: 39 | C20: 15 | D20: 24
A21: Italia | B21: 1 | C21: 1 | D21: 0
A22: Suiza | B22: 2 | C22: 1 | D22: 1
A23: Países Bajos | B23: 2 | C23: 1 | D23: 1
A24: Reino Unido | B24: 3 | C24: 0 | D24: 3
A25: Total | B25: =B15+B12+B5 -> 168 | C25: 56 | D25: 109
A26: Fuente: Secretaría Académica / Programa Institucional de Internacionalización CUCEA Global Corte: Diciembre, 2025 Nota:

Sheet T-22
A1: Eje 1: Formación de Calidad para la Vida | F1: Índice
A2: Estudiantes de movilidad saliente por nivel educativo, continente y país de destino, 2025 | D2: Tabla 22
A3: Continente /País | B3: Total | C3: Presencial
C4: Hombres | D4: Mujeres
A5: Licenciatura | B5: =B6+B15+B19 -> 161 | C5: 60 | D5: 101
A6: América | B6: =SUM(B7:B14) -> 47 | C6: 21 | D6: 26
A7: Argentina | B7: =C7+D7 -> 17 | C7: 9 | D7: 8
A8: Brasil | B8: 0 | C8: 0 | D8: 0
A9: Canadá | B9: 2 | C9: 1 | D9: 1
A10: Chile | B10: 6 | C10: 1 | D10: 5
A11: Colombia | B11: 15 | C11: 6 | D11: 9
A12: Costa Rica | B12: 1 | C12: 1 | D12: 0
A13: México | B13: 5 | C13: 2 | D13: 3
A14: Perú | B14: 1 | C14: 1 | D14: 0
A15: Asia | B15: =SUM(B16:B18) -> 10 | C15: 1 | D15: 9
A16: Corea del Sur | B16: =C16+D16 -> 3 | C16: 0 | D16: 3
A17: Japón | B17: 5 | C17: 1 | D17: 4
A18: Taiwán | B18: 2 | C18: 0 | D18: 2
A19: Europa | B19: =SUM(B20:B34) -> 104 | C19: 38 | D19: 66
A20: Alemania | B20: =C20+D20 -> 11 | C20: 3 | D20: 8
A21: Austria | B21: 4 | C21: 1 | D21: 3
A22: Bélgica | B22: 2 | C22: 1 | D22: 1
A23: Croacia | B23: 1 | C23: 0 | D23: 1
A24: España | B24: 29 | C24: 14 | D24: 15
A25: Finlandia | B25: 3 | C25: 2 | D25: 1
A26: Francia | B26: 18 | C26: 3 | D26: 15
A27: Italia | B27: 10 | C27: 4 | D27: 6
A28: Países Bajos | B28: 5 | C28: 3 | D28: 2
A29: Portugal | B29: 1 | C29: 0 | D29: 1
A30: Polonia | B30: 4 | C30: 3 | D30: 1
A31: Reino Unido | B31: 5 | C31: 1 | D31: 4
A32: República Checa | B32: 3 | C32: 0 | D32: 3
A33: Rumania | B33: 4 | C33: 2 | D33: 2
A34: Suiza | B34: 4 | C34: 1 | D34: 3
A35: Posgrado | B35: =B36+B41 -> 25 | C35: 10 | D35: 15
A36: América | B36: =SUM(B37:B40) -> 13 | C36: 6 | D36: 7
A37: Perú | B37: =C37+D37 -> 2 | C37: 1 | D37: 1
A38: Colombia | B38: 5 | C38: 3 | D38: 2
A39: Chile | B39: 1 | C39: 0 | D39: 1
A40: México | B40: 5 | C40: 2 | D40: 3
A41: Europa | B41: =SUM(B42:B47) -> 12 | C41: 4 | D41: 8
A42: Alemania | B42: =C42+D42 -> 2 | C42: 1 | D42: 1
A43: Bélgica | B43: 0 | C43: 0 | D43: 0
A44: Italia | B44: 1 | C44: 0 | D44: 1
A45: España | B45: 7 | C45: 2 | D45: 5
A46: Francia | B46: 1 | C46: 1 | D46: 0
A47: Suiza | B47: 1 | C47: 0 | D47: 1
A48: Total | B48: =B5+B35 -> 186 | C48: 70 | D48: 116
A49: Fuente: Secretaría Académica / Programa Institucional de Internacionalización CUCEA Global Corte: Diciembre, 2025

Sheet T-23
A1: Eje 1: Formación de Calidad para la Vida
A2: Matrícula de estudiantes que presentaron movilidad académica (entrante), 2025 | F2: Tabla 23 | H2: Índice
A3: 2025 | B3: Estudiantes visitantes (entrante)
B4: Total | C4: Nacional | D4: Extranjero | E4: Presencial | F4: Virtual
A5: Pregrado | B5: =SUM(C5:D5) -> 148 | C5: =SUM(C6:C7) -> 57 | D5: 91 | E5: 143 | F5: 5
A6: Técnico Superior Universitario | B6: 5 | C6: 0 | D6: 5 | E6: 5 | F6: 0
A7: Licenciatura | B7: 143 | C7: 57 | D7: 86 | E7: 138 | F7: 5
A8: Posgrado | B8: 20 | C8: =SUM(C9:C10) -> 0 | D8: 20 | E8: 20 | F8: 0
A9: Maestría | B9: 20 | C9: 0 | D9: 20 | E9: 20 | F9: 0
A10: Doctorado | B10: =SUM(C10:F10) -> 0 | C10: 0 | D10: 0 | E10: 0 | F10: 0
A11: Total | B11: 168 | C11: =C8+C5 -> 57 | D11: 111 | E11: 163 | F11: 5
A12: Fuente: Secretaría Académica / Servicios Académicos Corte: Diciembre, 2025 Nota: En el CUCEA la movilidad en el extranjero predomina. Estos datos solo incluyen el intercambio semestral por crédito; no obstante, también hay programas de estancias cortas, profesionalizantes y de internacionalización en casa

Sheet T-24
A1: Eje 1: Formación de Calidad para la Vida
A2: Matrícula de estudiantes que presentaron movilidad académica (Saliente), 2025 | D2: Tabla 24 | F2: Índice
A3: 2025 | B3: Total | C3: Estudiantes del CUCEA (saliente)
C4: Nacional | D4: Extranjero
A5: Técnico Superior Universitario | B5: =SUM(B6) -> 0 | C5: 0 | D5: 0
A6: Tecnologías de la Información | B6: =C6+D6 -> 0 | C6: 0 | D6: 0
A7: Licenciatura | B7: =C7+D7 -> 161 | C7: =SUM(C8:C23) -> 6 | D7: 155
A8: Administración | B8: =C8+D8 -> 4 | C8: 0 | D8: 4
A9: Administración Financiera y Sistemas | B9: 22 | C9: 0 | D9: 22
A10: Administración Gubernamental y Políticas Públicas | B10: 0 | C10: 0 | D10: 0
A11: Auditoría y Contabilidad Gubernamental | B11: 0 | C11: 0 | D11: 0
A12: Contaduría Pública | B12: 7 | C12: 0 | D12: 7
A13: Economía | B13: 2 | C13: 0 | D13: 2
A14: Gestión de Negocios Gastronómicos | B14: 6 | C14: 0 | D14: 6
A15: Gestión y Economía Ambiental | B15: 1 | C15: 0 | D15: 1
A16: Ingeniería en Negocios | B16: 14 | C16: 0 | D16: 14
A17: Mercadotecnia | B17: 28 | C17: 0 | D17: 28
A18: Mercadotecnia Digital | B18: 5 | C18: 0 | D18: 5
A19: Negocios Internacionales | B19: 56 | C19: 5 | D19: 51
A20: Recursos Humanos | B20: 0 | C20: 0 | D20: 0
A21: Relaciones Públicas y Comunicación | B21: 11 | C21: 1 | D21: 10
A22: Tecnologías de la Información | B22: 1 | C22: 0 | D22: 1
A23: Turismo | B23: 4 | C23: 0 | D23: 4
A24: Posgrado | B24: =B25+B44 -> 25 | C24: 6 | D24: 19
A25: Maestría | B25: =SUM(B26:B43) -> 18 | C25: 0 | D25: 18
A26: Administración de Negocios | B26: =C26+D26 -> 7 | C26: 0 | D26: 7
A27: Ciencia de los Datos | B27: 0 | C27: 0 | D27: 0
A28: Dirección de Mercadotecnia | B28: 0 | C28: 0 | D28: 0
A29: Economía | B29: 0 | C29: 0 | D29: 0
A30: Educación Superior Internacional | B30: 1 | C30: 0 | D30: 1
A31: Estudios Fiscales | B31: 0 | C31: 0 | D31: 0
A32: Finanzas | B32: 2 | C32: 0 | D32: 2
A33: Gestión de la Seguridad y Salud en el Trabajo | B33: 0 | C33: 0 | D33: 0
A34: Gestión y Políticas de la Educación Superior | B34: 0 | C34: 0 | D34: 0
A35: Gobierno Electrónico | B35: 0 | C35: 0 | D35: 0
A36: Innovación Social y Gestión del Bienestar | B36: 4 | C36: 0 | D36: 4
A37: Negocios Internacionales | B37: 0 | C37: 0 | D37: 0
A38: Negocios y Estudios Económicos | B38: 1 | C38: 0 | D38: 1
A39: Políticas Públicas | B39: 0 | C39: 0 | D39: 0
A40: Relaciones Económicas Internacionales y Cooperación | B40: 0 | C40: 0 | D40: 0
A41: Resolución de Conflictos | B41: 1 | C41: 0 | D41: 1
A42: Tecnologías de Información | B42: 0 | C42: 0 | D42: 0
A43: Tecnologías para el Aprendizaje | B43: 2 | C43: 0 | D43: 2
A44: Doctorado | B44: 7 | C44: =SUM(C45:C51) -> 6 | D44: 1
A45: Ciencias de la Administración | B45: =C45+D45 -> 0 | C45: 0 | D45: 0
A46: Estudios Económicos | B46: 0 | C46: 0 | D46: 0
A47: Estudios Fiscales | B47: 0 | C47: 0 | D47: 0
A48: Gestión de la Educación Superior | B48: 2 | C48: 2 | D48: 0
A49: Innovación y Sustentabilidad en los Negocios | B49: 5 | C49: 4 | D49: 1
A50: Políticas Públicas y Desarrollo | B50: 0 | C50: 0 | D50: 0
A51: Tecnologías de Información | B51: 0 | C51: 0 | D51: 0
A52: Total | B52: =B24+B7+B5 -> 186 | C52: 12 | D52: 174
A53: Fuente: Secretaría Académica / Servicios Académicos Corte: Diciembre, 2025 Nota: En el CUCEA la movilidad en el extranjero predomina. Estos datos solo incluyen el intercambio semestral por crédito; no obstante, también hay programas de estancias cortas, profesionalizantes y de internacionalización en casa

Sheet T-25
A1: Eje 1: Formación de Calidad para la Vida | K1: Índice
A2: Talleres Abiertos (sin valor curricular) ofrecidos por el PALE, 2025 | I2: Tabla 25
A3: Talleres | B3: Total 2025 | D3: 2025-A | F3: 2025-V | H3: 2025-B
B4: Talleres | C4: Estudiantes | D4: Talleres | E4: Estudiantes | F4: Talleres | G4: Estudiantes | H4: Talleres | I4: Estudiantes
A5: Alemán | B5: =D5+F5+H5 -> 6 | C5: 37 | D5: 3 | E5: 23 | F5: 0 | G5: 0 | H5: 3 | I5: 14
A6: Chino Mandarín | B6: =D6+F6+H6 -> 10 | C6: 78 | D6: 5 | E6: 46 | F6: 1 | G6: 4 | H6: 4 | I6: 28
A7: Coreano | B7: =D7+F7+H7 -> 0 | C7: 0 | D7: 0 | E7: 0 | F7: 0 | G7: 0 | H7: 0 | I7: 0
A8: Francés | B8: =D8+F8+H8 -> 31 | C8: 238 | D8: 12 | E8: 114 | F8: 5 | G8: 21 | H8: 14 | I8: 103
A9: Inglés | B9: =D9+F9+H9 -> 51 | C9: 212 | D9: 20 | E9: 97 | F9: 10 | G9: 41 | H9: 21 | I9: 74
A10: Italiano | B10: =D10+F10+H10 -> 30 | C10: 320 | D10: 15 | E10: 171 | F10: 3 | G10: 6 | H10: 12 | I10: 143
A11: Japonés | B11: =D11+F11+H11 -> 3 | C11: 12 | D11: 2 | E11: 9 | F11: 0 | G11: 0 | H11: 1 | I11: 3
A12: Lenguas Ordinarias | B12: =D12+F12+H12 -> 0 | C12: 0 | D12: 0 | E12: 0 | F12: 0 | G12: 0 | H12: 0 | I12: 0
A13: Portugués | B13: =D13+F13+H13 -> 2 | C13: 3 | D13: 1 | E13: 1 | F13: 0 | G13: 0 | H13: 1 | I13: 2
A14: Ruso | B14: =D14+F14+H14 -> 0 | C14: 0 | D14: 0 | E14: 0 | F14: 0 | G14: 0 | H14: 0 | I14: 0
A15: Total | B15: =SUM(B5:B14) -> 133 | C15: 900 | D15: 58 | E15: 461 | F15: 19 | G15: 72 | H15: 56 | I15: 367
A16: Fuente: Secretaría Académica / Programa Institucional de Internacionalización CUCEA Global Corte: Diciembre, 2025 Nota:

Sheet T-26
A1: Eje 1: Formación de Calidad para la Vida | K1: Índice
A2: Talleres de idiomas realizados en el PALE (con valor curricular), 2025 | I2: Tabla 26
A3: Idioma | B3: Total 2025 | D3: 2025-A | F3: 2025-V | H3: 2025-B
B4: Grupos | C4: Estudiantes | D4: Grupos | E4: Estudiantes | F4: Grupos | G4: Estudiantes | H4: Grupos | I4: Estudiantes
A5: Español para extranjeros | B5: =+D5+F5+H5 -> 8 | C5: 118 | D5: 4 | E5: 31 | F5: 0 | G5: 0 | H5: 4 | I5: 87
A6: Francés | B6: =+D6+F6+H6 -> 77 | C6: 1556 | D6: 36 | E6: 747 | F6: 1 | G6: 10 | H6: 40 | I6: 799
A7: Inglés | B7: =+D7+F7+H7 -> 463 | C7: 7082 | D7: 199 | E7: 2954 | F7: 6 | G7: 80 | H7: 258 | I7: 4048
A8: Inglés en línea | B8: =+D8+F8+H8 -> 102 | C8: 1891 | D8: 52 | E8: 828 | F8: 0 | G8: 0 | H8: 50 | I8: 1063
A9: Italiano | B9: =+D9+F9+H9 -> 36 | C9: 654 | D9: 24 | E9: 430 | F9: 0 | G9: 0 | H9: 12 | I9: 224
A10: Japonés | B10: =+D10+F10+H10 -> 8 | C10: 104 | D10: 4 | E10: 50 | F10: 0 | G10: 0 | H10: 4 | I10: 54
A11: Total | B11: =SUM(B5:B10) -> 694 | C11: 11405 | D11: 319 | E11: 5040 | F11: 7 | G11: 90 | H11: 368 | I11: 6275
A12: Fuente: Secretaría Académica / Programa Institucional de Internacionalización CUCEA Global Corte: Diciembre, 2025 Nota: Son materias CON VALOR CURRICULAR. Inglés en línea = modalidad B-learning.

Sheet T-27
A1: Eje 1: Formación de Calidad para la Vida | E1: Índice
A2: Talleres de formación integral, 2025 | C2: Tabla 27
A3: Tema | B3: Talleres | C3: Estudiantes
A4: Arte y Cultura | B4: 91 | C4: 1240
A5: Interculturalidad | B5: 4 | C5: 66
A6: Cultura de Paz | B6: 33 | C6: 508
A7: Deportes | B7: 82 | C7: 1642
A8: Emprendimiento e Innovación | B8: 12 | C8: 262
A9: Salud Integral | B9: 6 | C9: 76
A10: CUCEA Sostenible | B10: 8 | C10: 128
A11: Talleres extraordinarios | B11: 45 | C11: 1141
A12: Inclusión y Equidad | B12: 2 | C12: 65
A13: Total | B13: =SUM(B4:B12) -> 283 | C13: 5128
A14: Fuente: Secretaría Académica / Coordinación de Extensión Corte: Diciembre, 2025

Sheet T-28
A1: Eje 1: Formación de Calidad para la Vida | F1: Índice
A2: Egreso por programa educativo y sexo, 2025 | D2: Tabla 28
A3: Nivel Educativo / Programa Educativo | B3: Total | C3: Hombres | D3: Mujeres
A4: Técnico Superior Universitario | B4: =B5 -> 26 | C4: 11 | D4: 15
A5: Tecnologías de la Información | B5: =C5+D5 -> 26 | C5: 11 | D5: 15
A6: Licenciatura | B6: =C6+D6 -> 3444 | C6: =SUM(C7:C22) -> 1320 | D6: 2124
A7: Administración | B7: =C7+D7 -> 619 | C7: 242 | D7: 377
A8: Administración Financiera y Sistemas | B8: 300 | C8: 158 | D8: 142
A9: Administración Gubernamental y Políticas Públicas | B9: 52 | C9: 30 | D9: 22
A10: Auditoría y Contabilidad Gubernamental | B10: 0 | C10: 0 | D10: 0
A11: Contaduría Pública | B11: 614 | C11: 260 | D11: 354
A12: Economía | B12: 67 | C12: 45 | D12: 22
A13: Gestión de Negocios Gastronómicos | B13: 114 | C13: 31 | D13: 83
A14: Gestión y Economía Ambiental | B14: 58 | C14: 21 | D14: 37
A15: Ingeniería en Negocios | B15: 62 | C15: 28 | D15: 34
A16: Mercadotecnia | B16: 399 | C16: 141 | D16: 258
A17: Mercadotecnia Digital | B17: 26 | C17: 8 | D17: 18
A18: Negocios Internacionales | B18: 559 | C18: 207 | D18: 352
A19: Recursos Humanos | B19: 229 | C19: 37 | D19: 192
A20: Relaciones Públicas y Comunicación | B20: 86 | C20: 19 | D20: 67
A21: Tecnologías de la información | B21: 80 | C21: 62 | D21: 18
A22: Turismo | B22: 179 | C22: 31 | D22: 148
A23: Posgrado | B23: =B24+B46 -> 161 | C23: 98 | D23: 63
A24: Maestría | B24: =SUM(B25:B45) -> 126 | C24: 80 | D24: 46
A25: Administración de Negocios | B25: =SUM(C25+D25) -> 13 | C25: 8 | D25: 5
A26: Auditoría | B26: 1 | C26: 0 | D26: 1
A27: Ciencia de los Datos | B27: 4 | C27: 4 | D27: 0
A28: Dirección de Mercadotecnia | B28: 8 | C28: 3 | D28: 5
A29: Economía | B29: 7 | C29: 6 | D29: 1
A30: Educación Superior Internacional | B30: 5 | C30: 2 | D30: 3
A31: Estudios de las Violencias de Género | B31: 0 | C31: 0 | D31: 0
A32: Estudios Fiscales | B32: 6 | C32: 4 | D32: 2
A33: Estudios sobre Juventudes | B33: 0 | C33: 0 | D33: 0
A34: Finanzas | B34: 28 | C34: 19 | D34: 9
A35: Gestión de la Seguridad y Salud en el Trabajo | B35: 7 | C35: 4 | D35: 3
A36: Gestión y Políticas de la Educación Superior | B36: 0 | C36: 0 | D36: 0
A37: Gobierno Electrónico | B37: 1 | C37: 1 | D37: 0
A38: Innovación Social y Gestión del Bienestar | B38: 3 | C38: 3 | D38: 0
A39: Negocios Internacionales | B39: 1 | C39: 0 | D39: 1
A40: Negocios y Estudios Económicos | B40: 3 | C40: 1 | D40: 2
A41: Políticas Públicas | B41: 4 | C41: 2 | D41: 2
A42: Relaciones Económicas Internacionales y Cooperación | B42: 3 | C42: 1 | D42: 2
A43: Resolución de Conflictos | B43: 6 | C43: 2 | D43: 4
A44: Tecnologías de Información | B44: 16 | C44: 13 | D44: 3
A45: Tecnologías para el Aprendizaje | B45: 10 | C45: 7 | D45: 3
A46: Doctorado | B46: 35 | C46: =SUM(C47:C54) -> 18 | D46: 17
A47: Ciencias de la Administración | B47: =SUM(C47+D47) -> 4 | C47: 1 | D47: 3
A48: Estudios Económicos | B48: 6 | C48: 3 | D48: 3
A49: Estudios Fiscales | B49: 4 | C49: 3 | D49: 1
A50: Gestión de la Educación Superior | B50: 10 | C50: 4 | D50: 6
A51: Gestión de Paz y Prevención de las Violencias | B51: 0 | C51: 0 | D51: 0
A52: Innovación y Sustentabilidad en los Negocios | B52: 0 | C52: 0 | D52: 0
A53: Políticas Públicas y Desarrollo | B53: 2 | C53: 2 | D53: 0
A54: Tecnologías de Información | B54: 9 | C54: 5 | D54: 4
A55: Total | B55: =C55+D55 -> 3631 | C55: =C6+C23+C4 -> 1429 | D55: 2202
A56: Fuente: Elaboración propia a partir de los datos proporcionados por la Coordinación General de Planeación y Evaluación. Corte: Diciembre, 2025

Sheet G-1
A1: Eje 1: Formación de Calidad para la Vida | E1: Índice
A2: Egreso de licenciatura por sexo, 2019-2025 | C2: Gráfica 1
A3: Año | B3: Hombres | C3: Mujeres
A4: 2019 | B4: 839 | C4: 1122
A5: 2020 | B5: 1042 | C5: 1525
A6: 2021 | B6: 884 | C6: 1380
A7: 2022 | B7: 1271 | C7: 1983
A8: 2023 | B8: 1186 | C8: 1822
A9: 2024 | B9: 1325 | C9: 1982
A10: 2025 | B10: 1429 | C10: 2202
A11: Fuente: Elaboración propia a partir de los datos proporcionados por la Coordinación General de Planeación y Evaluación. Corte: Diciembre, 2025
E18: Fuente: Elaboración propia a partir de los datos proporcionados por la Coordinación General de Planeación y Evaluación. Corte: Diciembre, 2025

Sheet T-29
A1: Eje 1: Formación de Calidad para la Vida | G1: Índice
A2: Resultados de la aplicación de EGEL, 2025 | E2: Tabla 29
A3: Licenciatura en | B3: Sustentantes | C3: Sin Testimonio (ST) | D3: Testimonio de Desempeño Satisfactorio (TDS) | E3: Testimonio de Desempeño Sobresaliente (TDSS)
A4: Administración | B4: =SUM(C4:E4) -> 471 | C4: 107 | D4: 343 | E4: 21
A5: Administración Financiera y Sistemas | B5: 335 | C5: 65 | D5: 259 | E5: 11
A6: Administración Gubernamental y Políticas Públicas | B6: 64 | C6: 28 | D6: 34 | E6: 2
A7: Contaduría Pública | B7: 567 | C7: 145 | D7: 378 | E7: 44
A8: Economía | B8: 92 | C8: 75 | D8: 17 | E8: 0
A9: Gestión de Negocios Gastronómicos | B9: 38 | C9: 18 | D9: 20 | E9: 0
A10: Mercadotecnia | B10: 414 | C10: 58 | D10: 320 | E10: 36
A11: Negocios Internacionales | B11: 613 | C11: 141 | D11: 437 | E11: 35
A12: Recursos Humanos | B12: 167 | C12: 61 | D12: 104 | E12: 2
A13: Tecnologías de la Información | B13: 75 | C13: 18 | D13: 53 | E13: 4
A14: Turismo | B14: 159 | C14: 23 | D14: 126 | E14: 10
A15: Relaciones Públicas y Comunicación | B15: 67 | C15: 17 | D15: 47 | E15: 3
A16: Mercadotecnia Digital | B16: 9 | C16: 1 | D16: 7 | E16: 1
A17: Total | B17: =SUM(B4:B16) -> 3071 | C17: 757 | D17: 2145 | E17: 169
A18: Fuente: Secretaría Académica / Coordinación de Servicios Académicos / Unidad de CENEVAL Institucional Corte: Diciembre, 2025

Sheet T-30
A1: Eje 1: Formación de Calidad para la Vida | F1: Índice
A2: Nivel de Rendimiento Académico en el EGEL, 2025 | C2: Tabla 30
A3: Licenciatura | B3: Nivel de Rendimiento Académico | C3: Refrenda
A4: Administración Financiera y Sistemas | B4: 1 PLUS | C4: 6a. ocasión
A5: Administración | B5: 1 | C5: 5a. ocasión
A6: Negocios Internacionales | B6: 1 | C6: 5a. ocasión
A7: Tecnologías de la Información | B7: 1 | C7: 5a. ocasión
A8: Turismo | B8: 1 | C8: 5a. ocasión
A9: Administración Gubernamental y Políticas Públicas | B9: 2 | C9: 2a. ocasión
A10: Contaduría Pública | B10: 2 | C10: 4a. ocasión
A11: Economía | B11: 2 | C11: 2a. ocasión
A12: Mercadotecnia | B12: 2 | C12: 5a. ocasión
A13: Recursos Humanos | B13: 2 | C13: 5a. ocasión
A14: Fuente: Secretaría Académica / Coordinación de Servicios Académicos / Unidad de Ceneval Institucional Corte: Diciembre, 2025

Sheet T-31
A1: Eje 1: Formación de Calidad para la Vida | G1: Índice
A2: Educación continua por áreas temáticas, modalidad, participantes y sexo, 2025 | E2: Tabla 31
A3: Tema | B3: Actividades | C3: Total | D3: Sexo
D4: Hombres | E4: Mujeres
A5: Artes y humanidades | B5: 3 | C5: =D5+E5 -> 198 | D5: 104 | E5: 94
A6: Administración y negocios | B6: 22 | C6: 856 | D6: 462 | E6: 394
A7: Ciencias de computación | B7: 0 | C7: 0 | D7: 0 | E7: 0
A8: Ciencias naturales, matemáticas y estadísticas | B8: 15 | C8: 746 | D8: 341 | E8: 405
A9: Ciencias Sociales y Derecho | B9: 75 | C9: 3774 | D9: 1672 | E9: 2102
A10: Desarrollo personal | B10: 2 | C10: 42 | D10: 20 | E10: 22
A11: Educación | B11: 12 | C11: 116 | D11: 54 | E11: 62
A12: Género | B12: 1 | C12: 11 | D12: 3 | E12: 8
A13: Gestión y administración pública | B13: 1 | C13: 285 | D13: 80 | E13: 205
A14: Ingeniería, manufactura y construcción | B14: 1 | C14: 8 | D14: 3 | E14: 5
A15: Negocios | B15: 27 | C15: 782 | D15: 338 | E15: 444
A16: Salud y bienestar | B16: 4 | C16: 113 | D16: 40 | E16: 73
A17: Tecnologías de la información y comunicación | B17: 2 | C17: 20 | D17: 9 | E17: 11
A18: Total | B18: =SUM(B5:B17) -> 165 | C18: 6951 | D18: 3126 | E18: 3825
A19: Fuente: Coordinación de Planeación a partir de la información proporcionada por la División de Contaduría / División de Economía y Sociedad / División de Gestión Empresarial / Departamentos Corte: Diciembre, 2025

Sheet T-32
A1: Eje 2: Generar Conocimientos | G1: Índice
A2: Empresas atendidas por el Hospital PyME, 2025 | E2: Tabla 32
A3: Municipio | B3: Total | C3: Tamaño
C4: Micro y pequeña empresa | D4: Mediana empresa | E4: Gran empresa
A5: Guadalajara | B5: =SUM(C5:E5) -> 58 | C5: 44 | D5: 14 | E5: 0
A6: San Pedro Tlaquepaque | B6: 3 | C6: 2 | D6: 1 | E6: 0
A7: Tlajomulco de Zúñiga | B7: 10 | C7: 7 | D7: 3 | E7: 0
A8: Zapopan | B8: 58 | C8: 53 | D8: 5 | E8: 0
A9: Otros | B9: 55 | C9: 48 | D9: 6 | E9: 1
A10: Total | B10: =SUM(B5:B9) -> 184 | C10: 154 | D10: 29 | E10: 1
A11: Fuente: Instituto para el Desarrollo y la Innovación de la Tecnología en la Pequeña y Mediana Empresa Corte: Diciembre, 2025

Sheet T-33
A1: Eje 2: Generar Conocimientos | D1: Índice
A2: Empresas atendidas en el Hospital PyME por giro, 2025 | B2: Tabla 33
A3: Giro de la empresa | B3: Empresas
A4: Comercio | B4: 85
A5: Manufactura | B5: 24
A6: Servicios | B6: 75
A7: Total | B7: =SUM(B4:B6) -> 184
A8: Fuente: Instituto para el Desarrollo y la Innovación de la Tecnología en la Pequeña y Mediana Empresa Corte: Diciembre, 2025

Sheet T-34
A1: Eje 2: Generar Conocimientos | I1: Índice
A2: Resultados de la convocatoria 2025 del Sistema Nacional de Investigadoras e Investigadores (SNII) | G2: Tabla 34
A3: División/Departamento | B3: Total | C3: Nivel de Resultado
C4: Candidato | D4: Nivel I | E4: Nivel II | F4: Nivel III | G4: Eméritos
A5: División de Contaduría | B5: =SUM(B6:B9) -> 3 | C5: 0 | D5: 3 | E5: 0 | F5: 0 | G5: 0
A6: Auditoría | B6: =SUM(C6:G6) -> 0 | C6: 0 | D6: 0 | E6: 0 | F6: 0 | G6: 0
A7: Contabilidad | B7: 1 | C7: 0 | D7: 1 | E7: 0 | F7: 0 | G7: 0
A8: Finanzas | B8: 1 | C8: 0 | D8: 1 | E8: 0 | F8: 0 | G8: 0
A9: Impuestos | B9: 1 | C9: 0 | D9: 1 | E9: 0 | F9: 0 | G9: 0
A10: División de Economía y Sociedad | B10: 20 | C10: =SUM(C11:C15) -> 5 | D10: 11 | E10: 1 | F10: 1 | G10: 2
A11: Ciencias Sociales y Jurídicas | B11: =SUM(C11:G11) -> 1 | C11: 0 | D11: 1 | E11: 0 | F11: 0 | G11: 0
A12: Economía | B12: 2 | C12: 1 | D12: 1 | E12: 0 | F12: 0 | G12: 0
A13: Estudios Regionales - INESER | B13: 3 | C13: 0 | D13: 1 | E13: 1 | F13: 0 | G13: 1
A14: Métodos Cuantitativos | B14: 8 | C14: 2 | D14: 5 | E14: 0 | F14: 1 | G14: 0
A15: Políticas Públicas | B15: 6 | C15: 2 | D15: 3 | E15: 0 | F15: 0 | G15: 1
A16: División de Gestión Empresarial | B16: 16 | C16: =SUM(C17:C21) -> 4 | D16: 11 | E16: 1 | F16: 0 | G16: 0
A17: Administración | B17: =SUM(C17:G17) -> 7 | C17: 2 | D17: 5 | E17: 0 | F17: 0 | G17: 0
A18: Mercadotecnia y Negocios Internacionales | B18: 3 | C18: 0 | D18: 3 | E18: 0 | F18: 0 | G18: 0
A19: Recursos Humanos | B19: 1 | C19: 0 | D19: 0 | E19: 1 | F19: 0 | G19: 0
A20: Sistemas de Información | B20: 4 | C20: 1 | D20: 3 | E20: 0 | F20: 0 | G20: 0
A21: Turismo, Recreación y Servicios | B21: 1 | C21: 1 | D21: 0 | E21: 0 | F21: 0 | G21: 0
A22: Total | B22: =+B5+B10+B16 -> 39 | C22: 9 | D22: 25 | E22: 2 | F22: 1 | G22: 2
A23: Fuente: Secretaría Académica / Coordinación de Investigación Corte: Diciembre, 2025

Sheet T-35
A1: Eje 2: Generar Conocimientos | P1: Índice
A2: Profesorado de tiempo completo miembros del Sistema Nacional de Investigadoras e Investigadores (SNII), 2019-2025 | L2: Tabla 35
A3: Año | B3: Total | C3: Candidatos | E3: Nivel I | G3: Nivel II | I3: Nivel III | K3: Emérito
C4: Hombres | D4: Mujeres | E4: Hombres | F4: Mujeres | G4: Hombres | H4: Mujeres | I4: Hombres | J4: Mujeres | K4: Hombres | L4: Mujeres
A5: 2022 | B5: =SUM(C5:L5) -> 135 | C5: 25 | D5: 13 | E5: 53 | F5: 26 | G5: 9 | H5: 1 | I5: 7 | J5: 1 | K5: 0 | L5: 0
A6: 2023 | B6: 172 | C6: 28 | D6: 24 | E6: 61 | F6: 36 | G6: 12 | H6: 2 | I6: 8 | J6: 1 | K6: 0 | L6: 0
A7: 2024 | B7: 188 | C7: 31 | D7: 29 | E7: 59 | F7: 39 | G7: 17 | H7: 3 | I7: 8 | J7: 1 | K7: 1 | L7: 0
A8: 2025 | B8: 207 | C8: 32 | D8: 34 | E8: 65 | F8: 45 | G8: 17 | H8: 4 | I8: 8 | J8: 1 | K8: 1 | L8: 0
A9: Fuente: Secretaría Académica / Coordinación de Investigación Corte: Diciembre, 2025

Sheet T-36
A1: Eje 2: Generar Conocimientos | J1: Índice
A2: Cuerpos Académicos por grado de consolidación, 2019-2025 | G2: Tabla 36
A3: Cuerpo Académico | B3: Año
B4: 2019 | C4: 2020 | D4: 2021 | E4: 2022 | F4: 2023 | G4: 2024 | H4: 2025
A5: En Formación (CAEF) | B5: 37 | C5: 34 | D5: 34 | E5: 32 | F5: 32 | G5: 26 | H5: 21
A6: En Consolidado (CAEC) | B6: 13 | C6: 12 | D6: 12 | E6: 15 | F6: 15 | G6: 19 | H6: 17
A7: Consolidado (CAC) | B7: 11 | C7: 12 | D7: 12 | E7: 11 | F7: 11 | G7: 11 | H7: 16
A8: Total | B8: =SUM(B5:B7) -> 61 | C8: 58 | D8: 58 | E8: 58 | F8: 58 | G8: 56 | H8: 54
A9: Fuente: Secretaría Académica / Coordinación de Investigación Corte Diciembre, 2025

Sheet T-37
A1: Eje 2: Generar Conocimientos | E1: Índice
A2: Composición de los Cuerpos Académicos en Formación (CAEF), 2025 | C2: Tabla 37
A3: Clave | B3: Líder | C3: Año de Registro
A4: UDG-CA-143 | B4: Suastegui Ochoa Alberto Alejandro | C4: 2002
A5: UDG-CA-745 | B5: Aguirre Lozano Zarina Estela | C5: 2015
A6: UDG-CA-745 | B6: Flores Mayorga Marco Tulio | C6: 2014
A7: UDG-CA-831 | B7: Salas Durazo Ivan Alejandro | C7: 2015
A8: UDG-CA-868 | B8: Huerta Mata Juan Jose | C8: 2016
A9: UDG-CA-930 | B9: Montalvo Nuñez Jorge Antonio | C9: 2017
A10: UDG-CA-983 | B10: Torres Mata Ana | C10: 2018
A11: UDG-CA-1091 | B11: Medina Celis Laura Margarita | C11: 2019
A12: UDG-CA-1106 | B12: Jimenez Bernardino Angel Ernesto | C12: 2020
A13: UDG-CA-1151 | B13: Padilla Jacobo Abel | C13: 2022
A14: UDG-CA-1152 | B14: Vargas Becerra Patricia Noemi | C14: 2022
A15: UDG-CA-1154 | B15: Villanueva Lomeli Gabriela | C15: 2022
A16: UDG-CA-1192 | B16: Hernandez Rodriguez Tania Marcela | C16: 2023
A17: UDG-CA-1195 | B17: Corvera Valenzuela Maria Isabel | C17: 2023
A18: UDG-CA-1227 | B18: Muñoz Castorena Rodolfo Valentin | C18: 2024
A19: UDG-CA-1226 | B19: Islas Villanueva Margarita Isabel | C19: 2024
A20: UDG-CA-1235 | B20: Marquez Hernandez Patricia | C20: 2025
A21: UDG-CA-1236 | B21: Delva Benavides Juan Emmanuel | C21: 2025
A22: UDG-CA-1237 | B22: Medina Ortega Marco Antonio | C22: 2025
A23: UDG-CA-1254 | B23: Correa Arias César Augusto | C23: 2025
A24: UDG-CA-1256 | B24: Torres Galindo Norma Angelica | C24: 2025
A25: Fuente: Secretaría Académica / Coordinación de Investigación Corte Diciembre, 2025

Sheet T-38
A1: Eje 2: Generar Conocimientos | E1: Índice
A2: Composición de Cuerpos Académicos en Consolidación (CAEC), 2025 | C2: Tabla 38
A3: Clave | B3: Líder | C3: Año de Registro
A4: UDG-CA-116 | B4: Garcia Galvan Joel | C4: 2002
A5: UDG-CA-124 | B5: Robles Ramos Ma. Lucila | C5: 2002
A6: UDG-CA-125 | B6: Soto Sumuano Jesus Leonardo | C6: 2002
A7: UDG-CA-483 | B7: Ramirez Chavez Javier | C7: 2006
A8: UDG-CA-502 | B8: Mejia Rodriguez Jorge Antonio | C8: 2006
A9: UDG-CA-503 | B9: Fong Reynoso Carlos | C9: 2006
A10: UDG-CA-649 | B10: Gonzalez Castolo Juan Carlos | C10: 2011
A11: UDG-CA-722 | B11: Jimenez Arevalo Jose De Jesus | C11: 2013
A12: UDG-CA-747 | B12: Palos Sosa Martha Elba | C12: 2014
A13: UDG-CA-824 | B13: Ortiz Cadena Kenia Berenice | C13: 2015
A14: UDG-CA-828 | B14: Loza Vega Ismael | C14: 2015
A15: UDG-CA-829 | B15: Quevedo Huerta Lourdes Nayeli | C15: 2015
A16: UDG-CA-830 | B16: Guerra Avalos Eva Angelica | C16: 2015
A17: UDG-CA-932 | B17: Gutierrez Moreno Patricia | C17: 2017
A18: UDG-CA-980 | B18: Luna Rizo Marisol | C18: 2018
A19: UDG-CA-986 | B19: Maciel Arellano Ma. Del Rocio | C19: 2018
A20: UDG-CA-1153 | B20: Prieto Quezada Ma. Teresa | C20: 2022
A21: Fuente: Secretaría Académica / Coordinación de Investigación Corte: Diciembre, 2025

Sheet T-39
A1: Eje 2: Generar Conocimientos | E1: Índice
A2: Composición de los Cuerpos Académicos Consolidados (CAC), 2025 | C2: Tabla 39
A3: Clave | B3: Líder | C3: Año de registro
A4: UDG-CA-142 | B4: Contreras Cueva Angelica Beatriz | C4: 2002
A5: UDG-CA-394 | B5: Bustos Aguirre Magdalena Liliana | C5: 2004
A6: UDG-CA-484 | B6: Sanchez Gutierrez Jose | C6: 2006
A7: UDG-CA-485 | B7: Anaya Corona Margarita | C7: 2006
A8: UDG-CA-486 | B8: Borrayo Rodriguez Carmen Leticia | C8: 2006
A9: UDG-CA-487 | B9: García Bátiz María Luisa | C9: 2006
A10: UDG-CA-508 | B10: Pérez Mora Ricardo | C10: 2006
A11: UDG-CA-525 | B11: Silva Gutierrez Blanca Noemi | C11: 2007
A12: UDG-CA-668 | B12: Ayala Ramirez Suhey | C12: 2012
A13: UDG-CA-667 | B13: Gaytan Cortes Juan | C13: 2012
A14: UDG-CA-825 | B14: Chavarin Rodriguez Ruben Antonio | C14: 2015
A15: UDG-CA-826 | B15: Gualajara Estrada Victor Hugo | C15: 2015
A16: UDG-CA-931 | B16: Hidalgo Perez Sandra Elizabeth | C16: 2017
A17: UDG-CA-981 | B17: Cortez Yactayo Willy Walter | C17: 2018
A18: UDG-CA-985 | B18: Acosta Silva Adrian | C18: 2018
A19: UDG-CA-1141 | B19: Arechavala Vargas Ricardo | C19: 2021
A20: Fuente: Secretaría Académica / Coordinación de Investigación Corte: Diciembre, 2025

Sheet T-40
A1: Eje 2: Generar Conocimientos | E1: Índice
A2: Líneas de Generación y Aplicación del Conocimiento (LGAC) de los Cuerpos Académicos en Formación (CAEF), 2025 | C2: Tabla 40
A3: Clave | B3: LGAC
A4: UDG-CA-143 | B4: 1. Mercadotecnia, competitividad, educación y negocios 2. Educación y negocios internacionales 3. Conocimiento, ventaja competitiva, internacionalización de pymes y e-business, comunicación y enfoque de género
A5: UDG-CA-745 | B5: 1. Regulación de mercados laborales y vinculación. universidad-empresa-gobierno 2. Calidad educativa, tecnologías de la informacion y comunicacion, y comunicacion organizacional
A6: UDG-CA-745 | B6: 1. Educación, desigualdad y políticas públicas 2. Diversidades y relaciones interculturales 3. Narrativas, memorias y expresiones culturales en contextos de diversidad
A7: UDG-CA-831 | B7: 1. Gobernanza de la seguridad humana 2. Historia de las políticas públicas en seguridad humana 3. Metodologías de vanguardia para la conceptualización multidimensional de problemas públicos y su evaluación
A8: UDG-CA-868 | B8: 1. Articulación productiva, administración estratégica 2. estrategia del sector público, privado y social 3. Sector primario, servicios y sustentabilidad 4. Inteligencia artificial y estrategia organizacional 5. Sostenibilidad e innovación del sector público 6. Turismo sostenible y educación
A9: UDG-CA-930 | B9: 1. El impacto fiscal en la economía social y solidaria 2. Impacto económico, contable financiero y/o fiscal de las diferentes formas de tributar en méxico y otros países, el emprendimiento y la innovación
A10: UDG-CA-983 | B10: 1. Evaluación de estudiantes y los resultados de aprendizaje 2. Evaluación de docentes y de su desarrollo profesional 3. Innovación y evaluación de procesos y estrategias para el aprendizaje 4. Educación inclusiva en la educación superior
A11: UDG-CA-1091 | B11: 1. Estudio constitucional tributario 2. Estudios de contabilidad 3. Estudios de responsabilidad social empresarial
A12: UDG-CA-1106 | B12: 1. Educación, producción y movilización del conocimiento 2. Innovación social, inclusión y bienestar
A13: UDG-CA-1151 | B13: 1. Historia económica y del desarrollo regional
A14: UDG-CA-1152 | B14: 1. Desigualdad y vulnerabilidad sociodemográfica 2. Dinámica demográfica y cambio poblacional
A15: UDG-CA-1154 | B15: 1. Gestión del emprendimiento, del turismo y de la propiedad intelectual
A16: UDG-CA-1192 | B16: 1. Mujeres, cambios culturales y comunicación para la reducción de brechas 2. Mujeres y educación inclusiva para la reducción de violencias 3. Mujeres, cambio organizacional y desarrollo social
A17: UDG-CA-1195 | B17: 1. Medio ambiente, organizaciones, desarrollo y políticas públicas 2. Grupos vulnerables, bienestar y políticas públicas
A18: UDG-CA-1226 | B18: 1. Mercadotecnia,negocios y turismo para el desarrollo sostenible 2. Gestión, innovación y calidad educativa
A19: UDG-CA-1227 | B19: 1. Gestión en la educación superior 2. Tic´s en educación, negocios e innovación 3. Gestión en las organizaciones privadas
A20: UDG-CA-1235 | B20: 1. Estudios económicos y financieros con un enfoque social 2. Mercado de trabajo en méxico 3. Estudios de desigualdad, exclusión social y pobreza
A21: UDG-CA-1236 | B21: 1. Derecho digital y ciberseguridad 2. Innovación regulatoria y gobernanza tecnológica 3. Métodos alternos de solución de conflictos e innovación judicial 4. Propiedad intelectual y economia digital
A22: UDG-CA-1237 | B22: 1. Desarrollo regional, competencia económica y dinámicas urbanas 2. Ordenamiento territorial, economía regional y bienestar social
A23: UDG-CA-1254 | B23: 1. Ética ciudadana, urbanidad, ecología social y bienestar social 2. Desarrollo regional y estudios socio ambientales 3. Transiciones tecnológicas sustentables
A24: UDG-CA-1256 | B24: 1. Aspectos de auditoría, contables, financieros y fiscales de las entidades económicas nacionales e internacionales, la gestión, el emprendimiento y la innovación, la docencia y la tecnología, entre otros
A25: Fuente: Secretaría Académica / Coordinación de Investigación Corte: Diciembre, 2025

Sheet T-41
A1: Eje 2: Generar Conocimientos | E1: Índice
A2: Líneas de Generación y Aplicación del Conocimiento (LGAC) de los Cuerpos Académicos en Consolidación (CAEC), 2025 | C2: Tabla 41
A3: Clave | B3: LGAC
A4: UDG-CA-116 | B4: 1. Economía ecológica 2. Desarrollo social y local sustentable 3. Economía sistémica y sustentabilidad
A5: UDG-CA-124 | B5: 1. Innovación y calidad en la educación superior 2. Nuevos paradigmas universitarios para la gestión del conocimiento
A6: UDG-CA-125 | B6: 1. Sistemas distribuidos y gestión de la información 2. Tecnologías de la información y comunicación para el medio ambiente
A7: UDG-CA-483 | B7: 1. Fenomenología contable, financiera, impositiva fiscal y de control de las empresas y sustentable 2. Ética y educación
A8: UDG-CA-502 | B8: 1. Relaciones económico - financieras y bloques de países 2. Tendencias sustentables del sector automotriz mundial
A9: UDG-CA-503 | B9: 1. Determinantes del desempeño de la pyme 2. Gestión del conocimiento, formación de ventaja competitiva e internacionalización de la pyme 3. Estudios comparados sobre la pyme 4. Creación de empresas
A10: UDG-CA-649 | B10: 1. Análisis y representación del conocimiento 2. Tecnología del modelado y administración de conocimientos sistemáticos para el mundo electrónico
A11: UDG-CA-722 | B11: 1. Gestión de la información para facilitar la toma de decisiones 2. Innovación y evaluación de proyectos tecnológicos y educativos
A12: UDG-CA-747 | B12: 1. Las políticas tributarias en méxico y la empresa socialmente responsable 2. Competitividad financiera ambiental
A13: UDG-CA-824 | B13: 1. Cuerpo, movilidad e instituciones
A14: UDG-CA-828 | B14: 1. Administración financiera.
A15: UDG-CA-829 | B15: 1. Trayectorias escolares y laborales, seguimiento de egresados, análisis y diseño de políticas educativas
A16: UDG-CA-830 | B16: 1. Gestión turística y recreativa del patrimonio cultural y natural 2. Turismo y gastronomía
A17: UDG-CA-932 | B17: 1. Hacienda pública, fiscalización e innovación tecnológica 2. Ética empresarial, educación emprendedora y tic s
A18: UDG-CA-980 | B18: 1. Innovación educativa 2. Tecnologías para el aprendizaje 3. Nuevas literacidades
A19: UDG-CA-986 | B19: 1. Smart cities 2. Tecnologías de información 3. Innovación y desarrollo sustentable
A20: UDG-CA-1153 | B20: 1. Violencias en espacios sociales y escolares, procesos de paz, gestión de convivencia, prevención de violencia
A21: Fuente: Secretaría Académica / Coordinación de Investigación Corte: Diciembre, 2025

Sheet T-42
A1: Eje 2: Generar Conocimientos | E1: Índice
A2: Líneas de Generación y Aplicación del Conocimiento (LGAC) de los Cuerpos Académicos Consolidados (CAC), 2025 | C2: Tabla 42
A3: Clave | C3: LGAC
A4: UDG-CA-142 | B4: 1. Estudios sectoriales, educación y empleo 2. Estudios sobre sustentabilidad y tecnologías 3. Análisis, diseño y gestión de proyectos
A5: UDG-CA-394 | B5: 1. Innovación e internacionalización educativa
A6: UDG-CA-484 | B6: 1. Estrategias, calidad y desarrollo sustentable 2. Negocios internacionales, competitividad, gestión del conocimiento e innovación tecnológica
A7: UDG-CA-485 | B7: 1. Suelo, vivienda y derechos de propiedad. 2. Geotecnologías. 3. Planificación y gestión territorial.
A8: UDG-CA-486 | B8: 1. Gestión universitaria y cultura de la legalidad 2. Gestión y desarrollo de las organizaciones 3. Epistemología, política y educación 4. Mercadotecnia politica, comunicacion y relaciones públicas
A9: UDG-CA-487 | B9: 1. Flujos internacionales y regionales y procesos de desarrollo 2. Transformaciones del medio ambiente, desarrollo y participación social 3. Cambio institucional, políticas públicas y desarrollo local
A10: UDG-CA-508 | B10: 1. Investigación educativa 2. Estudios sobre universidad
A11: UDG-CA-525 | B11: 1. Procesos educativos y organizacionales 2. Organizaciones y manejo de conflictos 3. Género, organizaciones y transformación social 4. Violencia, sociedad y cultura
A12: UDG-CA-668 | B12: 1. Economía, estrategia y desarrollo sustentable de la empresa 2. Gestión del conocimiento y mercados laborales
A13: UDG-CA-667 | B13: 1. Estrategias financieras y de mercadotecnia como factores de desarrollo, innovación y competitividad de las organizaciones 2. Evaluación, calidad en servicios, cluster y agrupaciones empresariales como estrategias de desarrollo, innovación y competitividad
A14: UDG-CA-825 | B14: 1. Intercambio económico y relaciones sociales México-Japón 2. Análisis comparativo internacional de organizaciones económicas y su contribución social y regional 3. Transición energética, cooperación tecnológica y sostenibilidad industrial méxico-japón
A15: UDG-CA-826 | B15: 1. Finanzas, riesgos y econofísica 2. Economía del crimen 3. Economía internacional 4. Economía política y economía pública 5. Pobreza mercado laboral y distribución del ingreso 6. Desempeño regional y macroeconómico 7. Evaluación de programas sociales
A16: UDG-CA-931 | B16: 1. Educación, accesibilidad y responsabilidad social 2. Gestión y desarrollo de tecnologías
A17: UDG-CA-981 | B17: 1. Ciclos económicos 2. Seguridad humana, economía e instituciones 3. Mercados financieros y desempeño económico 4. Macroeconomía abierta y crecimiento 5. Economía de la salud
A18: UDG-CA-985 | B18: 1. Análisis institucional y gobernanza universitaria 2. Análisis de las políticas de educación superior a partir del comportamiento de los actores
A19: UDG-CA-1141 | B19: 1. Innovacion y gestion organizacional en las empresas 2. Inteligencia artificial en la gestión, innovación y liderazgo organizacional 3. Inteligencia artificial y acceso al conocimiento y la cultura 4. Emprendimiento y liderazgo
A20: Fuente: Secretaría Académica / Coordinación de Investigación Corte: Diciembre, 2025

Sheet T-43
A1: Eje 2: Generar Conocimientos | E1: Índice
A2: Redes de investigación nacionales e internacionales, 2025 | C2: Tabla 43
A3: No. | B3: Nombre de la Red Académica | C3: Tipo
A4: 1 | B4: Academia Jalisciense de Ciencias | C4: Nacional
A5: 2 | B5: Academia Mexicana Copernicus | C5: Nacional
A6: 3 | B6: Academia Mexicana de Ciberseguridad y Derecho Digital | C6: Nacional
A7: 4 | B7: Asociación de Historiadores de Jalisco "Carmen Castañeda García" | C7: Nacional
A8: 5 | B8: Asociación Mexicana de Ciencias para el Desarrollo Regional, A.C. (AMECIDER) | C8: Nacional
A9: 6 | B9: Historiadores de las Ciencias y las Humanidades | C9: Nacional
A10: 7 | B10: Red Académica de Asuntos Públicos | C10: Nacional
A11: 8 | B11: Red Áreas Naturales Protegidas | C11: Nacional
A12: 9 | B12: Red de Estudios Interculturales | C12: Nacional
A13: 10 | B13: Red de Haciendas Públicas Estatales Mexicanas, siglos XIX y XX | C13: Nacional
A14: 11 | B14: Red de Innovación Educativa | C14: Nacional
A15: 12 | B15: Red de investigación sobre Sistemas de Eventos Discretos e Híbridos | C15: Nacional
A16: 13 | B16: Red de Investigadores del Fenómeno Religioso en México | C16: Nacional
A17: 14 | B17: Red de Investigadores en Gobiernos Locales Mexicanos | C17: Nacional
A18: 15 | B18: RED DE TECNOLOGÍAS COMPUTACIONALES APLICADAS | C18: Nacional
A19: 16 | B19: Red Gobierno, Empresa y Sociedad | C19: Nacional
A20: 17 | B20: Red Las Otras Historias. Marginalidad, transgresión, justicia y control social en México. | C20: Nacional
A21: 18 | B21: Red Latinoamericana de Estudios de Género | C21: Nacional
A22: 19 | B22: Red Mexicana de Estudios de Conectividad del Paisaje - REMECP | C22: Nacional
A23: 20 | B23: Red Mexicana de Manejo Integrado del Paisaje y Conectividad | C23: Nacional
A24: 21 | B24: Red Nacional de Áreas Naturales Protegidas | C24: Nacional
A25: 22 | B25: Red Permanente de Cuerpos Académicos | C25: Nacional
A26: 23 | B26: RESDO - Red de Estudios y Desarrollo de las Organizaciones | C26: Nacional
A27: 24 | B27: Seminario de Cultura Mexicana | C27: Nacional
A28: 25 | B28: Academia de Ciencias Administrativas A.C. | C28: Internacional
A29: 26 | B29: Academia Europea de Dirección y Economía de Empresa | C29: Internacional
A30: 27 | B30: Academia Mexicana de Ciencias Económicas | C30: Internacional
A31: 28 | B31: Academy of Global Business Research and Practice | C31: Internacional
A32: 29 | B32: Articulación Productiva en la Acuicultura en Perú | C32: Internacional
A33: 30 | B33: Asociación Internacional de Economía Pública Local A.C. | C33: Internacional
A34: 31 | B34: Asociación Latinoamericana de Derecho Gobierno y Nuevas Tecnología | C34: Internacional
A35: 32 | B35: Asociación Latinoamericana de Población | C35: Internacional
A36: 33 | B36: Asociación Mexicana de Investigación Turística | C36: Internacional
A37: 34 | B37: Babson colaboration | C37: Internacional
A38: 35 | B38: Càtedra Unesco de Sostenibilidad | C38: Internacional
A39: 36 | B39: EPIC-Network | C39: Internacional
A40: 37 | B40: Global Network of UNESCO Chairs on Gende | C40: Internacional
A41: 38 | B41: Grupo de Investigación en Estructura, Movilidad y Capital Social, y Desigualdades Educativas (GEMCED), inscripto en la Comisión Sectorial de Investigación Científica (CSIC) con el N°883308, en Montevideo, Uruguay | C41: Internacional
A42: 39 | B42: Grupo de trabajo CLACSO Ciencia Social Móvil y Politizada | C42: Internacional
A43: 40 | B43: GT Religiones y Sociedad. Tensiones, diversidades y movilizaciones en debate | C43: Internacional
A44: 41 | B44: IBEROTIC | C44: Internacional
A45: 42 | B45: Indian Institute of Science | C45: Internacional
A46: 43 | B46: Instituto Iberoamericano de Derecho Constitucional (Sección México) | C46: Internacional
A47: 44 | B47: Instituto para la Sociedad de la Información y Cuarta Revolución Industrial | C47: Internacional
A48: 45 | B48: LAHN, Latin American Housing Network/Red Latinoamericana de Vivienda | C48: Internacional
A49: 46 | B49: LASCIC (Latin American Studies and Chicano-Iberian Culture Network) | C49: Internacional
A50: 47 | B50: Latin American High Performance Computing Conference, | C50: Internacional
A51: 48 | B51: Latin SOTL | C51: Internacional
A52: 49 | B52: MUFRAMEX (cooperación académica y científica franco-mexicana.) | C52: Internacional
A53: 50 | B53: Observatorio Universitario | C53: Internacional
A54: 51 | B54: Proyecto PRONACE | C54: Internacional
A55: 52 | B55: Red Académica de Gobierno Abierto - México | C55: Internacional
A56: 53 | B56: Red Académica de Interculturalidad, Sustentabilidad, Género | C56: Internacional
A57: 54 | B57: Red Alianza del Pacífico | C57: Internacional
A58: 55 | B58: Red binacional México Francia en Inteligencia Artificial | C58: Internacional
A59: 56 | B59: Red de Cooperación y Desarrollo Territorial de la Universidad de Oviedo | C59: Internacional
A60: 57 | B60: Red de Estudios Sobre Instituciones Educativas RESIEDU | C60: Internacional
A61: 58 | B61: RED DE INVESTIGACIÓN DE EDUCACIÓN SUPERIOR Y SOCIEDAD | C61: Internacional
A62: 59 | B62: Red de investigación de la Alianza del Pacífico | C62: Internacional
A63: 60 | B63: Red de Investigadores Científicos de América Latina y el Caribe | C63: Internacional
A64: 61 | B64: Red de Investigadores en Turismo, Desarrollo y Sustentabilidad RITURDES | C64: Internacional
A65: 62 | B65: Red de lenguaje y educación de la Asociación interuniversitaria de investigación pedagógica (AIDIPE) | C65: Internacional
A66: 63 | B66: Red de Relaciones Internacionales y Desarrollo Global | C66: Internacional
A67: 64 | B67: RED Desigualdad y Movilidad Social en América Latina DEMOSAL | C67: Internacional
A68: 65 | B68: Red Encadenamientos Productivos del Sector Primario y Turismo | C68: Internacional
A69: 66 | B69: Red Iberoamericana de Estudios de Gobierno, Política y Gestión Pública | C69: Internacional
A70: 67 | B70: Red Iberoamericana de Estudios Empresariales y Tributarios (RIEET) | C70: Internacional
A71: 68 | B71: RED IBEROAMERICANA DE INVESTIGACIÓN EN IMAGINARIOS Y REPRESENTACIONES (RIIR) | C71: Internacional
A72: 69 | B72: Red Iberoamericana de Investigación en Trabajo, Género y Vida Cotidiana | C72: Internacional
A73: 70 | B73: Red Iberoamericana de Investigadores en Publicidad (REDIPUB) | C73: Internacional
A74: 71 | B74: Red Iberoamericana en Saneamiento Ambiental (REDISA) | C74: Internacional
A75: 72 | B75: Red INSPIRE del Flacso | C75: Internacional
A76: 73 | B76: Red Interamericana para la Educación en Administración INPAE | C76: Internacional
A77: 74 | B77: ​Red Interdisciplinaria Iberoamericana de Investigadoras e investigadores | C77: Internacional
A78: 75 | B78: Red Interinstitucional de Género y Migración en Jalisco | C78: Internacional
A79: 76 | B79: Red Internacional de Derechos Humanos y Derecho Humanitario A.C | C79: Internacional
A80: 77 | B80: Red Internacional de Investigación Aplicada sobre Seguridad Deportiva, RIASPORT | C80: Internacional
A81: 78 | B81: Red Internacional de Investigación en Educación a Distancia, en Línea y Abierta (REDIC) | C81: Internacional
A82: 79 | B82: Red Internacional de Investigadores de Turismo | C82: Internacional
A83: 80 | B83: Red Internacional de Investigadores en Estudios sobre Juventud | C83: Internacional
A84: 81 | B84: Red Internacional de investigadores en Turismo, Desarrollo y Sustentabilidad | C84: Internacional
A85: 82 | B85: Red Internacional de investigadores en Turismo, Desarrollo y Sustentabilidad | C85: Internacional
A86: 83 | B86: Red Internacional Pentagobernanza para el Territorio Sostenible | C86: Internacional
A87: 84 | B87: Red latinoamericana de eco-alfabetización | C87: Internacional
A88: 85 | B88: Red Nacional e Internacional de Profesionales en Administración de Agronegocios y Disciplinas Afines (RENAIPA) | C88: Internacional
A89: 86 | B89: RED-DEES (Red de Dirección Estratégica en la Educación Superior) | C89: Internacional
A90: 87 | B90: RedDolac - Red de Docentes de América Latina y del Caribe | C90: Internacional
A91: 88 | B91: REEDES (Red Española de Estudios del Desarrollo) | C91: Internacional
A92: 89 | B92: RELACI (Red de Estudios Latinoamericanos y Cultura Chicano-Ibérica /WSSA Affiliate Group | C92: Internacional
A93: 90 | B93: RIEL - Red de Investigaciones sobre Educación en Latinoamérica | C93: Internacional
A94: 91 | B94: RIFPE (Red Iberoamericana en Investigación y Formación en Posgrados de Educación) | C94: Internacional
A95: 92 | B95: Seminario Permanente de Estudios de la Gran Chichimeca (SEPECH) | C95: Internacional
A96: 93 | B96: Sociedad internacional de economía ecológica | C96: Internacional
A97: 94 | B97: Sociedad Mesoamericana y del Caribe de economía ecológica | C97: Internacional
A98: 95 | B98: The North America and Caribbean Network on Learning, Innovation, and Competence Building Systems. | C98: Internacional
A99: 96 | B99: Urbanization effects on latitudinal gradients in species interactions | C99: Internacional
A100: 97 | B100: World Social Science Association | C100: Internacional
A101: Fuente: Secretaría Académica / Coordinación de Investigación Corte: Diciembre, 2025

Sheet T-44
A1: Eje 2: Generar Conocimientos | F1: Índice
A2: Redes de Investigación nacionales e internacionales registradas en PRODEP, 2025 | D2: Tabla 44
A3: RED académica | B3: Clave | C3: Tipo | D3: Académicos del CUCEA participantes
A4: Confederación Interamericana de Relaciones Públicas | B4: UDG-CA-745 | C4: UI | D4: 4
A5: Red de Estudios sobre problemas en desarrollo económico, seguridad humana y economía de la empresa | B5: UDG-CA-981 | C5: Intercentro | D5: 6
A6: Red Iberoamericana De Estudios Empresariales Y Tributarios | B6: UDG-CA-483 | C6: Nacional | D6: 8
A7: Colaboración con el CA "Democracia, Sociedad Civil y Libertades" | B7: UDG-CA-824 | C7: Nacional | D7: 3
A8: Convenio de colaboración de cuerpos académicos y grupos de investigación para promover la generación, difusión y transferencia de conocimiento. | B8: UDG-CA-867 | C8: Nacional | D8: 5
A9: Red de Estudios Económico Administrativos | B9: UDG-CA-868 | C9: Nacional | D9: 5
A10: Asociación Mexicana de Ciencias para el Desarrollo Regional en México. AMECIDER | B10: UDG-CA-867 | C10: Nacional | D10: 5
A11: Red de lenguaje y educación de la Asociación interuniversitaria de investigación pedagógica (AIDIPE) | B11: UDG-CA-980 | C11: Nacional | D11: 6
A12: Red en Estudios sobre Salud, Seguridad Pública y Bienestar Económico (RESPUBEC) | B12: UDG-CA-981 | C12: Nacional | D12: 6
A13: Asociación Internacional de Economía Pública Local A.C. | B13: UDG-CA-981 | C13: Nacional | D13: 6
A14: Red de Investigación en Agua, Desarrollo Económico, Agricultura y Desarrollo Humano | B14: UDG-CA-1141 | C14: Nacional | D14: 7
A15: Academia Mexicana de Investigación Turística (AMIT) | B15: UDG-CA-1141 | C15: Nacional | D15: 7
A16: Red Académica ( Red de Investigación en Gobiernos Locales Mexicanos (IGLOM) | B16: UDG-CA-1141 | C16: Nacional | D16: 7
A17: CICSADIR-CUCEA | B17: UDG-CA- 143 | C17: Nacional | D17: 3
A18: IT | B18: UDG-CA- 143 | C18: Nacional | D18: 3
A19: Red de Investigadores en Gobiernos Locales Mexicanos | B19: UDG-CA-487 | C19: Nacional | D19: 6
A20: Ciudadanía | B20: UDG-CA-837 | C20: Nacional | D20: 5
A21: Academia Mexicana de Investigación Turística | B21: UDG-CA-830 | C21: Nacional | D21: 5
A22: Red Académica de Asuntos Públicos | B22: UDG-CA-831 | C22: Nacional | D22: 3
A23: Red de Investigadores Científicos de América Latina y el Caribe | B23: UDG-CA-831 | C23: Nacional | D23: 3
A24: Área de Sociología de las Universidades | B24: UDG-CA-985 | C24: Nacional | D24: 6
A25: Programa de Estudios Sobre Educación Superior | B25: UDG-CA-985 | C25: Nacional | D25: 6
A26: Programa Universitario de Estudios sobre el Desarrollo | B26: UDG-CA-985 | C26: Nacional | D26: 6
A27: Red de Innovación Social REDIS | B27: UDG-CA-1106 | C27: Nacional | D27: 4
A28: REDIS. Red de Innovación Social | B28: UDG-CA-1106 | C28: Nacional | D28: 4
A29: Sistema de Información socio ambiental para la democracia y la sustentabilidad | B29: UDG-CA- 116 | C29: Internacional | D29: 7
A30: Red Iberoamericana de Investigación en Trabajo, Género y Vida Cotidiana (TRAGEVIC) | B30: UDG-CA- 124 | C30: Internacional | D30: 7
A31: Red Internacional de Investigadores de Turismo, Desarrollo y Sustentabilidad | B31: UDG-CA- 142 | C31: Internacional | D31: 4
A32: Red Internacional de Investigadores en Competitividad | B32: UDG-CA-484 | C32: Internacional | D32: 8
A33: Academia Española de Dirección y Economía de Empresa | B33: UDG-CA-484 | C33: Internacional | D33: 8
A34: Academy of Global Business: Research and Practice | B34: UDG-CA-484 | C34: Internacional | D34: 8
A35: International Forum Knowledge Asset Dynamics | B35: UDG-CA-484 | C35: Internacional | D35: 8
A36: Red de Relaciones Internacionales y Desarrollo Global | B36: UDG-CA-502 | C36: Internacional | D36: 6
A37: Academia de Ciencias Administrativas, AC (ACACIA) | B37: UDG-CA-503 | C37: Internacional | D37: 4
A38: Grupo de trabajo CLACSO "ciencia social móvil y politizada" | B38: UDG-CA-508 | C38: Internacional | D38: 3
A39: Red Internacional De Investigadores En Competitividad | B39: UDG-CA-667 | C39: Internacional | D39: 4
A40: Red de Estudios Latinoamericanos y Cultura Chicano-Ibérica, A. C | B40: UDG-CA-668 | C40: Internacional | D40: 5
A41: Red Iberoamericana de Estudios Empresariales y Tributarios (RIEET) | B41: UDG-CA-747 | C41: Internacional | D41: 4
A42: Red Iberoamericana de Estudios Empresariales y Tributarios | B42: UDG-CA-860 | C42: Internacional | D42: 5
A43: Encadenamientos productivos del Sector Primario en el marco de Alianza del Pacífico | B43: UDG-CA-868 | C43: Internacional | D43: 5
A44: Articulación Productiva del Sector Acuícola en Perú | B44: UDG-CA-868 | C44: Internacional | D44: 5
A45: Red Iberoamericana de Estudios Empresariales y Tributarios | B45: UDG-CA-930 | C45: Internacional | D45: 5
A46: Red Internacional de Investigación Aplicada sobre Seguridad Deportiva - RIASPORT | B46: UDG-CA-934 | C46: Internacional | D46: 4
A47: Red de Innovación Educativa | B47: UDG-CA-980 | C47: Internacional | D47: 6
A48: IBEROTIC, RedDOLAC | B48: UDG-CA-986 | C48: Internacional | D48: 4
A49: Red Iberoamericana de Estudios Empresariales y | B49: UDG-CA-1091 | C49: Internacional | D49: 3
A50: Tributarios (RIEET) | B50: UDG-CA-1091 | C50: Internacional | D50: 3
A51: RED DEES | B51: UDG-CA-1141 | C51: Internacional | D51: 7
A52: Red Latinoamericana para el Estudio de Sistemas de Aprendizaje, Innovación y Construcción de Competencias | B52: UDG-CA-1141 | C52: Internacional | D52: 7
A53: Sociedad Mesoamericana y del Caribe de Economía Ecológica | B53: UDG-CA-1141 | C53: Internacional | D53: 7
A54: Asociación Latinoamericana de Población | B54: UDG-CA-1141 | C54: Internacional | D54: 7
A55: Red Latinoamericana en Estudios de Género | B55: UDG-CA-1192 | C55: Internacional | D55: 3
A56: Red Internacional de Investigadores en Competitividad | B56: UDG-CA-1192 | C56: Internacional | D56: 3
A57: Red Iberoamericana de Investigadores en Publicidad (REDIPUB) | B57: UDG-CA-1192 | C57: Internacional | D57: 3
A58: IISC | B58: UDG-CA- 143 | C58: Internacional | D58: 3
A59: Red temática internacional de cuerpos académicos: Cultura política y democracia | B59: UDG-CA-486 | C59: Internacional | D59: 6
A60: RIFAPT AC | B60: UDG-CA-525 | C60: Internacional | D60: 6
A61: Red de Investigación de la Facultad de Ciencias Económicas de la Universidad de Camagüey | B61: UDG-CA-745 | C61: Internacional | D61: 4
A62: Red de Investigadores en Comunicación, Ecuador | B62: UDG-CA-745 | C62: Internacional | D62: 4
A63: Red Iberoamericana de Relaciones Públicas | B63: UDG-CA-745 | C63: Internacional | D63: 4
A64: Red de Economía Cuantitativa y Desarrollo Económico | B64: UDG-CA-836 | C64: Internacional | D64: 11
A65: Red Internacional de Investigadores en Competitividad | B65: UDG-CA-838 | C65: Internacional | D65: 5
A66: Red Iberoamericana de Estudios de Gobierno, Política y Gestión Pública | B66: UDG-CA-831 | C66: Internacional | D66: 3
A67: Academia Jalisciense de Ciencias | B67: UDG-CA-831 | C67: Internacional | D67: 3
A68: Estudios globales: enfoques y nuevas aproximaciones | B68: UDG-CA-865 | C68: Internacional | D68: 4
A69: RIEL - Red de Investigaciones sobre Educación en Latinoamérica | B69: UDG-CA-931 | C69: Internacional | D69: 4
A70: Red Iberoamericana de Estudios Empresariales y Tributarios (RIEET) | B70: UDG-CA-932 | C70: Internacional | D70: 4
A71: Grupo de Investigación en Educación y Trabajo (GRET) | B71: UDG-CA-985 | C71: Internacional | D71: 6
A72: LASCIC (Latin American Studies and Chicano-Iberian Culture Network) | B72: UDG-CA-1153 | C72: Internacional | D72: 3
A73: Fuente: Secretaría Académica / Coordinación de Investigación Corte: Diciembre, 2025

Sheet T-45
A1: Eje 2: Generar Conocimientos | J1: Índice
A2: Proyectos de Investigación por tipo, 2019-2025 | G2: Tabla 45
A3: Tipo de Proyecto | B3: Año
B4: 2019 | C4: 2020 | D4: 2021 | E4: 2022 | F4: 2023 | G4: 2024 | H4: 2025
A5: Aplicada | B5: 9 | C5: 14 | D5: 23 | E5: 65 | F5: 94 | G5: 127 | H5: 109
A6: Básica | B6: 9 | C6: 12 | D6: 6 | E6: 57 | F6: 58 | G6: 91 | H6: 90
A7: Desarrollo Tecnológico y Experimental | B7: 4 | C7: 3 | D7: 2 | E7: 8 | F7: 11 | G7: 16 | H7: 13
A8: Total | B8: =SUM(B5:B7) -> 22 | C8: 29 | D8: 31 | E8: 130 | F8: 163 | G8: 234 | H8: 212
A9: Fuente: Secretaría Académica / Coordinación de Investigación Corte: Diciembre, 2025

Sheet T-46
A1: Eje 2: Generar Conocimientos | J1: Índice
A2: Proyectos de investigación con la colaboración de estudiantes, 2025 | H2: Tabla 46
A3: Proyecto | B3: Departamento | C3: Programa Educativo | D3: Programa de Investigación | E3: Recurso | F3: Nivel educativo / Estudiantes participantes
F4: Licenciatura | G4: Maestría | H4: Doctorado
A5: El Caso Universidad Sostenible: un sistema de gestión ambiental para la Red Universitaria de Jalisco | B5: Administración | C5: Licenciatura en Gestión y Economía Ambiental | D5: PROSNII | E5: SI | F5: 1 | G5: 0 | H5: 0
A6: Análisis de la desigualdad estructural, desempeño económico y seguridad pública para la construcción de seguridad humana. | B6: Finanzas | C6: Licenciatura en Administración Financiera y Sistemas | D6: PROSNII | E6: SI | F6: 1 | G6: 0 | H6: 0
A7: Estudio sobre Energías Renovables en Jalisco | B7: Economía | C7: Licenciatura en Economía | D7: PROSNII | E7: SI | F7: 1 | G7: 0 | H7: 0
A8: Practicas y hábitos de lectura y escritura en universitarios | B8: Políticas Públicas | C8: Licenciatura en Administración Gubernamental y Políticas Públicas | D8: PROSNII | E8: SI | F8: 1 | G8: 0 | H8: 0
A9: Radiación Electromagnética No ionizante | B9: Sistemas de Información | C9: Licenciatura en Tecnologías de la Información | D9: PROSNII | E9: SI | F9: 1 | G9: 0 | H9: 0
A10: Restructuración Productiva y Estudiso Locales | B10: Estudios Regionales INESER | C10: Licenciatura en Contaduría Pública | D10: PROSNII | E10: SI | F10: 1 | G10: 0 | H10: 0
A11: Sistema de Información Socio Ambiental | B11: Economía | C11: Licenciatura en Gestión y Economía Ambiental | D11: PROSNII | E11: SI | F11: 1 | G11: 0 | H11: 0
A12: Finanzas Públicas Locales | B12: Políticas Públicas | C12: Licenciatura en Administración Gubernamental y Políticas Publicas | D12: PROSNII | E12: SI | F12: 1 | G12: 0 | H12: 0
A13: Finanzas cuantitativas aplicadas | B13: Métodos Cuantitativos | C13: Licenciatura en Administración Financiera y Sistemas | D13: PROSNII | E13: SI | F13: 1 | G13: 0 | H13: 0
A14: Características de los estudiantes de los posgrados en el CUCEA | B14: Políticas Públicas | C14: Licenciatura en Relaciones Públicas y Comunicación | D14: PROSNII | E14: SI | F14: 1 | G14: 0 | H14: 0
A15: Inteligencia artificial en la fiscalización: tendencias recaudatorias municipales, estatales y federales de México. | B15: Contabilidad | C15: Licenciatura en Economía | D15: PROSNII | E15: SI | F15: 1 | G15: 0 | H15: 0
A16: Bandidaje y criminalidad en Jalisco: representaciones en literatura y prensa. Siglos XIX y XX | B16: Ciencias Sosiales y Júridicas | C16: Licenciatura en Historia | D16: PROSNII | E16: SI | F16: 1 | G16: 0 | H16: 0
A17: Acceso al Crédito y Salud Mental: Un Estudio Comparativo entre Fuentes Formales e Informales de Financiamiento | B17: Economía | C17: Maestria en Economía | D17: PROSNII | E17: SI | F17: 0 | G17: 1 | H17: 0
A18: Teorías y debates en torno al conflicto y las violencias en México | B18: Ciencias Sosiales y Júridicas | C18: Licenciatura en Historia | D18: PROSNII | E18: SI | F18: 1 | G18: 0 | H18: 0
A19: Inteligencia artificial en la fiscalización: tendencias recaudatorias municipales, estatales y federales de México. | B19: Contabilidad | C19: Licenciatura en Administración Gubernamental y Políticas Públicas | D19: PROSNII | E19: SI | F19: 1 | G19: 0 | H19: 0
A20: La modernización agropecuaria en Jalisco: vida y obra de José W. Torres | B20: Ciencias Sosiales y Júridicas | C20: Licenciatura en Administración Gubernamental y Políticas Públicas | D20: PROSNII | E20: SI | F20: 1 | G20: 0 | H20: 0
A21: La evolución del crecimiento de la población de la parroquia de Lagos de Moreno a partir de los registros parroquiales | B21: Estudios Regionales INESER | C21: Licenciatura en Historia | D21: PROSNII | E21: SI | F21: 1 | G21: 0 | H21: 0
A22: Instituciones de la modernidad | B22: Políticas Públicas | C22: Licenciatura en Administración Gubernamental y Políticas Públicas | D22: PROSNII | E22: SI | F22: 1 | G22: 0 | H22: 0
A23: Thorstein Veblen y su aporte a la Economia Latinoamericana | B23: Administración | C23: Licenciatura en Administración Financiera y Sistemas | D23: PROSNII | E23: SI | F23: 1 | G23: 0 | H23: 0
A24: Migración de privilegio. Contrastes y desigualdades: migración internacional de retirados y migración de tránsito en México. | B24: Estudios Regionales INESER | C24: Licenciatura en Administración Gubernamental y Políticas Públicas | D24: PROSNII | E24: SI | F24: 1 | G24: 0 | H24: 0
A25: Identificación de clúster productivos del conocimiento en Jalisco | B25: Estudios Regionales INESER | C25: Licenciado en Economía | D25: PROSNII | E25: SI | F25: 1 | G25: 0 | H25: 0
A26: Urbaliteracidad | B26: Políticas Públicas | C26: Ingeniería en negocios | D26: PROSNII | E26: SI | F26: 1 | G26: 0 | H26: 0
A27: Migrantes LGBT+ centroamericanos en México y hacia Estados Unidos: de la frontera corporal a los cuestionamientos políticos | B27: Ciencias Sosiales y Júridicas | C27: Licenciatura en Sociología | D27: PROSNII | E27: SI | F27: 1 | G27: 0 | H27: 0
A28: Repensando la Zona Metropolitan de Guadalajara - Hacia una Ciudad-Región del Siglo XXI | B28: Políticas Públicas | C28: Licenciatura en Administracion Gubernamental y Políticas Públicas | D28: PROSNII | E28: SI | F28: 1 | G28: 0 | H28: 0
A29: Thorstein Veblen y su aporte a la Economia Latinoamericana | B29: Administración | C29: Maestría en Tecnologías para el Aprendizaje | D29: PROSNII | E29: SI | F29: 0 | G29: 1 | H29: 0
A30: Liderazgo y Emprendimiento Multicultural en la Era Digital. | B30: Administración | C30: Licenciatura en Negocios Internacionales | D30: PROSNII | E30: SI | F30: 1 | G30: 0 | H30: 0
A31: Módulo 1. Economía regional y sectorial: | B31: Economía - Estudios Reginales INESER | C31: Licenciatura en Economía Licenciatura en Negocios Internacionales Ingenieria en Negocios | D31: PLEJ | E31: SI | F31: 3 | G31: 0 | H31: 0
A32: Módulo 2. Pronóstico y monitoreo económico: | B32: Estudios Reginales INESER | C32: Licenciatura en Economía Licenciatura en Negocios Internacionales Ingenieria en Negocios | D32: PLEJ | E32: SI | F32: 3 | G32: 0 | H32: 0
A33: Módulo 3. Finanzas y políticas públicas para el desarrollo: | B33: Políticas Públicas | C33: Licenciatura en Economía Licenciatura en Negocios Internacionales Licenciatura en Finanzas Doctorado en Políticas Públicas | D33: PLEJ | E33: SI | F33: 3 | G33: 0 | H33: 1
A34: Módulo 4. Sociodemografía y mercado laboral: en Negocios | B34: Estudios Regionales INESER | C34: Doctorado en Políticas Públicas y Desarrollo Licenciatura en Negocios Internacionales Ingenieria en Negocios | D34: PLEJ | E34: SI | F34: 3 | G34: 0 | H34: 1
A35: Módulo 5. Economía, sustentabilidad y medio ambiente: | B35: Métodos Cuantitativos | C35: Licenciatura en Economía Licenciatura en Negocios Internacionales Licenciatura en Finanzas Licenciatura en Gestión y Economía Ambiental Ingenieria en Negocios | D35: PLEJ | E35: SI | F35: 5 | G35: 0 | H35: 0
A36: Programa Becario Plataforma Economia de Jalisco 2025 | B36: Métodos Cuantitativos | C36: Licenciatura en Economía Licenciatura en Negocios Internacionales Ingenieria en Negocios | D36: PLEJ | E36: NO | F36: 3 | G36: 0 | H36: 0
A37: Proyecto "Renegociación del T-MEC: equipo técnico de Jalisco, CCIJ-Academia" | B37: Métodos Cuantitativos | C37: Licenciatura en Negocios Internacionales Ingenieria en Negocios | D37: PLEJ | E37: NO | F37: 2 | G37: 0 | H37: 0
A38: Agroemprende | B38: Métodos Cuantitativos | C38: Licenciatura en Economía Licenciatura en Negocios Internacionales | D38: PLEJ | E38: NO | F38: 2 | G38: 0 | H38: 0
A39: Desarrollo local mediante estrategias de gobernanza de bienes de uso colectivo. Teoria y estudios de caso en comunidades de Costa rica y Mexico | B39: Economía | C39: Licenciatura en Administración | D39: PEES | E39: NO | F39: 1 | G39: 0 | H39: 0
A40: La economia circular y la gestion de residuos solidos y urbanos en Mexico: un analisis a patir de datos del INEGI. | B40: Mercadotecnia y Negocios Internacionales | C40: Licenciatura en Negocios Internacionales | D40: PEES | E40: NO | F40: 1 | G40: 0 | H40: 0
A41: Identificacion de cluster creativos y del conocimiento en Jalisco. | B41: Estudios Regionales INESER | C41: Licenciatura en Negocios Internacionales | D41: PEES | E41: NO | F41: 1 | G41: 0 | H41: 0
A42: Cultura terapeutica y emociones: un estudio desde los afectos y el genero | B42: Ciencias Sociales y Juridicas | C42: Licenciatura en Mercadotecnia | D42: PEES | E42: NO | F42: 1 | G42: 0 | H42: 0
A43: Finanzas en los universitarios y aplicaciones. | B43: Ciencias Sociales y Juridicas | C43: Licenciatura en Gestión de Negocios Gastronómicos | D43: PEES | E43: NO | F43: 1 | G43: 0 | H43: 0
A44: Analisis de la justicia ambiental en la gestion de riesgos de desastre y adaptacion al cambio climatico en Mexico. | B44: Ciencias Sociales y Juridicas | C44: Licenciatura en Contaduría Pública | D44: PEES | E44: NO | F44: 1 | G44: 0 | H44: 0
A45: Analisis de riesgo y dilemas eticos en la adopcion de las politicas publicas de inteligencia artificial. | B45: Políticas Públicas | C45: Licenciatura en Administración Financiera y Sistemas | D45: PEES | E45: NO | F45: 1 | G45: 0 | H45: 0
A46: Consumo utilitario y hedonico de alimentos para los adultos mayores. | B46: Turismo, Recreación y Servicio | C46: Licenciatura en Contaduría Pública | D46: PEES | E46: NO | F46: 1 | G46: 0 | H46: 0
A47: Trubutacion y desarrollo para Jalisco. Oportunidades de crecimiento a partir de la eficiencia, eficacia y buen uso de los recursos. | B47: Impuestos | C47: Licenciatura en Economía | D47: PEES | E47: NO | F47: 1 | G47: 0 | H47: 0
A48: Fomento a la innovacion social y al emprendimiento universitario. | B48: Auditoría | C48: Licenciatura en Contaduría Pública | D48: PEES | E48: NO | F48: 1 | G48: 0 | H48: 0
A49: Salud y desarrollo. | B49: Economía | C49: Licenciatura en Contaduría Pública | D49: PEES | E49: NO | F49: 1 | G49: 0 | H49: 0
A50: Articulacion productiva en las empresas acuicolas de la Region Alianza Pacifico en los paises de Colombia, Chile, Peru y Mexico. | B50: Administración | C50: Licenciatura en Contaduría Pública | D50: PEES | E50: NO | F50: 1 | G50: 0 | H50: 0
A51: Valoracion de coeficiente de cluster para comparar el impacto social. | B51: Recursos humanos | C51: Licenciatura en Negocios Internacionales | D51: PEES | E51: NO | F51: 1 | G51: 0 | H51: 0
A52: Fortalecimineto de la escritura academica en el posgrado. El uso de la AI y analisis critico del discurso. | B52: Estudios Regionales INESER | C52: Licenciatura en Administración Gubernamental y Politicas Públicas | D52: PEES | E52: NO | F52: 1 | G52: 0 | H52: 0
A53: Factores psicosociales y comportamiento emprendedor en estudiantes universitarios: Resilencia, genero y incompetencias para el siglo xxi. | B53: Administración | C53: Licenciatura en Administración Financiera y Sistemas | D53: PEES | E53: NO | F53: 1 | G53: 0 | H53: 0
A54: Sistematizacion de liderazgo de pleanacion a 31 años de la red universitaria. | B54: Recursos humanos | C54: Licenciatura en Recursos Humanos | D54: PEES | E54: NO | F54: 1 | G54: 0 | H54: 0
A55: Responsabilidiad legal de los desarrolladores de inteligencia artificial de alto riesgo. | B55: Ciencias Sociales y Juridicas | C55: Licenciatura en Negocios Internacionales | D55: PEES | E55: NO | F55: 1 | G55: 0 | H55: 0
A56: Evaluacion de la pobreza energetica en zapopan. | B56: Economía | C56: Licenciatura en Negocios Internacionales | D56: PEES | E56: NO | F56: 1 | G56: 0 | H56: 0
A57: Politicas publicas de los H. ayuntamientos de tlaquepaque y tonala, Jalisco, 2024-2026, para apoyo a los artesanos en barro en sus diferentes necesidades de continuidad con la tradicion de conservacion de saberes y tadiciones. | B57: Finanzas | C57: Licenciatura en Negocios Internacionales | D57: PEES | E57: NO | F57: 1 | G57: 0 | H57: 0
A58: El nearshoring: expectativas para el desarrollo industrial en el occidente de Mexico. | B58: Estudios Regionales INESER | C58: Licenciatura en Administración | D58: PEES | E58: NO | F58: 1 | G58: 0 | H58: 0
A59: Apoyo a vocaciones cientificas de Jovenes investigadores y propuesta de creacion del centro para la economia digital (CEPED). | B59: Economía | C59: Licenciatura en Economía | D59: PEES | E59: NO | F59: 1 | G59: 0 | H59: 0
A60: Fuente: Secretaría Académica / Coordinación de Investigación Corte: Diciembre, 2025

Sheet T-47
A1: Eje 2: Generar Conocimientos | E1: Índice
A2: Recursos aprobados por Programas de apoyo a la investigación, 2025 | C2: Tabla 47
A3: Organismo | B3: Programa | C3: Recurso Autorizado (pesos)
A4: SEP a través de la Dirección General de Educación Superior Universitaria e Intercultural DGESUI | B4: Convocatoria de Apoyo a PTC con Perfil Deseable 2025 del Programa Para el Desarrollo Profesional Docente (PRODEP) | C4: 166470
A5: Dirección de Fortalecimiento Institucional (DFI) | C5: 161833.24
A6: Fuente: Secretaría Académica / Coordinación de Investigación Corte: Diciembre, 2025

Sheet T-48
A1: Eje 2: Generar Conocimientos | F1: Índice
A2: Estudiantes que participan en programas para la formación como investigadores, 2025 | D2: Tabla 48
A3: Nivel Educativo | B3: Total | C3: 2025
C4: Hombre | D4: Mujer
A5: Licenciatura | B5: =+D5+C5 -> 86 | C5: 18 | D5: 68
A6: Maestría | B6: 6 | C6: 2 | D6: 4
A7: Doctorado | B7: 0 | C7: 0 | D7: 0
A8: Total | B8: =SUM(B5:B7) -> 92 | C8: 20 | D8: 72
A9: Fuente: Secretaría Académica / Coordinación de Investigación Corte: Diciembre, 2025

Sheet T-49
A1: Eje 2: Generar Conocimientos | D1: Índice
A2: Proyectos de investigación con becario PROSNII por departamento, 2025 | B2: Tabla 49
A3: Departamento | B3: Proyectos
A4: Administración | B4: 3
A5: Auditoría | B5: 0
A6: Ciencias Sociales y Jurídicas | B6: 4
A7: Contabilidad | B7: 2
A8: Economía | B8: 3
A9: Estudios Regionales INESER | B9: 4
A10: Finanzas | B10: 1
A11: Impuestos | B11: 0
A12: Mercadotecnia y Negocios Internacionales | B12: 0
A13: Métodos Cuantitativos | B13: 1
A14: Políticas Públicas | B14: 6
A15: Sistemas de Información | B15: 1
A16: Recursos Humanos | B16: 0
A17: Turismo, Recreación y Servicios | B17: 0
A18: Total | B18: =SUM(B4:B17) -> 25
A19: Fuente: Secretaría Académica / Coordinación de Investigación Corte: Diciembre, 2025

Sheet T-50
A1: Eje 2: Generar Conocimientos | E1: Índice
A2: Estudiantes participantes como becarios PROSNII por carrera, 2025 | C2: Tabla 50
A3: Programa educativo | B3: Proyecto | C3: Estudiantes
A4: Ingeniería en Negocios | B4: Urbaliteracidad | C4: 1
A5: Licenciatura Administración Gubernamental y Políticas Públicas | B5: Finanzas Públicas Locales | C5: 1
A6: Licenciatura en Administración Financiera y Sistemas | B6: Análisis de la desigualdad estructural, desempeño económico y seguridad pública para la construcción de seguridad humana | C6: 1
A7: Licenciatura en Administración Financiera y Sistemas | B7: Finanzas cuantitativas aplicadas | C7: 1
A8: Licenciatura en Administración Financiera y Sistemas | B8: Thorstein veblen y su aporte a la Economía Latinoamericana | C8: 1
A9: Licenciatura en Administracion Gubernamental y Políticas Públicas | B9: Repensando la Zona Metropolitan de Guadalajara - Hacia una Ciudad-Región del Siglo XXI | C9: 1
A10: Licenciatura en Administración Gubernamental y Políticas Públicas | B10: Prácticas y hábitos de lectura y escritura en universitarios | C10: 1
A11: Licenciatura en Administración gubernamental y políticas públicas | B11: Inteligencia artificial en la fiscalización: tendencias recaudatorias municipales, estatales y federales de México | C11: 1
A12: Licenciatura en Administración Gubernamental y Políticas Públicas | B12: La modernización agropecuaria en Jalisco: vida y obra de José W. Torres | C12: 1
A13: Licenciatura en Administración Gubernamental y Políticas Públicas | B13: Migración de privilegio. Contrastes y desigualdades: migración internacional de retirados y migración de tránsito en México. | C13: 1
A14: Licenciatura en Administración Gubernamental y Políticas Públicas | B14: Instituciones de la modernidad | C14: 1
A15: Licenciatura en Contaduría Pública | B15: Reestructuración productiva y estudios locales | C15: 1
A16: Licenciatura en Economía | B16: Identificación de clúster productivos del conocimiento en Jalisco | C16: 1
A17: Licenciatura en Economía | B17: Estudio sobre Energías Renovables en Jalisco | C17: 1
A18: Licenciatura en Economía | B18: Inteligencia artificial en la fiscalización: tendencias recaudatorias municipales, estatales y federales de México. | C18: 1
A19: Licenciatura en Gestión y Economía Ambiental | B19: El Caso Universidad Sostenible: un sistema de gestión ambiental para la Red Universitaria de Jalisco | C19: 1
A20: Licenciatura en Gestión y Economía Ambiental | B20: Sistema de Información Socio Ambiental | C20: 1
A21: Licenciatura en Historia | B21: Bandidaje y criminalidad en Jalisco: representaciones en literatura y prensa. Siglos XIX y XX | C21: 1
A22: Licenciatura en Historia | B22: Teorías y debates en torno al conflicto y las violencias en México | C22: 1
A23: Licenciatura en Historia | B23: La evolución del crecimiento de la población de la parroquia de Lagos de Moreno a partir de los registros parroquiales | C23: 1
A24: Licenciatura en Relaciones Públicas y Comunicación | B24: Características de los estudiantes de los posgrados en el CUCEA | C24: 1
A25: Licenciatura en Sociología | B25: Migrantes LGBT+ centroamericanos en México y hacia Estados Unidos: de la frontera corporal a los cuestionamientos políticos | C25: 1
A26: Licenciatura en Tecnologías de la Información | B26: Radiación Electromagnética No ionizante | C26: 1
A27: Licenciatura Negocios Internacionales | B27: Liderazgo y Emprendimiento Multicultural en la Era Digital. | C27: 1
A28: Maestría en Economía | B28: Acceso al Crédito y Salud Mental: Un Estudio Comparativo entre Fuentes Formales e Informales de Financiamiento | C28: 1
A29: Maestría en Tecnologías para el Aprendizaje | B29: Thorstein veblen y su aporte a la Economía Latinoamericana | C29: 1
A30: Total | C30: =SUM(C4:C29) -> 26
A31: Fuente: Secretaría Académica / Coordinación de Investigación Corte: Diciembre, 2025

Sheet T-51
A1: Eje 2: Generar Conocimientos | G1: Índice
A2: Estudiantes de licenciatura participantes en el Programa Delfín (Salientes), 2025 | D2: Tabla 51
A3: Programa educativo | B3: Total | C3: Sexo
C4: Hombres | D4: Mujeres
A5: Licenciatura | B5: =SUM(B6:B19) -> 66 | C5: 12 | D5: 54
A6: Administración | B6: =C6+D6 -> 9 | C6: 0 | D6: 9
A7: Administración Financiera y Sistemas | B7: 8 | C7: 2 | D7: 6
A8: Administración Gubernamental y Políticas Públicas | B8: 1 | C8: 0 | D8: 1
A9: Contaduría Pública | B9: 3 | C9: 1 | D9: 2
A10: Economía | B10: 3 | C10: 2 | D10: 1
A11: Gestión de Negocios Gastronómicos | B11: 8 | C11: 2 | D11: 6
A12: Gestión y Economía Ambiental | B12: 1 | C12: 0 | D12: 1
A13: Ingeniería en Negocios | B13: 1 | C13: 0 | D13: 1
A14: Mercadotecnia | B14: 8 | C14: 1 | D14: 7
A15: Negocios Internacionales | B15: 18 | C15: 3 | D15: 15
A16: Recursos Humanos | B16: 1 | C16: 0 | D16: 1
A17: Relaciones Públicas y Comunicación | B17: 2 | C17: 0 | D17: 2
A18: Tecnologías de la información | B18: 1 | C18: 1 | D18: 0
A19: Turismo | B19: 2 | C19: 0 | D19: 2
A20: Maestría | B20: 6 | C20: =SUM(C21:C39) -> 2 | D20: 4
A21: Administración de Negocios | B21: =C21+D21 -> 0 | C21: 0 | D21: 0
A22: Ciencia de los Datos | B22: 1 | C22: 1 | D22: 0
A23: Dirección de Mercadotecnia | B23: 0 | C23: 0 | D23: 0
A24: Economía | B24: 0 | C24: 0 | D24: 0
A25: Educación Superior Internacional | B25: 1 | C25: 0 | D25: 1
A26: Estudios de las Violencias de Género | B26: 0 | C26: 0 | D26: 0
A27: Estudios Fiscales | B27: 0 | C27: 0 | D27: 0
A28: Estudios sobre Juventudes | B28: 0 | C28: 0 | D28: 0
A29: Finanzas | B29: 0 | C29: 0 | D29: 0
A30: Gestión de la Seguridad y Salud en el Trabajo | B30: 0 | C30: 0 | D30: 0
A31: Gestión y Políticas de la Educación Superior | B31: 0 | C31: 0 | D31: 0
A32: Gobierno Electrónico | B32: 0 | C32: 0 | D32: 0
A33: Innovación Social y Gestión del Bienestar | B33: 3 | C33: 1 | D33: 2
A34: Negocios y Estudios Económicos | B34: 0 | C34: 0 | D34: 0
A35: Políticas Públicas | B35: 1 | C35: 0 | D35: 1
A36: Relaciones Económicas Internacionales y Cooperación | B36: 0 | C36: 0 | D36: 0
A37: Resolución de Conflictos | B37: 0 | C37: 0 | D37: 0
A38: Tecnologías de Información | B38: 0 | C38: 0 | D38: 0
A39: Tecnologías para el Aprendizaje | B39: 0 | C39: 0 | D39: 0
A40: Total | B40: =B20+B5 -> 72 | C40: 14 | D40: 58
A41: Fuente: Secretaría Académica / Coordinación de Investigación Corte: Diciembre, 2025

Sheet T-52
A1: Eje 2: Generar Conocimientos | F1: Índice
A2: Estudiantes nacionales y extranjeros entrantes en el programa Delfín, 2025 | D2: Tabla 52
A3: Estado | B3: Total | C3: Estudiantes (2025)
C4: Hombres | D4: Mujeres
A5: Colombia | B5: =+C5+D5 -> 30 | C5: 14 | D5: 16
A6: Jalisco | B6: 22 | C6: 8 | D6: 14
A7: Baja California | B7: 8 | C7: 3 | D7: 5
A8: Chiapas | B8: 2 | C8: 0 | D8: 2
A9: Coahuila | B9: 2 | C9: 1 | D9: 1
A10: Colima | B10: 4 | C10: 3 | D10: 1
A11: Durango | B11: 2 | C11: 2 | D11: 0
A12: Estado de México | B12: 6 | C12: 1 | D12: 5
A13: Guerrero | B13: 7 | C13: 0 | D13: 7
A14: Michoacán | B14: 12 | C14: 6 | D14: 6
A15: Morelos | B15: 0 | C15: 0 | D15: 0
A16: Nayarit | B16: 26 | C16: 7 | D16: 19
A17: Oaxaca | B17: 0 | C17: 0 | D17: 0
A18: Puebla | B18: 3 | C18: 2 | D18: 1
A19: Quintana Roo | B19: 0 | C19: 0 | D19: 0
A20: Sinaloa | B20: 12 | C20: 2 | D20: 10
A21: Sonora | B21: 6 | C21: 2 | D21: 4
A22: Tamaulipas | B22: 7 | C22: 1 | D22: 6
A23: Tijuana | B23: 1 | C23: 1 | D23: 0
A24: Veracruz | B24: 4 | C24: 1 | D24: 3
A25: Yucatán | B25: 1 | C25: 0 | D25: 1
A26: Total | B26: =SUM(B5:B25) -> 155 | C26: 54 | D26: 101
A27: Fuente: Secretaría Académica / Coordinación de Investigación Corte: Diciembre, 2025

Sheet T-53
A1: Eje 2: Generar Conocimientos | K1: Índice
A2: Estudiantes que participan en olimpiadas y concursos científicos nacionales e internacionales, 2025 | H2: Tabla 53
A3: Disciplina | B3: Nacionalidad / Sexo
B4: Nacional | F4: Internacional
B5: Olimpiadas y/o concursos | C5: Total | D5: Sexo | F5: Olimpiadas y/o concursos | G5: Total | H5: Sexo
D6: Hombres | E6: Mujeres | H6: Hombres | I6: Mujeres
A7: Administración y negocios | B7: 5 | C7: =D7+E7 -> 487 | D7: 215 | E7: 272 | F7: 1 | G7: =H7+I7 -> 5 | H7: 3 | I7: 2
A8: Ciencias de la salud | B8: 10 | C8: 14 | D8: 5 | E8: 9 | F8: 1 | G8: 3 | H8: 3 | I8: 0
A9: Educación | B9: 3 | C9: 3 | D9: 2 | E9: 1 | F9: 1 | G9: 1 | H9: 1 | I9: 0
A10: Tecnologías de la información y la comunidad | B10: 0 | C10: 0 | D10: 0 | E10: 0 | F10: 1 | G10: 1 | H10: 0 | I10: 1
A11: Total | B11: =SUM(B7:B10) -> 18 | C11: 504 | D11: 222 | E11: 282 | F11: 4 | G11: 10 | H11: 7 | I11: 3
A12: Fuente: División de Gestión Empresarial / División de Economía y Sociedad / División de Contaduría Corte: Diciembre, 2025

Sheet T-54
A1: Eje 2: Generar Conocimientos | U1: Índice
A2: Logros obtenidos por estudiantes en las olimpiadas nacionales e internacionales de la ciencia, por División, 2025 | R2: Tabla 54
A3: Disciplina | B3: Nacional | K3: Internacional
B4: Total | C4: Primer lugar | E4: Total | F4: Segundo lugar | H4: Total | I4: Tercer lugar | K4: Total | L4: Primer lugar | N4: Total | O4: Segundo lugar | Q4: Total | R4: Tercer lugar
C5: Hombres | D5: Mujeres | F5: Hombres | G5: Mujeres | I5: Hombres | J5: Mujeres | L5: Hombres | M5: Mujeres | O5: Hombres | P5: Mujeres | R5: Hombres | S5: Mujeres
A6: Administración y negocios | B6: =C6+D6 -> 0 | C6: 0 | D6: 0 | E6: =F6+G6 -> 1 | F6: 0 | G6: 1 | H6: =I6+J6 -> 1 | I6: 1 | J6: 0 | K6: =L6+M6 -> 0 | L6: 0 | M6: 0 | N6: =O6+P6 -> 3 | O6: 3 | P6: 0 | Q6: =R6+S6 -> 5 | R6: 3 | S6: 2
A7: Ciencias sociales y derecho | B7: 0 | C7: 0 | D7: 0 | E7: 3 | F7: 1 | G7: 2 | H7: 0 | I7: 0 | J7: 0 | K7: 0 | L7: 0 | M7: 0 | N7: 0 | O7: 0 | P7: 0 | Q7: 0 | R7: 0 | S7: 0
A8: Educación | B8: 1 | C8: 1 | D8: 0 | E8: 1 | F8: 0 | G8: 1 | H8: 0 | I8: 0 | J8: 0 | K8: 1 | L8: 0 | M8: 1 | N8: 0 | O8: 0 | P8: 0 | Q8: 0 | R8: 0 | S8: 0
A9: Total | B9: 1 | C9: =SUM(C6:C8) -> 1 | D9: 0 | E9: 5 | F9: =SUM(F6:F8) -> 1 | G9: 4 | H9: 1 | I9: =SUM(I6:I8) -> 1 | J9: 0 | K9: 1 | L9: =SUM(L6:L8) -> 0 | M9: 1 | N9: 3 | O9: =SUM(O6:O8) -> 3 | P9: 0 | Q9: 5 | R9: =SUM(R6:R8) -> 3 | S9: 2
A10: Fuente: División de Gestión Empresarial / División de Economía y Sociedad / División de Contaduría Corte: Diciembre, 2025

Sheet T-55
A1: Eje 2: Generar Conocimientos | J1: Índice
A2: Producción Científica, 2019 - 2025 | F2: Tabla 55
A3: Producto | B3: Publicaciones
B4: 2019 | C4: 2020 | D4: 2021 | E4: 2022 | F4: 2023 | G4: 2024 | H4: 2025
A5: Artículos | B5: 265 | C5: 181 | D5: 292 | E5: 345 | F5: 308 | G5: 261 | H5: 314
A6: Capítulos de libros | B6: 188 | C6: 218 | D6: 211 | E6: 222 | F6: 249 | G6: 248 | H6: 295
A7: Libros | B7: 70 | C7: 77 | D7: 97 | E7: 83 | F7: 84 | G7: 94 | H7: 119
A8: Memorias | B8: 1 | C8: 1 | D8: 7 | E8: 7 | F8: 12 | G8: 6 | H8: 9
A9: Patentes | B9: 0 | C9: 3 | D9: 19 | E9: 3 | F9: 4 | G9: 12 | H9: 6
A10: Revistas | B10: 8 | C10: 7 | D10: 9 | E10: 10 | F10: 10 | G10: 9 | H10: 10
A11: Total | B11: =SUM(B5:B10) -> 532 | C11: =SUM(C5:C10) -> 487 | D11: 635 | E11: 670 | F11: 667 | G11: 630 | H11: 753
A12: Fuente: Secretaría Académica / Unidad de Producción Editorial Corte: Diciembre, 2025
S23: |

Sheet T-56
A1: Eje 2: Generar Conocimientos | L1: Índice
A2: Publicaciones científicas y patentes por tipo, departamentos y posgrado, 2025 | I2: Tabla 56
A3: División/Departamento | B3: Total | C3: Libro | D3: Capítulo de libro | E3: Artículo Arbitrado | F3: Artículo Indexado | G3: Artículo divulgación | H3: Memorias en extenso | I3: Patente | J3: Informe Técnico
A4: División de Contaduría | B4: =SUM(B5:B8) -> 89 | C4: 20 | D4: 36 | E4: 12 | F4: 15 | G4: 2 | H4: 3 | I4: 0 | J4: 1
A5: Auditoría | B5: =SUM(C5:J5) -> 12 | C5: 5 | D5: 5 | E5: 1 | F5: 1 | G5: 0 | H5: 0 | I5: 0 | J5: 0
A6: Contabilidad | B6: 24 | C6: 4 | D6: 10 | E6: 4 | F6: 4 | G6: 0 | H6: 2 | I6: 0 | J6: 0
A7: Finanzas | B7: 13 | C7: 5 | D7: 1 | E7: 0 | F7: 6 | G7: 0 | H7: 0 | I7: 0 | J7: 1
A8: Impuestos | B8: 40 | C8: 6 | D8: 20 | E8: 7 | F8: 4 | G8: 2 | H8: 1 | I8: 0 | J8: 0
A9: División de Economía y Sociedad | B9: =SUM(B10:B14) -> 317 | C9: 41 | D9: 102 | E9: 25 | F9: 65 | G9: 77 | H9: 2 | I9: 0 | J9: 5
A10: Ciencias Sociales y Jurídicas | B10: =SUM(C10:J10) -> 53 | C10: 7 | D10: 20 | E10: 5 | F10: 19 | G10: 1 | H10: 1 | I10: 0 | J10: 0
A11: Economía | B11: 21 | C11: 6 | D11: 5 | E11: 1 | F11: 4 | G11: 2 | H11: 0 | I11: 0 | J11: 3
A12: Estudios Regionales - INESER | B12: 57 | C12: 7 | D12: 26 | E12: 12 | F12: 12 | G12: 0 | H12: 0 | I12: 0 | J12: 0
A13: Métodos Cuantitativos | B13: 35 | C13: 1 | D13: 16 | E13: 4 | F13: 9 | G13: 4 | H13: 1 | I13: 0 | J13: 0
A14: Políticas Públicas | B14: 151 | C14: 20 | D14: 35 | E14: 3 | F14: 21 | G14: 70 | H14: 0 | I14: 0 | J14: 2
A15: División de Gestión Empresarial | B15: =SUM(B16:B20) -> 309 | C15: 49 | D15: 147 | E15: 37 | F15: 55 | G15: 10 | H15: 4 | I15: 6 | J15: 1
A16: Administración | B16: 133 | C16: 23 | D16: 55 | E16: 25 | F16: 23 | G16: 4 | H16: 2 | I16: 0 | J16: 1
A17: Mercadotecnia y Negocios Internacionales | B17: 77 | C17: 9 | D17: 52 | E17: 1 | F17: 11 | G17: 4 | H17: 0 | I17: 0 | J17: 0
A18: Recursos Humanos | B18: 26 | C18: 7 | D18: 12 | E18: 3 | F18: 4 | G18: 0 | H18: 0 | I18: 0 | J18: 0
A19: Sistemas de Información | B19: 49 | C19: 7 | D19: 15 | E19: 5 | F19: 14 | G19: 0 | H19: 2 | I19: 6 | J19: 0
A20: Turismo, Recreación y Servicios | B20: 24 | C20: 3 | D20: 13 | E20: 3 | F20: 3 | G20: 2 | H20: 0 | I20: 0 | J20: 0
A21: Posgrado | B21: =SUM(C21:J21) -> 36 | C21: 9 | D21: 10 | E21: 7 | F21: 8 | G21: 1 | H21: 0 | I21: 0 | J21: 1
A22: Total | B22: =+B4+B9+B15+B21 -> 751 | C22: 119 | D22: 295 | E22: 81 | F22: 143 | G22: 90 | H22: 9 | I22: 6 | J22: 8
A23: Fuente: Secretaría Académica/ Unidad de Producción Editorial Corte: Diciembre, 2025

Sheet T-57
A1: Eje 2: Generar Conocimientos
A2: Libros publicados con recursos de CUCEA, 2025 | D2: Tabla 56
A3: No. | B3: Titulo de la Obra | C3: Monto | D3: Tipo de Recurso
A4: 1 | B4: Generaciones en balance: ahorro, pensiones y la transformación del mundo laboral hacia la sustentabilidad y las nuevas tendencias comerciales | C4: 13276.12 | D4: Subsidio Ordinario Gobierno Federal
A5: 2 | B5: Tendencias y riesgos en la administración financiera, tributaria y educativa orientados a los Objetivos de Desarrollo Social Sostenible | C5: 9232.44 | D5: Subsidio Ordinario Gobierno Federal
A6: 3 | B6: Competencias sociales en estudiantado de educación primaria en situación de reprobación en el municipio de Colotlán, Jalisco. | C6: 7904 | D6: Subsidio Ordinario Gobierno Federal
A7: 4 | B7: Las ciencias económico administrativas y la sociedad: Textos de investigación y divulgación | C7: 32364 | D7: Prog Compensa Para La Transición Gradual Hacia La Gratuidad De Los Servicios Educativos De Posgrado
A8: 5 | B8: Violencias de Género: Andamiajes multidisciplinarios para su abordaje | C8: $ 15,488.00 $ 40,832.00 | D8: Subsidio Ordinario Gobierno Federal Subsidio Estatal
A9: 6 | B9: Sostenibilidad socio ambiental y formación ética universitaria | C9: 113767.6 | D9: Subsidio Ordinario Gobierno Federal
A10: 7 | B10: Violencia Vicaria: Muerte por goteo o feminicidio moral | C10: 50000 | D10: Prog Compensa Para La Transición Gradual Hacia La Gratuidad De Los Servicios Educativos De Posgrado
A11: 8 | B11: Trabajo, Justicia Social y Políticas Públicas en México: Aportes para el Plan Nacional de Desarrollo 2025–2030 | C11: 17644.76 | D11: Subsidio Ordinario Gobierno Federal
A12: 9 | B12: México-Japón y el nuevo orden mundial | C12: 75360 | D12: Subsidio Ordinario Gobierno Federal
A13: 10 | B13: Juventudes y tecnologías: Estudios emergentes sobre educación, cultura digital e inteligencia artificial | C13: 21808 | D13: Programa Para La Consolidación Del Posgrado (Pcp)
A14: 11 | B14: La ciudad a orillas del bosque: vulnerabilidad social y climática en asentamientos periurbanos de Zapopan, Jalisco | C14: 15488 | D14: Subsidio Ordinario Gobierno Federal
A15: 12 | B15: Gestión de la Educación Superior. Temas Estratégicos para el Debate | C15: 17980 | D15: Prog Compensa Para La Transición Gradual Hacia La Gratuidad De Los Servicios Educativos De Posgrado
A16: 13 | B16: Entender conflictos y negociar soluciones- Ventanas al desarrollo de capacidades en el mundo del turismo | C16: 22480 | D16: Subsidio Ordinario Gobierno Federal
A17: 14 | B17: After the American Dream: Heterogeneidad en la (re)integración de migrantes de retorno en México | C17: 19976 | D17: Subsidio Ordinario Gobierno Federal
A18: 15 | B18: Determinantes de la desigualdad, demográficos y de movilidad en la predicción y distribución del riesgo y progresión de la enfermedad por coronavirus 2019 (COVID-19) en México | C18: 5616 | D18: Subsidio Ordinario Gobierno Federal
A19: 16 | B19: Inteligencia artificial en la fiscalización: tendencias recaudatorias municipales, estatales y federales de México | C19: 25149 | D19: Subsidio Ordinario Gobierno Federal
A20: 17 | B20: Fronteras Dinámicas: Derecho y tecnología en la era digital. Perspectivas críticas y soluciones jurídicas para un nuevo paradigma social | C20: 12848 | D20: Subsidio Ordinario Gobierno Federal
A21: 18 | B21: Responsabilidad Social y Sustentabilidad: Perspectivas desde la Educación, la Empresa y la Tecnología | C21: 11450.64 | D21: Subsidio Ordinario Gobierno Federal
A22: 19 | B22: Pensar fuera de la caja burocrática | C22: 261975 | D22: Ingresos Autogenerados
A23: 20 | B23: Medio ambiente: Principios, políticas fiscales y ambientales, libre comercio, tributación, bono de carbono, empresas socialmente Responsables, banca verde y financiamiento y auditoría ambiental voluntaria y oficiosa | C23: 12579 | D23: Subsidio Ordinario Gobierno Federal
A24: 21 | B24: Administración de la Innovación para el desarrollo sostenible | C24: 29000 | D24: Prosnii
A25: 22 | B25: Estereotipos de Género, Discriminación e Imagen Política. Un Acercamiento Empírico desde la Comunicación. | C25: 25834.92 | D25: Subsidio Ordinario Gobierno Federal
A26: 23 | B26: Transparencia y Comunicación Corporativa: Estrategias para la Confianza y la Inclusión | C26: 14762.81 | D26: Subsidio Ordinario Gobierno Federal
A27: 24 | B27: Responsabilidad Social y Sustentabilidad: Perspectivas desde la Educación, la Empresa y la Tecnología | C27: 11575.38 | D27: Subsidio Ordinario Gobierno Federal
A28: 25 | B28: Generaciones en Balance: Ahorro, Pensiones y la Transformación del Mundo Laboral hacia la Sustentabilidad y las Nuevas Tendencias Comerciales | C28: 13420.74 | D28: Subsidio Ordinario Gobierno Federal
A29: Fuente: Secretaría Académica / Unidad de Producción Editorial / Secretaria Administrativa / Coordinación de Finanzas Corte: Diciembre, 2025

Sheet T-58
A1: Eje 2: Generar Conocimientos | K1: Índice
A2: Publicaciones apoyadas por el Programa de Revistas Científicas, 2025 | G2: Tabla 58
A3: Revista | B3: Tipo de Publicación | C3: Tipo de formato: Impreso / Digital | D3: Periodicidad | E3: Renovación de Reserva Al Uso Exclusivo que otorgó INDAUTOR a sus publicaciones | F3: ISSN | G3: Editor Responsable | H3: Datos de contacto | I3: Sitio web oficial de la publicación
A4: PACTUM | B4: Difusión Científica | C4: Digital | D4: Publicación semestral editada por el Departamento de Ciencias Sociales y Jurídicas desde 2021 | E4: 04-2022-110810163700-102 | F4: 2992-7064 | G4: Dra. Laura Yolanda Pacheco Urista | H4: laura.pacheco@academicos.udg.mx | I4: https://pactum.cucea.udg.mx/index.php/pactum
A5: Carta Económica Regional | B5: Difusión Científica | C5: Impreso y Digital | D5: Publicación semestral editada por el Departamento de Estudios Regionales -INESER desde 1988. en otoño de 2009 y con inicio de la nueva época. | E5: 04-2013-080110203000-102 via cómputo 04-2018-120616063500-203 | F5: Impreso 0187-7674 Digital 2683-2852 | G5: Dra. Asmara González Rojas | H5: asmara@cucea.udg.mx | I5: http://cartaeconomicaregional.cucea.udg.mx/index.php/CER
A6: Expresión Económica | B6: Difusión Científica | C6: Impreso y Digital | D6: Publicación semestral editada por el Departamento de Economía desde 1999 | E6: 04-2017-120818583500-102 | F6: Impreso 1870-5960 Digital 3061-7677 | G6: Dr. Salvador Peniche Camps | H6: speniche@cucea.udg.mx | I6: http://expresioneconomica.cucea.udg.mx/index.php/eera/index
A7: Mercados y Negocios | B7: Difusión Científica | C7: Impreso y Digital | D7: Publicación cuatrimestral editada por el Departamento de Mercadotecnia y Negocios Internacionales desde 2003 | E7: 04-2022-030410494500-203 | F7: Impreso 1665-7039 Digital 2594-0163 | G7: Dr. José Sánchez Gutiérrez | H7: revistamercadosynegocios@cucea.udg.mx | I7: http://mercadosynegocios.cucea.udg.mx/index.php/MYN/index
A8: EconoQuantum | B8: Difusión Científica | C8: Impreso y Digital | D8: Publicación semestral editada por el Departamento de Métodos Cuantitativos desde 2004 | E8: 04-2018-060412112900-102 Via cómputo 04-2006-032411551300-203 | F8: Impreso 1870-6622 Digital 2007-9869 | G8: Dr. Isai Guizar Mateos | H8: isai.guizar@cucea.udg.mx | I8: https://econoquantum.cucea.udg.mx/index.php/EQ
A9: Diagnóstico FÁCIL Empresarial | B9: Difusión Científica | C9: Impreso y Digital | D9: Publicación semestral editada por la División de Contaduría desde 2011 | E9: 04-2014-073111580100-203 | F9: Impreso 2007-2147 Digital 2683-1481 | G9: Dr. Cristian Omar Alcantar López | H9: cristian.alcantar@cucea.udg.mx | I9: https://dfe.cucea.udg.mx/index.php/dfe
A10: GESPyE | B10: Difusión Científica | C10: Impreso y Digital | D10: Publicación semestral editada por el Departamento de Administración desde 2000 con una nueva época en 2017 | E10: 04-2021-053113371700-102 | F10: Impreso 1665-6652 Digital en proceso | G10: Mtro. César Omar Mora Pérez | H10: cesar.mora@cucea.udg.mx | I10: https://sites.google.com/cucea.udg.mx/deptoadmoncucea/investigaci%C3%B3n/revista-gespye?authuser=1
A11: Journal of public governance and policy: Latin America Review | B11: Difusión Científica | C11: Impreso y Digital | D11: Publicación semestral editada por el Departamento de Políticas Públicas desde 2016 | E11: 04-2015-120712050900-102 | F11: Impreso 2448-7066 Digital en proceso | G11: Dr. Enrique Cabrero Mendoza | H11: enrique.cabrero@cucea.udg.mx | I11: https://iippg.cucea.udg.mx/journal
A12: RC Rendición de Cuentas | B12: Difusión Científica | C12: Impreso y Digital | D12: Publicación semestral editada por el Departamento de Políticas Públicas desde 2023 | E12: 04-2022-1117145611500-102 | F12: Impreso en proceso Digital 2992-7935 | G12: Dr. Mauricio Merino Huerta | H12: mauricio.merino@cucea.udg.mx | I12: http://rcrendiciondecuentas.udg.mx/index.php/UDGIIRCCC/index
A13: Cuadernos de Educación | B13: Divulgación | C13: Impreso y Digital | D13: Publicación semestral editada por el Departamento de Políticas Públicas desde 2026 | E13: 04-2025-103011344100-01 | F13: Impreso en proceso Digital en proceso | G13: Dr. Gilberto Ramón Guevara Niebla | H13: mauricio.merino@cucea.udg.mx | I13: En proceso
A14: Cuadernos de Educación | B14: Divulgación | C14: Impreso y Digital | D14: Publicación semestral editada por el Departamento de Políticas Públicas desde 2026 | E14: 04-2026-010513420600-102 | F14: Impreso en proceso Digital en proceso | G14: Dr. Gilberto Ramón Guevara Niebla | H14: mauricio.merino@cucea.udg.mx | I14: En proceso
A15: Fuente: Secretaría Académica / Coordinación de Investigación Corte: Diciembre, 2025

Sheet T-59
A1: Eje 2: Generar Conocimientos | G1: Índice
A2: Cátedras impartidas, 2025 | D2: Tabla 59
A3: Entidad universitaria / Cátedra | B3: Tema | C3: Total | D3: Participante
D4: Hombre | E4: Mujer
A5: Cátedra UNESCO de Género, Liderazgo y Equidad (ID 2007MX0772) | B5: Reunión Anual del Consejo Consultivo y del Consejo Técnico de la Cátedra UNESCO Género Liderazgo y Equidad 2025. | C5: =+D5+E5 -> 17 | D5: 3 | E5: 14
B6: Presentación del Programa “Letras Aliadas.” | C6: 235 | D6: 30 | E6: 205
B7: Presentación del libro: “Ellas al Frente”. | C7: 104 | D7: 46 | E7: 58
B8: Presentación del libro “Género y emprendimiento social” en la Feria Internacional del Libro en Guadalajara. | C8: 61 | D8: 30 | E8: 31
B9: Presentación del: “Número especial: Encuesta Universitaria de Género, Nuestras Voces” en la Feria Internacional del Libro en Guadalajara. | C9: 51 | D9: 7 | E9: 44
B10: Conferencia: "Cuestión de género. Feminismo, Derecho, Estado y Ley.". | C10: 24 | D10: 0 | E10: 24
B11: Conferencia Magistral “Violencia de género: de lo moral a lo político”, impartida por la Dra. Rita Segato. | C11: 348 | D11: 35 | E11: 313
B12: Conferencia: “Diálogo sobre pactos patriarcales y alianzas políticas entre mujeres y disidencias”, impartida por la Dra. Raquel Gutiérrez Aguilar. | C12: 128 | D12: 13 | E12: 115
B13: Círculo de reflexión: “Yo Menstruo, Yo Menstrue.” | C13: 39 | D13: 0 | E13: 39
B14: Participación Política de mujeres indígenas de Jalisco y Oaxaca: Encuentro Voces que Transforman. | C14: 53 | D14: 3 | E14: 50
B15: Conferencia Magistral “Genealogías feministas y prácticas anti-patriarcales en América Latina: resignificar nuestra historia colectiva y personal", impartida por la Dra. Raquel Gutiérrez Aguilar. | C15: 57 | D15: 22 | E15: 35
B16: Jornada de Reflexión: A un año de la Despenalización del Aborto en Jalisco. | C16: 51 | D16: 2 | E16: 49
A17: Cátedra en Migración Internacional Forzada, Inclusión y Derechos Humanos (Cátedra MIFID) | B17: 10 Sesiones de Seminario TRAMOS | C17: 220 | D17: 100 | E17: 120
B18: Tercer Foro Sobre Migración y Desplazamiento Forzado (CUCEA 2025) | C18: 160 | D18: 70 | E18: 90
B19: Seminario Internacional de Movilidad y Paz | C19: 100 | D19: 45 | E19: 55
B20: International webinar, "Towards a Global South School of Thought on Forced Displacement" | C20: 420 | D20: 200 | E20: 220
B21: Taller de análisis del Webinar "Towards a Global South School of Thought on Forced Displacement" | C21: 20 | D21: 9 | E21: 11
B22: Programa de Becarios de la Cátedra MIFID | C22: 4 | D22: 2 | E22: 2
B23: Exposición DRAMAWALKER | C23: 90 | D23: 50 | E23: 40
B24: 10 reuniones de la Red de cátedras globales del IDRC (virtual) | C24: 18 | D24: 9 | E24: 9
B25: Proyecto-Taller de Arte Dramático DRAMAWALKER, Cartas al Exilio | C25: 90 | D25: 45 | E25: 45
B26: Primer Taller-Conferencia del Proyecto de Movilidad y Paz realizado en la Universidad de Bielefeld (Enero-Febrero 2025) | C26: 80 | D26: 45 | E26: 35
B27: Segundo Taller-Conferencia del Proyecto de Movilidad y Paz realizado en la Universidad de Comillas (Mayo-Junio 2025) | C27: 50 | D27: 20 | E27: 30
B28: Tercer Taller-Conferencia del Proyecto de Movilidad y Paz realizado en la Universidad de Milán (Septiembre-Octubre 2025) | C28: 110 | D28: 40 | E28: 70
B29: Cuarto Taller-Conferencia del Proyecto de Movilidad y Paz realizado en la Universidad de Guadalajara (Noviembre-Diciembre 2025) | C29: 250 | D29: 140 | E29: 110
A30: Cátedra UNESCO Innovación Social y Emprendimiento | B30: Presentación del libro “Género y emprendimiento social” en la Feria Internacional del Libro en Guadalajara. | C30: 61 | D30: 30 | E30: 31
B31: Conferencia Magistral "Emprendimiento Social y Liderazgo Responsable" en el marco del 1er Congreso Internacional de Administración 2025. Universidad Autónoma de Oaxaca. | C31: 427 | D31: 225 | E31: 202
B32: Conferencia Magistral "Impacto de las MIPYMES en los ODS en México" en el Congreso Internacional Interdisciplinario 2025, Universidad Autónoma de Sinaloa | C32: 213 | D32: 98 | E32: 115
B33: Conferencia "Importancia del Emprendimiento Social". Universidad del Valle de Puebla | C33: 122 | D33: 69 | E33: 53
B34: Conferencia "Emprendimiento Social: Crecimiento económico sostenible”, Congreso Internacional de Grupos Académicos y de investigación Multidisciplinarios (CIGAIM 2025), Universidad Autónoma de Sinaloa | C34: 177 | D34: 72 | E34: 105
A35: Cátedra UNESCO de la Juventud | B35: Reunión anual para la presentación del plan de trabajo 2025 | C35: 25 | D35: 10 | E35: 15
B36: Charla "Café con V" en conmemoración del día Internacional de la Mujer. | C36: 70 | D36: 0 | E36: 70
B37: Foros "¿Quiénes Somos las juventudes tapatías? | C37: 150 | D37: 80 | E37: 70
B38: Taller de escritura "Voces de Mujer" | C38: 20 | E38: 20
B39: Presentación del Libro "Entre Grietas y fuegos" | C39: 70 | D39: 20 | E39: 50
B40: Taller "Cómo establecer y juecear argumentos comparativos" | C40: 50 | D40: 30 | E40: 20
B41: Panel: Horizontes de paz, derechos humanos e interculturalidad en el siglo XXI | C41: 80 | D41: 40 | E41: 40
B42: Taller exprés de Debate y Oratoria en el municipio de Guadalajara | C42: 50 | D42: 30 | E42: 20
B43: Cuarta Semana de la Juventud | C43: 500 | D43: 220 | E43: 280
B44: Primer Torneo Estatal de Interprepas "Piensa y Debate" | C44: 200 | D44: 110 | E44: 90
B45: Segundo Congreso Internacional Sobre Juventudes | C45: 150 | D45: 70 | E45: 80
B46: Presentación del Libro "Juventudes en Acción" | C46: 120 | D46: 70 | E46: 50
B47: Presentación del libro "Diagnóstico de las Juventudes de Guadalajara 2024: base para nuevas políticas" | C47: 90 | D47: 50 | E47: 40
B48: Seminario "Personalidad Psicopática y Criminalidad Violenta" | C48: 30 | D48: 10 | E48: 20
B49: Jornada de campo para el fomento a lectura y la convivencia lúdica con niños y niñas en FM4 | C49: 100 | D49: 40 | E49: 60
B50: Taller "Cuerpos de tinta" | C50: 30 | E50: 30
B51: Panel de Políticas Públicas en Juventudes impartida por los directores metropolitanos de juventudes | C51: 100 | D51: 40 | E51: 60
B52: Charla Magistral Inaugural "Juventudes Bajo Fuego" impartida por el Dr. José Manuel Valenzuela Arce | C52: 120 | D52: 70 | E52: 50
B53: Un día para dar Jalisco (Colecta del kilometro del Peso) | C53: 150 | D53: 60 | E53: 90
A54: Total | C54: 5885 | D54: =SUM(D5:D53) -> 2410 | E54: 3475
A55: Fuente: Cátedra UNESCO de la Juventud / Cátedra en Migración Internacional Forzada, Inclusión y Derechos Humanos / Cátedra UNESCO Género, Liderazgo y Equidad / Cátedra UNESCO Innovación Social y Emprendimiento/ Cátedra UNESCO de Internacionalización de la Educación Superior y Ciudadanía Global Corte: Diciembre, 2025

Sheet T-60
A1: Eje 3: De la Mano con la Sociedad | J1: Índice
A2: Prestadores de servicio social por programa educativo y sector, 2025 | G2: Tabla 60
A3: Licenciatura | B3: Total | C3: 2025
C4: Asociación Civil | D4: Estatal | E4: Federal | F4: Municipal | G4: Privado | H4: Red UDG
A5: Administración | B5: =SUM(C5:H5) -> 508 | C5: 60 | D5: 39 | E5: 6 | F5: 34 | G5: 0 | H5: 369
A6: Administración Financiera y Sistemas | B6: 380 | C6: 43 | D6: 40 | E6: 4 | F6: 29 | G6: 0 | H6: 264
A7: Administración Gubernamental y Políticas Públicas | B7: 70 | C7: 6 | D7: 14 | E7: 1 | F7: 11 | G7: 0 | H7: 38
A8: Contaduría Pública | B8: 697 | C8: 129 | D8: 56 | E8: 1 | F8: 84 | G8: 0 | H8: 427
A9: Economía | B9: 88 | C9: 8 | D9: 13 | E9: 2 | F9: 3 | G9: 0 | H9: 62
A10: Gestión de Negocios Gastronómicos | B10: 159 | C10: 21 | D10: 2 | E10: 0 | F10: 8 | G10: 0 | H10: 128
A11: Gestión y Economía Ambiental | B11: 51 | C11: 7 | D11: 3 | E11: 2 | F11: 2 | G11: 0 | H11: 37
A12: Ingeniería en Negocios | B12: 110 | C12: 8 | D12: 9 | E12: 1 | F12: 8 | G12: 0 | H12: 84
A13: Mercadotecnia | B13: 441 | C13: 53 | D13: 16 | E13: 0 | F13: 24 | G13: 0 | H13: 348
A14: Mercadotecnia Digital | B14: 214 | C14: 67 | D14: 0 | E14: 0 | F14: 14 | G14: 0 | H14: 133
A15: Negocios Internacionales | B15: 642 | C15: 83 | D15: 50 | E15: 1 | F15: 42 | G15: 0 | H15: 466
A16: Recursos Humanos | B16: 228 | C16: 41 | D16: 16 | E16: 1 | F16: 8 | G16: 0 | H16: 162
A17: Relaciones Públicas y Comunicación | B17: 121 | C17: 14 | D17: 12 | E17: 0 | F17: 5 | G17: 0 | H17: 90
A18: TSU Tecnologías | B18: 4 | C18: 0 | D18: 0 | E18: 0 | F18: 0 | G18: 0 | H18: 4
A19: Tecnologías de la Información | B19: 117 | C19: 4 | D19: 3 | E19: 0 | F19: 2 | G19: 0 | H19: 108
A20: Turismo | B20: 161 | C20: 16 | D20: 4 | E20: 1 | F20: 6 | G20: 0 | H20: 134
A21: Total | B21: =SUM(B5:B20) -> 3991 | C21: 560 | D21: 277 | E21: 20 | F21: 280 | G21: 0 | H21: 2854
A22: Fuente: Secretaría Académica / Coordinación de Extensión / Unidad de Servicio Social Corte: Diciembre, 2025

Sheet T-61
A1: Eje 3: De la Mano con la Sociedad | D1: Índice
A2: Convenios de vinculación para servicio social vigentes, 2025 | B2: Tabla 61
A3: Sector | B3: Convenios
A4: Asociación Civil | B4: 136
A5: Estatal | B5: 41
A6: Federal | B6: 11
A7: Municipal | B7: 163
A8: Privado | B8: 0
A9: Total | B9: =SUM(B4:B8) -> 351
A10: Fuente: Secretaría Académica / Coordinación de Extensión / Unidad de Servicio Social Corte: Diciembre, 2025 Nota: Esta información es proporcionada por la Unidad de Convenios en materia de servicio social de la Rectoría General de la Universidad de Guadalajara.

Sheet T-62
A1: Eje 3: De la Mano con la Sociedad | G1: Índice
A2: Personas beneficiarias por los servicios brindados por sexo y área de servicio, 2025 | E2: Tabla 62
A3: Área de servicio | B3: Total | C3: Beneficiarios / Sexo
C4: Hombres | D4: Mujeres | E4: Niños
A5: Salud integral | B5: =C5+E5+D5 -> 11029 | C5: 4693 | D5: 6336 | E5: 0
A6: Educación | B6: 8897 | C6: 3360 | D6: 5537 | E6: 0
A7: Recreación | B7: 6170 | C7: 2194 | D7: 3976 | E7: 0
A8: Desarrollo comunitario | B8: 357 | C8: 134 | D8: 223 | E8: 0
A9: Total | B9: =SUM(B5:B8) -> 26453 | C9: 10381 | D9: 16072 | E9: 0
A10: Fuente: Asuntos Jurídicos, Transparencia y Archivo / Secretaría Académica / Programa Integral de Cultura de Paz y Primeros Contactos / Programa Plataforma de Inclusión y Equidad / Coordinación de Extensión / Coordinación de Servicios Académicos / Secretaría Administrativa / Programa institucional de seguridad preventiva integral del ecosistema Corte: Diciembre, 2025

Sheet T-63
A1: Eje 3: De la Mano con la Sociedad | F1: Índice
A2: Personas con alguna discapacidad beneficiarias de los servicios brindados por sexo y área de servicio, 2025 | C2: Tabla 63
A3: Área de servicio | B3: Total | C3: Sexo
C4: Hombres | D4: Mujeres
A5: Acciones afirmativas | B5: =C5+D5 -> 95 | C5: 58 | D5: 37
A6: Actividades lúdicas | B6: 0 | C6: 0 | D6: 0
A7: Asesorías | B7: 0 | C7: 0 | D7: 0
A8: Campañas | B8: 8 | C8: 3 | D8: 5
A9: Desarrollo sustentable | B9: 0 | C9: 0 | D9: 0
A10: Educativos | B10: 0 | C10: 0 | D10: 0
A11: Recreación | B11: 0 | C11: 0 | D11: 0
A12: Salud | B12: 111 | C12: 39 | D12: 72
A13: Total | B13: =SUM(B5:B12) -> 214 | C13: 100 | D13: 114
A14: Fuente: Secretaría Académica Corte: Diciembre, 2025

Sheet T-64
A1: Eje 3: De la Mano con la Sociedad | J1: Índice
A2: Acervo impreso del Centro de Recursos Informativos, 2019-2025 | H2: Tabla 64
A3: Año | B3: Total de títulos existentes | C3: Títulos adquiridos | E3: Total de volúmenes existentes | F3: Volúmenes adquiridos | H3: Descarte
C4: Compra | D4: Donación | F4: Compra | G4: Donación
A5: 2019 | B5: 87719 | C5: 1495 | D5: 2535 | E5: 269771 | F5: 4339 | G5: 3112 | H5: 2597
A6: 2020 | B6: 72327 | C6: 1831 | D6: 1757 | E6: 165492 | F6: 4744 | G6: 2371 | H6: 14293
A7: 2021 | B7: 75058 | C7: 1890 | D7: 1418 | E7: 157390 | F7: 5124 | G7: 2153 | H7: 17099
A8: 2022 | B8: 76454 | C8: 1136 | D8: 1221 | E8: 164500 | F8: 3470 | G8: 2812 | H8: 7046
A9: 2023 | B9: 77497 | C9: 511 | D9: 1618 | E9: 166022 | F9: 1565 | G9: 2902 | H9: 1728
A10: 2024 | B10: 73608 | C10: 631 | D10: 1932 | E10: 155590 | F10: 1871 | G10: 2937 | H10: 5821
A11: 2025 | B11: 80430 | C11: 450 | D11: 3370 | E11: 160877 | F11: 1336 | G11: 3943 | H11: 559
A12: Fuente: Secretaría Académica / Coordinación de Servicios Académicos / Centro de Recursos Informativos CERI Corte: Diciembre, 2025

Sheet T-65
A1: Eje 3: De la Mano con la Sociedad
A2: Revistas impresas y electrónicas del Centro de Recursos Informativos, 2019-2025 | G2: Tabla 65
A3: Tipo de revistas | B3: Año
B4: 2019 | C4: 2020 | D4: 2021 | E4: 2022 | F4: 2023 | G4: 2024 | H4: 2025
A5: Impresas | B5: 58 | C5: 52 | D5: 53 | E5: 53 | F5: 52 | G5: 196 | H5: 120
A6: Electrónicas | B6: 0 | C6: 0 | D6: 0 | E6: 0 | F6: 5500 | G6: 6235 | H6: 8567
A7: Total | B7: =SUM(B5:B6) -> 58 | C7: 52 | D7: 53 | E7: 53 | F7: 5552 | G7: 6431 | H7: 8687
A8: Fuente: Secretaría Académica / Coordinación de Servicios Académicos / Centro de Recursos Informativos CERI Corte: Diciembre, 2025

Sheet T-66
A1: Eje 3: De la Mano con la Sociedad | J1: Índice
A2: Servicios bibliotecarios del Centro de Recursos Informativos, 2019-2025 | G2: Tabla 66
A3: Concepto | B3: Año
B4: 2019 | C4: 2020 | D4: 2021 | E4: 2022 | F4: 2023 | G4: 2024 | H4: 2025
A5: Consultas de internet | B5: n.d. | C5: n.d. | D5: n.d. | E5: n.d. | F5: 308045 | G5: 0 | H5: 217300
A6: Préstamo a domicilio | B6: 56004 | C6: 14289 | D6: 1806 | E6: 8638 | F6: 15638 | G6: 13952 | H6: 16062
A7: Préstamo en sala | B7: 123305 | C7: 16 | D7: 169 | E7: 5194 | F7: 11633 | G7: 12705 | H7: 13467
A8: Usuarios atendidos | B8: 225044 | C8: 4580 | D8: 17811 | E8: 34101 | F8: 61609 | G8: 47201 | H8: 132546
A9: Fuente: Secretaría Académica / Coordinación de Servicios Académicos / Centro de Recursos Informativos CERI Corte: Diciembre, 2025 Nota:

Sheet T-67
A1: Eje 3: De la Mano con la Sociedad
A2: Infraestructura, 2025 | B2: Tabla 67 | D2: Índice
A3: Infraestructura | B3: Cantidad
A4: Aulas | B4: 227
A5: Auditorios | B5: 4
A6: Aulas de usos múltiples (audiovisual) | B6: 1
A7: Áreas administrativas | B7: 62
A8: Bebederos (pieza) | B8: 20
A9: Bibliotecas | B9: 1
A10: Cafeterías | B10: 8
A11: Comedor universitario | B11: 1
A12: Centros de cómputo | B12: 1
A13: Cancha de Futbol | B13: 3
A14: Cancha de Tenis | B14: 1
A15: Cancha de usos múltiples | B15: 3
A16: Cerca perimetral (metro lineal) | B16: 24743
A17: Cuartos de baño | B17: =SUM(B18:B21) -> 165
A18: Hombres | B18: 56
A19: Mujeres | B19: 57
A20: Mixtos | B20: 50
A21: Discapacitados | B21: 2
A22: Cajones de estacionamiento | B22: =SUM(B23:B26) -> 1628
A23: Estudiantes | B23: 1053
A24: Docentes | B24: 373
A25: Administrativos | B25: 166
A26: Discapacitados | B26: 36
A27: Edificios | B27: 33
A28: Gimnasios | B28: 1
A29: Huertos | B29: 1
A30: Laboratorios | B30: 29
A31: Pista de Atletismo | B31: 0
A32: Sala de usos múltiples (auditorio) | B32: 3
A33: Salas de Lactancia | B33: 1
A34: Fuente: Secretaría administrativa / Coordinación de servicios generales Corte: Diciembre, 2025

Sheet T-68
A1: Eje 3: De la Mano con la Sociedad | H1: Índice
A2: Obras realizadas, 2025 | E2: Tabla 68
A3: No. | B3: Fondo | C3: Superficie (m2) | D3: Descripción del Gasto | E3: Monto de Inversión
A4: 1 | B4: FIFRU 2025 | C4: 235 | D4: Terminación del Muro Perimetral | E4: 1429841.57
A5: 2 | B5: FIFRU 2025 | C5: 48 | D5: Terminació de Remodelación de 4 módulos de sanitarios de alumnos en el Centro Universitario de Ciencias Económico Administrativas | E5: 204320.01
A6: 3 | B6: FIFRU 2025 | C6: 820 | D6: Construcción de bocas de tormenta y pozos de absorción complementarios | E6: 1369493.42
A7: 4 | B7: FIFRU 2025 | C7: 650 | D7: Planta de tratamiento de aguas pluviales | E7: 2985938.11
A8: 5 | B8: FIFRU 2025 | C8: 350 | D8: Rehabilitación de línea de drenaje principal oriente | E8: 1979104.12
A9: 6 | B9: FIFRU 2025 | C9: 320 | D9: Rehabilitación de sistemas de drenaje pluvial entre módulos | E9: 744995.13
A10: 7 | B10: FAM 2025 | C10: 2700 | D10: Construcción de Edificio II de Aulas de Posgrados (CUCEA) Segunda Etapa | E10: 16290304.91
A11: Total | E11: =SUM(E4:E10) -> 25003997.27
A12: Fuente: elaborado por la Secretaría Administrativa a partir de los oficios emitidos por la Vicerrectoría Ejecutiva folios Corte: Diciembre, 2025

Sheet T-69
A1: Eje 3: De la Mano con la Sociedad | G1: Índice
A2: Estudiantes que realizan prácticas profesionales por modalidad y programa educativo, 2025 | E2: Tabla 69
A3: Programa Educativo | B3: TOTAL | C3: Estudiantes
C4: In Situ | D4: Experiencia Profesional | E4: Estancia de Investigación
A5: Administración | B5: =SUM(C5:E5) -> 505 | C5: 168 | D5: 328 | E5: 9
A6: Administración Financiera Y Sistemas | B6: 383 | C6: 64 | D6: 311 | E6: 8
A7: Administración Gubernamental y Políticas Públicas | B7: 89 | C7: 48 | D7: 38 | E7: 3
A8: Contaduría Pública | B8: 643 | C8: 86 | D8: 555 | E8: 2
A9: Economía | B9: 110 | C9: 32 | D9: 73 | E9: 5
A10: Gestión y Economía Ambiental | B10: 58 | C10: 23 | D10: 32 | E10: 3
A11: Gestión de Negocios Gastronómicos | B11: 350 | C11: 52 | D11: 295 | E11: 3
A12: Mercadotecnia | B12: 485 | C12: 122 | D12: 358 | E12: 5
A13: Negocios Internacionales | B13: 640 | C13: 120 | D13: 497 | E13: 23
A14: Recursos Humanos | B14: 218 | C14: 77 | D14: 140 | E14: 1
A15: Tecnologías de la Información | B15: 81 | C15: 21 | D15: 59 | E15: 1
A16: Turismo | B16: 152 | C16: 55 | D16: 93 | E16: 4
A17: Relaciones Públicas y Comunicación | B17: 122 | C17: 12 | D17: 108 | E17: 2
A18: Ingeniería en Negocios | B18: 106 | C18: 11 | D18: 93 | E18: 2
A19: Total | B19: =SUM(B5:B18) -> 3942 | C19: 891 | D19: 2980 | E19: 71
A20: Fuente: Secretaría Académica / Coordinación de Extensión / Unidad de Prácticas Profesionales Corte: Diciembre, 2025

Sheet T-70
A1: Eje 3: De la Mano con la Sociedad | D1: Índice
A2: Convenios de Prácticas Profesionales por sector, 2025 | B2: Tabla 70
A3: Sector | B3: Convenios
A4: Público | B4: =SUM(B5:B7) -> 49
A5: Federal | B5: 6
A6: Estatal | B6: 34
A7: Municipal | B7: 9
A8: Privado | B8: 808
A9: Social | B9: 19
A10: Total | B10: =B9+B8+B4 -> 876
A11: Fuente: Secretaría Académica / Coordinación de Extensión / Unidad de Prácticas Profesionales Corte: Diciembre, 2025

Sheet T-71
A1: Eje 3: De la Mano con la Sociedad | F1: Índice
A2: Convenios vigentes por sector, 2025 | D2: Tabla 71
A3: Sector | B3: Total | C3: Tipo
C4: Nacional | D4: Internacional
A5: Asociación civil | B5: =C5+D5 -> 187 | C5: 187 | D5: 0
A6: Dependencias universitarias | B6: 6 | C6: 1 | D6: 5
A7: Estatal | B7: 77 | C7: 77 | D7: 0
A8: Federal | B8: 17 | C8: 17 | D8: 0
A9: Municipal | B9: 172 | C9: 172 | D9: 0
A10: Privado | B10: 818 | C10: 812 | D10: 6
A11: Público | B11: 5 | C11: 3 | D11: 2
A12: Total | B12: =SUM(B5:B11) -> 1282 | C12: 1269 | D12: 13
A13: Fuente: Rectoría / Asuntos Jurídicos, Transparencia y Archivo Corte: Diciembre, 2025 Nota: Los convenios que se suman en los sectores PÚBLICO, PRIVADO y ASOCIACIÓN CIVIL son la sumatoria total de los convenios celebrados este año, el resto de convenios son duplicados de los mismos, para coincidir con lo solicitado.

Sheet T-72
A1: Eje 3: De la Mano con la Sociedad | G1: Índice
A2: Convenios con el sector social, público y privado, 2019-2025 | D2: Tabla 72
A3: Año | B3: Total | C3: Sector
C4: Público | D4: Privado | E4: Social
A5: 2019 | B5: =SUM(C5:E5) -> 12 | C5: 8 | D5: 4 | E5: 0
A6: 2020 | B6: 16 | C6: 7 | D6: 9 | E6: 0
A7: 2021 | B7: 18 | C7: 6 | D7: 8 | E7: 4
A8: 2022 | B8: 23 | C8: 7 | D8: 7 | E8: 9
A9: 2023 | B9: 35 | C9: 16 | D9: 10 | E9: 9
A10: 2024 | B10: 47 | C10: 8 | D10: 33 | E10: 6
A11: 2025 | B11: 27 | C11: 8 | D11: 14 | E11: 5
A12: Fuente: Rectoría / Asuntos Jurídicos, Transparencia y Archivo Corte: Diciembre, 2025

Sheet T-73
A1: Eje 3: De la Mano con la Sociedad | I1: Índice
A2: Convenios de colaboración firmados con los sectores públicos y privados, 2025 | G2: Tabla 73
A3: Contraparte | B3: Objetivo del Convenio | C3: Fecha de firma (dd/mm/aa) | D3: Vigencia (dd/mm/aa) | E3: Sector | F3: Estado | G3: Estatus
A4: Congreso del Estado de Jalisco | B4: Establecer la bases para la coordinación entre "EL CUCEA" y "EL CONGRESO" en materia de prácticas profesionales | C4: 2025-02-06 | D4: 2027-02-06 | E4: Público | F4: Firmado | G4: Vigente
A5: A & J Máquinas Expendedoras (Municipio de Zapopan) | B5: Colaborar conjuntamente en acciones de interés común, incluyendo la puesta en marcha de un proyecto innovador consistente en la instalación en el Centro Universitario de Ciencias Económico Administrativas (CUCEA), de una máquina expendedora con el propósito brindar un servicio adicional a la comunidad universitaria, complementando los servicios que ofrece el Centro de Emprendimiento e Innovación Social (CEIS) a través del Programa Académico CUCEA Emprende | C5: 2025-02-10 | D5: 2025-08-10 | E5: Público | F5: Firmado | G5: Vencido
A6: Consejo Regulador del Tequila | B6: Diseñar, planear, coordinar, ejecutar y evaluar iniciativas estratégicas orientadas al desarrollo sostenible de la industria del tequila en Jalisco y actividades relacionadas con ella. | C6: 2025-02-12 | D6: 2025-12-15 | E6: Privado | F6: Firmado | G6: Vencido
A7: Consejo Regulador del Tequila | B7: Realizar estudio de mercado del consumo de Tequila en China y la India | C7: 2025-02-12 | D7: 2025-04-12 | E7: Privado | F7: Firmado | G7: Vencido
A8: PLATZI | B8: Establecer las condiciones que regirán el desarrollo y ejecución de una primera fase de colaboración durante el Ciclo Escolar 2025-A de “EL CUCEA”, en los términos y con las especificaciones que acuerden las partes por escrito y que una vez acordada por ellas, se agregará al presente convenio como Anexo Único, formando parte integral del mismo. | C8: 2025-02-26 | D8: Indefinido | E8: Educativo | F8: Firmado | G8: Vigente
A9: Asociación Nacional de Facultades y Escuelas de Contaduría (ANFECA) | B9: Realizar acciones conjuntas de colaboración académica, científica y cultural y de difusión de obras académicas para el enriquecimiento de las funciones educativas que desempeñan, especialmente mediante el fortalecimiento del vínculo de la División de Contaduría de EL CUCEA y ANFECA | C9: 2025-03-03 | D9: INDEFINIDO | E9: Educativo | F9: Firmado | G9: Vigente
A10: SALUD INTEGRAL JOSÉ DÍAZ MARTÍNEZ, S.C. | B10: Establecer las bases y criterios sobre los cuales las partes realizarán acciones conjuntas de colaboración académica, científica y cultural para el enriquecimiento de las funciones educativas que desempeñan. (Consultas psicológicas) | C10: 2025-03-13 | D10: 2026-03-12 | E10: Privado | F10: Firmado | G10: Vigente
A11: Dagpacket Smart S.A.P.I. de C.V. | B11: Puesta en marcha de un proyecto innovador consistente en la instalación en el Centro Universitario de Ciencias Económico Administrativas (CUCEA), de un Locker Smart automatizado y de autoservicio en logística, vinculado a pago de servicios y servicios de las principales empresas de paquetería. | C11: 2025-03-15 | D11: 2026-03-15 | E11: Privado | F11: Firmado | G11: Vigente
A12: SALUD INTEGRAL JOSÉ DÍAZ MARTÍNEZ, S.C. | B12: Establecer las bases y criterios sobre los cuales las partes realizarán acciones conjuntas de colaboración académica, científica y cultural para el enriquecimiento de las funciones educativas que desempeñan. (Consultas psiquiatricas) | C12: 2025-11-05 | D12: 2026-11-05 | E12: Privado | F12: Firmado | G12: Vigente
A13: Sistema para el Desarrollo Integral de la Familia del Estado de Jalisco (DIF Jalisco) | B13: Aplicación de las guías de referencia para identificar factores de riesgo psicosocial, evaluar el entorno organizacional y obtener un diagnóstico, en apego a la NOM 035 de la Secretaría de Trabajo y Previsión Social. | C13: 2025-06-02 | D13: 2025-09-30 | E13: Público | F13: Firmado | G13: Vencido
A14: Barcelona Supercomputing Center - Centro Nacional de Supercomputación | B14: Establecer un marco de colaboración científico-técnica entre las Partes en acciones de colaboración académica, científica y cultural. | C14: 2025-12-02 | D14: 2030-12-02 | E14: Público | F14: Firmado | G14: Vigente
A15: Tirant lo Blanch México, S. de R.L. de C.V. | B15: Coedición de la obra intitulada "Inteligencia Artificial en la Fiscalización: Tendencias Recaudatorias Municipales, Estatales y Federales de México" | C15: 2025-08-29 | D15: N/A | E15: Privado | F15: Firmado | G15: Vencido
A16: Tirant lo Blanch México, S. de R.L. de C.V. | B16: Coedición de la obra intitulada "Tendencias y Riesgos en la Administración Financiera, Tributaria y Educativa Orientados a los Objetivos de Desarrollo Social Sostenible" | C16: 2025-08-29 | D16: N/A | E16: Privado | F16: Firmado | G16: Vencido
A17: Universidad Nacional de San Cristóbal de Huamanga | B17: Desarrollo de actividades de cooperación académica, científica, cultural, de movilidad estudiantil, y de proyección social, con el objetivo de fortalecer sus capacidades institucionales y la formación de sus comunidades. | C17: 2025-07-03 | D17: 2030-07-03 | E17: Educativo | F17: Firmado | G17: Vigente
A18: Secretaría de Turismo del Gobierno del Estado de Jalisco | B18: Impartición de 2 ediciones del Diplomado de Formación para Guías de Turistas Especializados en un tema o localidad de interés turístico. | C18: 2025-08-11 | D18: 2025-12-10 | E18: Público | F18: Firmado | G18: Vencido
A19: Operadora de Ferias y Exposiciones, S.A. de C.V. | B19: Estudio sobre derrama económica generada por parte del recinto denominado Expo Guadalajara durante el año 2025. | C19: 2025-01-28 | D19: 2026-01-31 | E19: Privado | F19: Firmado | G19: Vigente
A20: Témpano AI, S.A. de C.V. y Transversal Incidencia Estratégica, A.C. | B20: Coedición de la obra intitulada "Sin cuotas ni cuates. Designaciones Públicas y Captura de Cargos" | C20: 2025-03-20 | D20: N/A | E20: Privado | F20: Firmado | G20: Vencido
A21: Universidad de la Américas (Chile) | B21: Marco jurídico de referencia para realizar actividades de cooperación en áreas de interés común. | C21: 2025-01-27 | D21: 2027-01-27 | E21: Educativo | F21: Firmado | G21: Vigente
A22: Universidad de la Américas (Chile) | B22: Establecer un programa de movilidad estudiantil y las condiciones que regirán al intercambio de estudiantes entre ambas instituciones. | C22: 2025-01-27 | D22: 2027-01-27 | E22: Educativo | F22: Firmado | G22: Vigente
A23: ITEXICO SERVICES, S. DE R.L. DE C.V. | B23: Colaborar conjuntamente para la realización del evento denominado "CodeLaunch 2025 Guadalajara" | C23: 2025-03-24 | D23: 2025-10-31 | E23: Privado | F23: Firmado | G23: Vencido
A24: Academia Mexicana de Investigación y Docencia en Innovación, S.C. | B24: Acciones conjuntas de colaboración académica, científica y cultural. | C24: 2025-07-03 | D24: 2030-07-03 | E24: Educativo | F24: Firmado | G24: Vigente
A25: Secretaría de Turismo del Gobierno del Estado de Jalisco | B25: Fortalecer la vinculación, establecer las bases y criterios en la realización de acciones de interés común y beneficio mutuo, relacionadas con el desarrollo académico mediante proyectos de trabajo en el ámbito de sus respectivas competencias. | C25: 2025-07-07 | D25: 2030-12-05 | E25: Público | F25: Firmado | G25: Vigente
A26: Cámara Nacional de la Industria Tequilera (CNIT) | B26: Desarrollar el proyecto denominado "Validación de elasticidades del modelo matemático de impuestos" | C26: 2025-06-24 | D26: 2025-10-15 | E26: Privado | F26: Firmado | G26: Vencido
A27: Instituto Nacional de Estudios Jurídicos e Empresariais LTDA (Brasil) | B27: Conjuntar esfuerzos para realizar acciones de colaboración en los ámbitos de investigación, formación y docencia, cultura, extensión y vinculación. | C27: 2025-11-03 | D27: 2028-05-14 | E27: Privado | F27: Firmado | G27: Vigente
A28: Universidad Autónoma del Perú | B28: Acciones conjuntas de colaboración académica, científica y cultural. | C28: 2025-02-24 | D28: 2027-02-24 | E28: Educativo | F28: Firmado | G28: Vigente
A29: Universidad Autónoma del Perú | B29: Establecer las bases para llevar a cabo el intercambio de estudiantes de nivel licenciatura y posgrado y de personal académico. | C29: 2025-02-24 | D29: 2027-02-24 | E29: Educativo | F29: Firmado | G29: Vigente
A30: Centro Universitario de Ciencias de la Salud | B30: Programa bidireccional con el propósito de formar recursos humanos que contribuyan al desarrollo de ambas instancias en donde se desarrollen diversas actividades del rubro clínico psicológico. | C30: 2025-08-26 | D30: 2027-08-26 | E30: Educativo | F30: Firmado | G30: Vigente
A31: Fuente: Rectoría / Asuntos Jurídicos, Transparencia y Archivo Corte: Diciembre, 2025

Sheet T-74
A1: Eje 3: De la Mano con la Sociedad | J1: Índice
A2: Resultados del proyecto Energía 4.0, 2025 | H2: Tabla 74
A3: Edificio | B3: Paneles | C3: Superficie (M²) | D3: Potencia (Kw) | E3: Producción anual estimada (kWh) | F3: Producción anual real (kWh) | G3: Ahorro anual (M.N) $ | H3: Reducción de CO2 (Ton)
A4: CARE | B4: 216 | C4: 266 | D4: 72.36 | E4: 132.05 | F4: 25148 | G4: 90710.4 | H4: 11.16
A5: CIADEyS | B5: 182 | C5: 600 | D5: 79.75 | E5: 145.54 | F5: 115836 | G5: 413576 | H5: 51.43
A6: Edificio H | B6: 40 | C6: 121 | D6: 16.51 | E6: 30.13 | F6: 27700 | G6: 98947.45 | H6: 12.29
A7: Edificio I | B7: 23 | C7: 57.5 | D7: 10.58 | E7: 19.3 | F7: 7685 | G7: 27591.67 | H7: 3.41
A8: Edificio O | B8: 61 | C8: 200 | D8: 33.55 | E8: 61.22 | F8: 29911 | G8: 107124.19 | H8: 13.28
A9: Edificio J | B9: 37 | C9: 103 | D9: 21.27 | E9: 38.81 | F9: 37478 | G9: 133902.27 | H9: 16.64
A10: Edificio F | B10: 60 | C10: 138 | D10: 37.1 | E10: 67707.5 | F10: 16945 | G10: 60001.3 | H10: 7.52
A11: Total | B11: =SUM(B4:B10) -> 619 | C11: 1485.5 | D11: 271.12 | E11: 68134.55 | F11: 260703 | G11: 931853.28 | H11: 115.73
A12: Fuente: Coordinación General de Servicios Administrativos e Infraestructura Tecnológica / Coordinación de Sostenibilidad Corte: Diciembre, 2025

Sheet T-75
A1: Eje 3: De la Mano con la Sociedad | K1: Índice
A2: Energía limpia generada, 2025 | F2: Tabla 75
A3: Mes | B3: Total mensual | C3: Ahorro económico
C4: CARE | D4: CIADEyS | E4: Edificio H | F4: Edificio I | G4: Edificio O | H4: Edificio J | I4: Edificio F
A5: Enero | B5: =SUM(C5+D5+E5+F5+G5) -> 63519 | C5: 15347 | D5: 30684 | E5: 7446 | F5: 2571 | G5: 7471 | H5: 10498 | I5: 6137
A6: Febrero | B6: =SUM(C6:G6) -> 70250 | C6: 16723 | D6: 34465 | E6: 8227 | F6: 2745 | G6: 8090 | H6: 11504 | I6: 6563
A7: Marzo | B7: =SUM(C7+D7+E7+F7+G7) -> 81565 | C7: 18690 | D7: 40582 | E7: 9648 | F7: 3064 | G7: 9581 | H7: 13088 | I7: 7288
A8: Abril | B8: 62367 | C8: 648 | D8: 39800 | E8: 9236 | F8: 3071 | G8: 9612 | H8: 12745 | I8: 7232
A9: Mayo | B9: 55561 | C9: 0 | D9: 35839 | E9: 8243 | F9: 2858 | G9: 8621 | H9: 11046 | I9: 6526
A10: Junio | B10: 50655 | C10: 0 | D10: 34108 | E10: 7286 | F10: 1242 | G10: 8019 | H10: 9893 | I10: 5915
A11: Julio | B11: 43493 | C11: 0 | D11: 35783 | E11: 7710 | F11: 0 | G11: 0 | H11: 10316 | I11: 5668
A12: Agosto | B12: 57080 | C12: 0 | D12: 38159 | E12: 8684 | F12: 2264 | G12: 7973 | H12: 11453 | I12: 0
A13: Septiembre | B13: 65108 | C13: 5528 | D13: 36475 | E13: 8211 | F13: 2771 | G13: 12123 | H13: 11170 | I13: 211
A14: Octubre | B14: 73644 | C14: 13366 | D14: 34775 | E14: 8866 | F14: 2948 | G14: 13689 | H14: 12022 | I14: 2195
A15: Noviembre | B15: =SUM(C15+D15+E15+F15+G15+H15) -> 70057 | C15: 10981 | D15: 25347 | E15: 8331 | F15: 2764 | G15: 11802 | H15: 10832 | I15: 6448
A16: Diciembre | B16: 64819 | C16: 9428 | D16: 27559 | E16: 7061 | F16: 1295 | G16: 10143 | H16: 9333 | I16: 5818
A17: Total | B17: =SUM(B5:B16) -> 758118 | C17: 90711 | D17: 413576 | E17: 98949 | F17: 27593 | G17: 107124 | H17: 133900 | I17: 60001
A18: Fuente: Coordinación General de Servicios Administrativos e Infraestructura Tecnológica / Coordinación de Sostenibilidad Corte: Diciembre, 2025

Sheet T-76
A1: Eje 3: De la Mano con la Sociedad | H1: Índice
A2: Actividades y sus participantes que contribuyen al desarrollo sostenible, 2025 | F2: Tabla 76
A3: Temática | B3: Actividades | C3: Total | D3: Estudiantes | E3: Personal Universitario | F3: Público en general
A4: Alianzas | B4: 1 | C4: =D4+E4+F4 -> 14 | D4: 10 | E4: 4 | F4: 0
A5: Cultura de paz | B5: 192 | C5: 1026 | D5: 1001 | E5: 16 | F5: 9
A6: Economía e innovación | B6: 184 | C6: 241 | D6: 26 | E6: 31 | F6: 184
A7: Igualdad, salud y educación | B7: 2 | C7: 10 | D7: 6 | E7: 4 | F7: 0
A8: Medio ambiente y recursos naturales | B8: 27 | C8: 1816 | D8: 1179 | E8: 187 | F8: 450
A9: Total | B9: =SUM(B4:B8) -> 406 | C9: 3107 | D9: 2222 | E9: 242 | F9: 643
A10: Fuente: Secretaría Académica / Coordinación de Extensión / Programa Plataforma de Inclusión y Equidad / Programa Integral de Cultura de Paz y Primeros Contactos / Hospital PYME Corte: Diciembre, 2025

Sheet T-77
A1: Eje 4: Cultura que nos une | L1: Índice
A2: Atenciones de salud brindadas a la comunidad, 2025 | H2: Tabla 77
A3: Tipo de Atenciones | B3: Total | C3: Total | E3: Total | F3: 2025A | H3: Total | I3: 2025B
C4: Hombres | D4: Mujeres | F4: Hombres | G4: Mujeres | I4: Hombres | J4: Mujeres
A5: Aplicaciones | B5: =C5+D5 -> 74 | C5: =F5+I5 -> 33 | D5: 41 | E5: =SUM(F5:G5) -> 46 | F5: 19 | G5: 27 | H5: =SUM(I5:J5) -> 28 | I5: 14 | J5: 14
A6: Asesoría sobre planificación familiar | B6: 67 | C6: =F6+I6 -> 26 | D6: 41 | E6: 57 | F6: 25 | G6: 32 | H6: 10 | I6: 1 | J6: 9
A7: Atención nutricional | B7: 229 | C7: =F7+I7 -> 74 | D7: 155 | E7: 94 | F7: 37 | G7: 57 | H7: 135 | I7: 37 | J7: 98
A8: Atención por diabetes mellitus tipo II | B8: 5 | C8: =F8+I8 -> 2 | D8: 3 | E8: 2 | F8: 1 | G8: 1 | H8: 3 | I8: 1 | J8: 2
A9: Atención por hipertensión arterial | B9: 14 | C9: =F9+I9 -> 8 | D9: 6 | E9: 11 | F9: 5 | G9: 6 | H9: 3 | I9: 3 | J9: 0
A10: Capacitaciones a docentes primeros auxilios y RCP | B10: 15 | C10: =F10+I10 -> 5 | D10: 10 | E10: 15 | F10: 5 | G10: 10 | H10: 0 | I10: 0 | J10: 0
A11: Certificados médicos | B11: 2510 | C11: =F11+I11 -> 1226 | D11: 1284 | E11: 1497 | F11: 722 | G11: 775 | H11: 1013 | I11: 504 | J11: 509
A12: Colocación DIU mirena | B12: 5 | C12: =F12+I12 -> 0 | D12: 5 | E12: 5 | F12: 0 | G12: 5 | H12: 0 | I12: 0 | J12: 0
A13: Consultas médicas | B13: 1843 | C13: =F13+I13 -> 575 | D13: 1268 | E13: 1128 | F13: 331 | G13: 797 | H13: 715 | I13: 244 | J13: 471
A14: Curaciones | B14: 84 | C14: =F14+I14 -> 37 | D14: 47 | E14: 49 | F14: 22 | G14: 27 | H14: 35 | I14: 15 | J14: 20
A15: Detección de enfermedades degenerativas | B15: 9 | C15: =F15+I15 -> 3 | D15: 6 | E15: 9 | F15: 3 | G15: 6 | H15: 0 | I15: 0 | J15: 0
A16: Formación en RCP y manejo de DEA | B16: 15 | C16: =F16+I16 -> 5 | D16: 10 | E16: 15 | F16: 5 | G16: 10 | H16: 0 | I16: 0 | J16: 0
A17: Mamografías | B17: 58 | C17: =F17+I17 -> 0 | D17: 58 | E17: 0 | F17: 0 | G17: 0 | H17: 58 | I17: 0 | J17: 58
A18: Participación de estudiantes en talleres de formación integral en salud | B18: 77 | C18: =F18+I18 -> 19 | D18: 58 | E18: 35 | F18: 8 | G18: 27 | H18: 42 | I18: 11 | J18: 31
A19: Pruebas rápidas VIH | B19: 97 | C19: =F19+I19 -> 65 | D19: 32 | E19: 50 | F19: 28 | G19: 22 | H19: 47 | I19: 37 | J19: 10
A20: Revisión oftalmológica | B20: 33 | C20: =F20+I20 -> 17 | D20: 16 | E20: 33 | F20: 17 | G20: 16 | H20: 0 | I20: 0 | J20: 0
A21: Servicios de odontología | B21: 426 | C21: =F21+I21 -> 178 | D21: 248 | E21: 243 | F21: 82 | G21: 161 | H21: 183 | I21: 96 | J21: 87
A22: Toma de papanicolaou | B22: 14 | C22: =F22+I22 -> 0 | D22: 14 | E22: 14 | F22: 0 | G22: 14 | H22: 0 | I22: 0 | J22: 0
A23: Urgencias | B23: 126 | C23: =F23+I23 -> 46 | D23: 80 | E23: 44 | F23: 22 | G23: 22 | H23: 82 | I23: 24 | J23: 58
A24: Vacuna neumococo | B24: 184 | C24: =F24+I24 -> 72 | D24: 112 | E24: 0 | F24: 0 | G24: 0 | H24: 184 | I24: 72 | J24: 112
A25: Vacunación contra la influenza | B25: 1385 | C25: =F25+I25 -> 693 | D25: 692 | E25: 0 | F25: 0 | G25: 0 | H25: 1385 | I25: 693 | J25: 692
A26: Vacunas Sarampión | B26: =H26 -> 896 | C26: - | D26: - | E26: 0 | F26: - | G26: - | H26: 896 | I26: - | J26: -
A27: Total | B27: =SUM(B5:B26) -> 8166 | C27: 3084 | D27: 4186 | E27: 3347 | F27: 1332 | G27: 2015 | H27: 4819 | I27: 1752 | J27: 2171
A28: Fuente: Secretaría Administrativa / Programa Institucional de Seguridad Preventiva Integral del Ecosistema Corte: Diciembre, 2025

Sheet T-78
A1: Eje 4: Cultura que nos une | S1: Índice
A2: Servicios médicos ofrecidos, 2025 | O2: Tabla 78
A3: Servicios médicos | B3: Total | C3: Total | D3: Estudiantes | F3: Total | G3: Académicos | I3: Total | J3: Administrativos | L3: Total | M3: Operativos | O3: Total | P3: Externos
D4: Hombres | E4: Mujeres | G4: Hombres | H4: Mujeres | J4: Hombres | K4: Mujeres | M4: Hombres | N4: Mujeres | P4: Hombres | Q4: Mujeres
A5: Actividades de Enfermería | B5: =C5+F5+I5+L5+O5 -> 3080 | C5: =D5+E5 -> 2503 | D5: 1021 | E5: 1482 | F5: =G5+H5 -> 161 | G5: 77 | H5: 84 | I5: =J5+K5 -> 254 | J5: 92 | K5: 162 | L5: =M5+N5 -> 69 | M5: 30 | N5: 39 | O5: =P5+Q5 -> 93 | P5: 30 | Q5: 63
A6: Asesorías Temas de Sexualidad | B6: 65 | C6: 58 | D6: 19 | E6: 39 | F6: 6 | G6: 6 | H6: 0 | I6: 1 | J6: 1 | K6: 0 | L6: 0 | M6: 0 | N6: 0 | O6: 0 | P6: 0 | Q6: 0
A7: Atención a Urgencias | B7: 126 | C7: 87 | D7: 34 | E7: 53 | F7: 7 | G7: 3 | H7: 4 | I7: 15 | J7: 5 | K7: 10 | L7: 6 | M7: 3 | N7: 3 | O7: 11 | P7: 1 | Q7: 10
A8: Certificados Médicos | B8: 2510 | C8: 2438 | D8: 1206 | E8: 1232 | F8: 8 | G8: 3 | H8: 5 | I8: 31 | J8: 14 | K8: 17 | L8: 0 | M8: 0 | N8: 0 | O8: 33 | P8: 9 | Q8: 24
A9: Consultas Médicas | B9: 1843 | C9: 1386 | D9: 400 | E9: 986 | F9: 142 | G9: 71 | H9: 71 | I9: 210 | J9: 66 | K9: 144 | L9: 58 | M9: 23 | N9: 35 | O9: 47 | P9: 19 | Q9: 28
A10: Consultas Nutricionales + Gym | B10: 229 | C10: 184 | D10: 59 | E10: 125 | F10: 6 | G10: 2 | H10: 4 | I10: 30 | J10: 11 | K10: 19 | L10: 3 | M10: 0 | N10: 3 | O10: 6 | P10: 2 | Q10: 4
A11: Consultas Odontológicas | B11: 426 | C11: 217 | D11: 82 | E11: 135 | F11: 50 | G11: 30 | H11: 20 | I11: 37 | J11: 13 | K11: 24 | L11: 19 | M11: 4 | N11: 15 | O11: 103 | P11: 35 | Q11: 68
A12: Mamografías | B12: 58 | C12: 0 | D12: 0 | E12: 0 | F12: 15 | G12: 0 | H12: 15 | I12: 31 | J12: 0 | K12: 31 | L12: 0 | M12: 0 | N12: 0 | O12: 12 | P12: 0 | Q12: 12
A13: Métodos Anticonceptivos | B13: 30 | C13: 28 | D13: 0 | E13: 28 | F13: 0 | G13: 0 | H13: 0 | I13: 0 | J13: 0 | K13: 0 | L13: 0 | M13: 0 | N13: 0 | O13: 2 | P13: 2 | Q13: 0
A14: Papanicolaou | B14: 15 | C14: 10 | D14: 0 | E14: 10 | F14: 1 | G14: 0 | H14: 1 | I14: 4 | J14: 0 | K14: 4 | L14: 0 | M14: 0 | N14: 0 | O14: 0 | P14: 0 | Q14: 0
A15: Pruebas COVID-19 | B15: 31 | C15: 17 | D15: 4 | E15: 13 | F15: 2 | G15: 0 | H15: 2 | I15: 9 | J15: 1 | K15: 8 | L15: 1 | M15: 0 | N15: 1 | O15: 2 | P15: 1 | Q15: 1
A16: Pruebas Rápidas VIH, Sífilis, Hepatitis | B16: 195 | C16: 192 | D16: 122 | E16: 70 | F16: 1 | G16: 0 | H16: 1 | I16: 1 | J16: 0 | K16: 1 | L16: 0 | M16: 0 | N16: 0 | O16: 1 | P16: 1 | Q16: 0
A17: Vacunas (Influenza, VPH, TDPA) | B17: 1569 | C17: - | D17: - | E17: - | F17: - | G17: - | H17: - | I17: - | J17: - | K17: - | L17: - | M17: - | N17: - | O17: - | P17: - | Q17: -
A18: Vacunas de Sarampión | B18: 896 | C18: - | D18: - | E18: - | F18: - | G18: - | H18: - | I18: - | J18: - | K18: - | L18: - | M18: - | N18: - | O18: - | P18: - | Q18: -
A19: Total | B19: =SUM(B5:B18) -> 11073 | C19: 7120 | D19: 2947 | E19: 4173 | F19: 399 | G19: 192 | H19: 207 | I19: 623 | J19: 203 | K19: 420 | L19: 156 | M19: 60 | N19: 96 | O19: 310 | P19: 100 | Q19: 210
A20: Fuente: Secretaría Administrativa / Programa Institucional de Seguridad Preventiva Integral del Ecosistema Corte: Diciembre, 2025

Sheet T-79
A1: Eje 4: Cultura que nos une | F1: Índice
A2: Atención psicológica a estudiantes vulnerables, 2025 | D2: Tabla 79
A3: Estudiantes | B3: Total | C3: Sexo
C4: Mujeres | D4: Hombres
A5: Escasos recursos | B5: =+C5+D5 -> 12 | C5: 6 | D5: 6
A6: Problemáticas psicológicas severas | B6: 35 | C6: 22 | D6: 13
A7: VIH | B7: 0 | C7: 0 | D7: 0
A8: En el extranjero por movilidad | B8: 1 | C8: 0 | D8: 1
A9: Total | B9: =SUM(B5:B8) -> 48 | C9: 28 | D9: 20
A10: Fuente: Secretaría Académica / Programa Integral de Cultura de Paz Corte: Diciembre, 2025

Sheet T-80
A1: Eje 4: Cultura que nos une | H1: Índice
A2: Participantes en actividades de formación que contribuyen a la Cultura de Paz, 2025 | E2: Tabla 80
A3: Comunidad Universitaria | B3: Actividades | C3: Total | D3: Hombres | E3: Mujeres
A4: Estudiante | B4: 58 | C4: =+D4+E4 -> 1001 | D4: 324 | E4: 677
A5: Académico | B5: 3 | C5: 8 | D5: 5 | E5: 3
A6: Administrativo | B6: 3 | C6: 8 | D6: 1 | E6: 7
A7: Total | B7: =SUM(B4:B6) -> 64 | C7: 1017 | D7: 330 | E7: 687
A8: Fuente: Secretaría Académica / Programa Integral de Cultura de Paz y Primeros Contactos Corte: Diciembre, 2025

Sheet T-81
A1: Eje 4: Cultura que nos une | F1: Índice
A2: Participantes en cursos afines a la temática de derechos humanos por licenciatura y sexo, 2025 | C2: Tabla 81
A3: Licenciatura en: | B3: Total | C3: Hombres | D3: Mujeres
A4: Administración | B4: =C4+D4 -> 66 | C4: 21 | D4: 45
A5: Administración Financiera y Sistemas | B5: 74 | C5: 36 | D5: 38
A6: Administración Gubernamental y Políticas Públicas | B6: 9 | C6: 4 | D6: 5
A7: Contaduría Pública | B7: 87 | C7: 25 | D7: 62
A8: Economía | B8: 10 | C8: 3 | D8: 7
A9: Gestión de Negocios Gastronómicos | B9: 40 | C9: 21 | D9: 19
A10: Gestión y Economía Ambiental | B10: 1 | C10: 0 | D10: 1
A11: Mercadotecnia | B11: 66 | C11: 15 | D11: 51
A12: Negocios Internacionales | B12: 73 | C12: 26 | D12: 47
A13: Recursos Humanos | B13: 34 | C13: 4 | D13: 30
A14: Relaciones Públicas y Comunicación | B14: 5 | C14: 0 | D14: 5
A15: Tecnologías de la Información | B15: 9 | C15: 9 | D15: 0
A16: Turismo | B16: 20 | C16: 1 | D16: 19
A17: Negocios | B17: 19 | C17: 12 | D17: 7
A18: Total | B18: =SUM(B4:B17) -> 513 | C18: 177 | D18: 336
A19: Fuente: Secretaría Académica / Programa Integral de Cultura de Paz Corte: Diciembre, 2025

Sheet T-82
A1: Eje 4: Cultura que nos une | D1: Índice
A2: Exhibiciones de arte y cultura, 2025 | B2: Tabla 82
A3: Exhibición | B3: Eventos
A4: Artes audiovisuales | B4: 6
A5: Artes escénicas | B5: 7
A6: Artes plásticas o visuales | B6: 8
A7: Literatura | B7: 1
A8: Multidisciplinario | B8: 4
A9: Música | B9: 9
A10: Total | B10: =SUM(B4:B9) -> 35
A11: Fuente: Secretaría Académica / Coordinación Extensión / Unidad de Arte y Cultura Corte: Diciembre, 2025

Sheet T-83
A1: Eje 4: Cultura que nos une | N1: Índice
A2: Participantes / Intérpretes y asistentes a presentaciones de eventos culturales, 2025 | K2: Tabla 83
A3: Entidad universitaria / Área | B3: Actividades | D3: Participante / Intérprete
D4: Total | E4: Total | G4: Total | H4: Personal | J4: Total | K4: Estudiantes
B5: Conteo | C5: Asistentes | E5: Hombres | F5: Mujeres | H5: Hombres | I5: Mujeres | K5: Hombres | L5: Mujeres
A6: Artes audiovisuales | B6: 6 | C6: 727 | D6: =G6+J6 -> 0 | E6: 0 | F6: 0 | G6: =H6+I6 -> 0 | H6: 0 | I6: 0 | J6: =K6+L6 -> 0 | K6: 0 | L6: 0
A7: Artes escénicas | B7: 7 | C7: 459 | D7: =G7+J7 -> 50 | E7: 14 | F7: 36 | G7: 0 | H7: 0 | I7: 0 | J7: 50 | K7: 14 | L7: 36
A8: Artes plásticas o visuales | B8: 8 | C8: 632 | D8: =G8+J8 -> 99 | E8: 33 | F8: 66 | G8: 0 | H8: 0 | I8: 0 | J8: 99 | K8: 33 | L8: 66
A9: Literatura | B9: 1 | C9: 8 | D9: =G9+J9 -> 4 | E9: 2 | F9: 2 | G9: 0 | H9: 0 | I9: 0 | J9: 4 | K9: 2 | L9: 2
A10: Multidisciplinario | B10: 4 | C10: 181 | D10: =G10+J10 -> 645 | E10: 215 | F10: 430 | G10: 0 | H10: 0 | I10: 0 | J10: 645 | K10: 215 | L10: 430
A11: Música | B11: 9 | C11: 1259 | D11: =G11+J11 -> 131 | E11: 68 | F11: 63 | G11: 0 | H11: 0 | I11: 0 | J11: 131 | K11: 68 | L11: 63
A12: Total | B12: =SUM(B6:B11) -> 35 | C12: 3266 | D12: 929 | E12: 332 | F12: 597 | G12: 0 | H12: 0 | I12: 0 | J12: 929 | K12: 332 | L12: 597
A13: Fuente: Secretaría Académica / Coordinación Extensión / Unidad de Arte y Cultura Corte: Diciembre, 2025

Sheet T-84
A1: Eje 5: Gestión que construye | F1: Índice
A2: Sesiones y dictámenes aprobados en el H. Consejo de Centro, 2025 | D2: Tabla 84
A3: Sesión | B3: Fecha | C3: Modalidad | D3: Dictámenes
A4: Período 2024-2025
A5: III Sesión Extraordinaria | B5: 28 de febrero de 2025 | C5: Presencial | D5: 25
A6: IV Sesión Solemne | B6: 10 de marzo de 2025 | C6: Presencial | D6: N/A
A7: V Sesión Extraordinaria | B7: 29 de abril de 2025 | C7: Presencial | D7: N/A
A8: VI Sesión Solemne | B8: 13 de mayo de 2025 | C8: Presencial | D8: N/A
A9: VII Sesión Extraordinaria | B9: 14 de mayo de 2025 | C9: Presencial | D9: N/A
A10: VIII Sesión Extraordinaria | B10: 30 de junio de 2025 | C10: Presencial | D10: 16
A11: IX Sesión Extraordinaria | B11: 06 de octubre de 2025 | C11: Presencial | D11: 1
A12: X Sesión Extraordinaria | B12: 13 de octubre de 2025 | C12: Presencial | D12: 3
A13: Período 2025-2026
A14: I Sesión Ordinaria | B14: 13 de octubre de 2025 | C14: Presencial | D14: N/A
A15: II Sesión Extraordinaria | B15: 20 de noviembre de 2025 | C15: Presencial | D15: 5
A16: Total | D16: =SUM(D4:D15) -> 50
A17: Fuente: Secretaría Académica Corte: Diciembre, 2025

Sheet T-85
A1: Eje 5: Gestión que construye | D1: Índice
A2: Dictámenes aprobados por comisión y sesión del H. Consejo de Centro, 2025 | B2: Tabla 85
A3: Sesión | B3: Total
A4: Período 2024-2025
A5: III Sesión Extraordinaria | B5: =SUM(B6:B10) -> 25
A6: Comisión Permanente de Condonaciones y Becas | B6: 7
A7: Comisión Permanente de Educación | B7: 3
A8: Comisión Permanente de Revalidación de Estudios, Títulos y Grados | B8: 4
A9: Comisión Permanentes de Educación, Hacienda y Normatividad | B9: 3
A10: Comisiones Permanentes de Educación y Hacienda | B10: 8
A11: VIII Sesión Extraordinaria | B11: =SUM(B12:B13) -> 16
A12: Comisión Permanente de Educación | B12: 2
A13: Comisión Permanente de Revalidación de Estudios, Títulos y Grados | B13: 14
A14: IX Sesión Extraordinaria | B14: =B15 -> 1
A15: Comisiones Permanentes de Educación y Hacienda | B15: 1
A16: X Sesión Extraordinaria | B16: =SUM(B17:B19) -> 3
A17: Comisión Permanente de Educación | B17: 1
A18: Comisión Permanente Electoral | B18: 1
A19: Comisiones Permanentes de Educación y Hacienda | B19: 1
A20: Período 2025-2026
A21: II Sesión Extraordinaria | B21: =SUM(B22:B25) -> 5
A22: Comisión Permanente de Condonaciones y Becas | B22: 1
A23: Comisión Permanente de Educación | B23: 1
A24: Comisión Permanente de Hacienda | B24: 2
A25: Comisiones Permanentes de Educación y Hacienda | B25: 1
A26: Total | B26: =B21+B16+B14+B11+B5 -> 50
A27: Fuente: Secretaría Académica Corte: Diciembre, 2025

Sheet T-86
A1: Eje 5: Gestión que construye | D1: Índice
A2: Dictámenes aprobados por comisión de origen y CUCEA, 2025 | B2: Tabla 86
A3: Comisión | B3: Dictámenes
A4: Comisión de Educación | B4: 9
A5: Comisión de Hacienda | B5: 2
A6: Comisión de Revalidación de Estudios, Títulos y Grados | B6: 18
A7: Comisión de Condonaciones y Becas | B7: 9
A8: Comisión Electoral | B8: 1
A9: Comisión de Educación y Hacienda | B9: 11
A10: Comisión de Hacienda y Normatividad | B10: 3
A11: Total | B11: =SUM(B4:B10) -> 53
A12: Fuente: Secretaría Académica Corte: Diciembre, 2025

Sheet T-87
A1: Eje 5: Gestión que construye
A2: Sesiones de la Junta divisional por modalidad, 2025 | C2: Tabla 87 | E2: Índice
A3: Sesión | B3: Fecha | C3: Modalidad
A4: Periodo 2022-2025
A5: 18va. Sesión | B5: 09 de enero de 2025 | C5: Presencial
A6: 19na. Sesión | B6: 07 de abril de 2025 | C6: Presencial
A7: Periodo 2025-2028
A8: 1ra. Sesión | B8: 04 de julio de 2025 | C8: Presencial
A9: 2da. Sesión | B9: 24 de octubre de 2025 | C9: Presencial
A10: 3ra. Sesión | B10: 18 de diciembre de 2025 | C10: Hibrida
A11: Fuente: Secretaría Académica Corte: Diciembre, 2025

Sheet T-88
A1: Eje 5: Gestión que construye | E1: Índice
A2: Sesiones y acuerdos de los colegios departamentales, 2025 | C2: Tabla 88
A3: División | B3: Sesiones | C3: Acuerdos
A4: División de contaduría | B4: =SUM(B5:B8) -> 40 | C4: 82
A5: Auditoría | B5: 5 | C5: 12
A6: Contabilidad | B6: 11 | C6: 25
A7: Finanzas | B7: 13 | C7: 21
A8: Impuestos | B8: 11 | C8: 24
A9: División de Economía y Sociedad | B9: =SUM(B10:B14) -> 30 | C9: 42
A10: Ciencias Sociales y Jurídicas | B10: 7 | C10: 7
A11: Economía | B11: 5 | C11: 10
A12: Estudios Regionales INESER | B12: 7 | C12: 11
A13: Métodos Cuantitativos | B13: 6 | C13: 9
A14: Políticas Públicas | B14: 5 | C14: 5
A15: División de Gestión Empresarial | B15: =SUM(B16:B20) -> 56 | C15: 105
A16: Administración | B16: 17 | C16: 17
A17: Mercadotecnia y Negocios Internacionales | B17: 13 | C17: 39
A18: Recursos Humanos | B18: 8 | C18: 23
A19: Sistemas de Información* | B19: 5 | C19: 13
A20: Turismo, Recreación y Servicios | B20: 13 | C20: 13
A21: Total | B21: =SUM(B4,B9,B15) -> 126 | C21: 229
A22: Fuente: Secretaría Académica / División de Contaduría / División de Economía y Sociedad / División de Gestión Empresarial Corte: Diciembre, 2025

Sheet T-89
A1: Eje 5: Gestión que construye
A2: Sesiones y acuerdos de los Consejo Divisional, 2025 | C2: Tabla 89
A3: División | B3: Sesiones | C3: Acuerdos
A4: División de Contaduría | B4: 7 | C4: 7
A5: División de Economía y Sociedad | B5: 7 | C5: 7
A6: División de Gestión Empresarial | B6: 6 | C6: 6
A7: Total | B7: =SUM(B4,B5,B6) -> 20 | C7: 20
A8: Fuente: Secretaría Académica / División de Contaduría / División de Economía y Sociedad / División de Gestión Empresarial Corte: Diciembre, 2025

Sheet T-90
A1: Eje 5: Gestión que construye
A2: Personal académico por tipo de nombramiento y departamento, 2025 | H2: Tabla 90 | J2: Índice
A3: Divisiones / Departamento | B3: Total
C4: Asignatura | E4: Medio Tiempo | G4: Tiempo completo
C5: Hombres | D5: Mujeres | E5: Hombres | F5: Mujeres | G5: Hombres | H5: Mujeres
A6: División de Contaduría | B6: =SUM(C6:H6) -> 168 | C6: =SUM(C7:C10) -> 64 | D6: 37 | E6: 3 | F6: 1 | G6: 39 | H6: 24
A7: Departamento de Auditoría | B7: 18 | C7: 7 | D7: 3 | E7: 0 | F7: 1 | G7: 4 | H7: 3
A8: Departamento de Contabilidad | B8: 70 | C8: 27 | D8: 23 | E8: 2 | F8: 0 | G8: 10 | H8: 8
A9: Departamento de Finanzas | B9: 49 | C9: 17 | D9: 7 | E9: 0 | F9: 0 | G9: 16 | H9: 9
A10: Departamento de Impuestos | B10: 31 | C10: 13 | D10: 4 | E10: 1 | F10: 0 | G10: 9 | H10: 4
A11: División de Economía y Sociedad | B11: 339 | C11: =SUM(C12:C16) -> 84 | D11: 46 | E11: 1 | F11: 0 | G11: 135 | H11: 73
A12: Departamento de Ciencias Sociales y Jurídicas | B12: 91 | C12: 34 | D12: 23 | E12: 0 | F12: 0 | G12: 26 | H12: 8
A13: Departamento de Economía | B13: 58 | C13: 17 | D13: 8 | E13: 1 | F13: 0 | G13: 26 | H13: 6
A14: Departamento de Estudios Regionales INESER | B14: 48 | C14: 0 | D14: 0 | E14: 0 | F14: 0 | G14: 20 | H14: 28
A15: Departamento de Métodos Cuantitativos | B15: 69 | C15: 25 | D15: 13 | E15: 0 | F15: 0 | G15: 22 | H15: 9
A16: Departamento de Políticas Públicas | B16: 73 | C16: 8 | D16: 2 | E16: 0 | F16: 0 | G16: 41 | H16: 22
A17: División de Gestión Empresarial | B17: 548 | C17: =SUM(C18:C22) -> 185 | D17: 183 | E17: 2 | F17: 5 | G17: 92 | H17: 81
A18: Departamento de Administración | B18: 193 | C18: 60 | D18: 72 | E18: 0 | F18: 2 | G18: 31 | H18: 28
A19: Departamento de Mercadotecnia y Negocios Internacionales | B19: 161 | C19: 64 | D19: 67 | E19: 0 | F19: 0 | G19: 19 | H19: 11
A20: Departamento de Recursos Humanos | B20: 39 | C20: 7 | D20: 9 | E20: 0 | F20: 0 | G20: 8 | H20: 15
A21: Departamento de Sistemas de Información | B21: 111 | C21: 44 | D21: 24 | E21: 2 | F21: 1 | G21: 27 | H21: 13
A22: Departamento de Turismo, Recreación y Servicios | B22: 44 | C22: 10 | D22: 11 | E22: 0 | F22: 2 | G22: 7 | H22: 14
A23: Total | B23: =B17+B11+B6 -> 1055 | C23: 333 | D23: 266 | E23: 6 | F23: 6 | G23: 266 | H23: 178
A24: Fuente: Secretaría Administrativa / Coordinación Personal Corte: Diciembre, 2025

Sheet T-91
A1: Eje 5: Gestión que construye | J1: Índice
A2: Profesorado de tiempo completo por función, 2019-2025 | G2: Tabla 91
A3: Categoría | B3: Año
B4: 2019 | C4: 2020 | D4: 2021 | E4: 2022 | F4: 2023 | G4: 2024 | H4: 2025
A5: Docente | B5: 323 | C5: 298 | D5: 289 | E5: 269 | F5: 266 | G5: 251 | H5: 257
A6: Investigador | B6: 163 | C6: 167 | D6: 165 | E6: 158 | F6: 160 | G6: 173 | H6: 187
A7: Total | B7: =+B5+B6 -> 486 | C7: 465 | D7: 454 | E7: 427 | F7: 426 | G7: 424 | H7: 444
A8: Fuente: Secretaría Administrativa / Coordinación Personal Corte: Diciembre, 2025

Sheet T-92
A1: Eje 5: Gestión que construye | F1: Índice
A2: Personal académico por Nivel de estudios y sexo, 2025 | D2: Tabla 92
A3: Categoría / Nivel de estudios | B3: Total | C3: Sexo
C4: Hombres | D4: Mujeres
A5: Profesores de tiempo completo | B5: =SUM(B6:B10) -> 444 | C5: 266 | D5: 178
A6: Doctorado | B6: =C6+D6 -> 275 | C6: 167 | D6: 108
A7: Maestría | B7: 148 | C7: 87 | D7: 61
A8: Especialidad | B8: 0 | C8: 0 | D8: 0
A9: Licenciatura | B9: 21 | C9: 12 | D9: 9
A10: Técnico superior | B10: 0 | C10: 0 | D10: 0
A11: Profesores de medio tiempo | B11: =SUM(B12:B16) -> 12 | C11: 6 | D11: 6
A12: Doctorado | B12: =C12+D12 -> 4 | C12: 2 | D12: 2
A13: Maestría | B13: 8 | C13: 4 | D13: 4
A14: Especialidad | B14: 0 | C14: 0 | D14: 0
A15: Licenciatura | B15: 0 | C15: 0 | D15: 0
A16: Técnico superior | B16: 0 | C16: 0 | D16: 0
A17: Profesores de asignatura | B17: =SUM(B18:B22) -> 599 | C17: 333 | D17: 266
A18: Doctorado | B18: =C18+D18 -> 84 | C18: 49 | D18: 35
A19: Maestría | B19: 349 | C19: 187 | D19: 162
A20: Especialidad | B20: 3 | C20: 3 | D20: 0
A21: Licenciatura | B21: 162 | C21: 93 | D21: 69
A22: Técnico superior | B22: 1 | C22: 1 | D22: 0
A23: Técnicos académicos de tiempo completo | B23: =SUM(B24:B28) -> 19 | C23: 7 | D23: 12
A24: Doctorado | B24: =C24+D24 -> 0 | C24: 0 | D24: 0
A25: Maestría | B25: 8 | C25: 4 | D25: 4
A26: Especialidad | B26: 0 | C26: 0 | D26: 0
A27: Licenciatura | B27: 11 | C27: 3 | D27: 8
A28: Técnico superior | B28: 0 | C28: 0 | D28: 0
A29: Total | B29: =SUM(B5+B11+B17+B23) -> 1074 | C29: 612 | D29: 462
A30: Fuente: Secretaría Administrativa / Coordinación Personal Corte: Diciembre, 2025

Sheet T-93
A1: Eje 5: Gestión que construye | J1: Índice
A2: Personal administrativo por categoría, 2019-2025 | H2: Tabla 93
A3: Categoría | B3: Año
B4: 2019 | C4: 2020 | D4: 2021 | E4: 2022 | F4: 2023 | G4: 2024 | H4: 2025
A5: Confianza | B5: 94 | C5: 156 | D5: 158 | E5: 133 | F5: 134 | G5: 136 | H5: 139
A6: Mandos medios y Superiores | B6: 89 | C6: 92 | D6: 92 | E6: 90 | F6: 201 | G6: 198 | H6: 186
A7: Sindicalizado | B7: 284 | C7: 279 | D7: 282 | E7: 246 | F7: 255 | G7: 225 | H7: 233
A8: Total | B8: =SUM(B5:B7) -> 467 | C8: 527 | D8: 532 | E8: 469 | F8: 590 | G8: 559 | H8: 558
A9: Fuente: Secretaría Administrativa / Coordinación Personal Corte: Diciembre, 2025

Sheet T-94
A1: Eje 5: Gestión que construye | I1: Índice
A2: Personal administrativo por áreas, 2025 | F2: Tabla 94
A3: Áreas | B3: Total | C3: Confianza | D3: Directivos | E3: Sindicalizados | F3: Laborales
A4: Rectoría | B4: =SUM(C4:F4) -> 18 | C4: 4 | D4: 2 | E4: 2 | F4: 10
A5: Secretaría Académica | B5: 214 | C5: 68 | D5: 47 | E5: 57 | F5: 42
A6: Secretaría Administrativa | B6: 216 | C6: 51 | D6: 18 | E6: 120 | F6: 27
A7: División de Contaduría | B7: 35 | C7: 4 | D7: 6 | E7: 20 | F7: 5
A8: División de Economía y Sociedad | B8: 48 | C8: 8 | D8: 17 | E8: 18 | F8: 5
A9: División de Gestión Empresarial | B9: 27 | C9: 4 | D9: 7 | E9: 16 | F9: 0
A10: Total | B10: =SUM(B4:B9) -> 558 | C10: 139 | D10: 97 | E10: 233 | F10: 89
A11: Fuente: Secretaría Administrativa / Coordinación Personal Corte: Diciembre, 2025

Sheet T-95
A1: Eje 5: Gestión que construye | H1: Índice
A2: Escolaridad del personal administrativo, 2025 | F2: Tabla 95
A3: Escolaridad | B3: Total | C3: Personal
C4: Directivos | D4: Confianza | E4: Sindicalizados | F4: Laborales
A5: Primaria inconclusa | B5: =SUM(C5:F5) -> 2 | C5: 0 | D5: 0 | E5: 2 | F5: 0
A6: Primaria | B6: 8 | C6: 0 | D6: 1 | E6: 6 | F6: 1
A7: Secundaria | B7: 47 | C7: 0 | D7: 5 | E7: 38 | F7: 4
A8: Bachillerato | B8: 168 | C8: 0 | D8: 28 | E8: 115 | F8: 25
A9: Estudiante de licenciatura | B9: 4 | C9: 0 | D9: 4 | E9: 0 | F9: 0
A10: Pasante de licenciatura | B10: 10 | C10: 0 | D10: 8 | E10: 0 | F10: 2
A11: Licenciatura | B11: 179 | C11: 26 | D11: 55 | E11: 64 | F11: 34
A12: Estudiante de maestría | B12: 1 | C12: 0 | D12: 0 | E12: 1 | F12: 0
A13: Pasante de Maestría | B13: 6 | C13: 4 | D13: 2 | E13: 0 | F13: 0
A14: Maestría | B14: 78 | C14: 28 | D14: 31 | E14: 7 | F14: 12
A15: Estudiante de doctorado | B15: 0 | C15: 0 | D15: 0 | E15: 0 | F15: 0
A16: Pasante de doctorado | B16: 1 | C16: 1 | D16: 0 | E16: 0 | F16: 0
A17: Doctorado | B17: 49 | C17: 38 | D17: 5 | E17: 0 | F17: 6
A18: Sin Información en SIARG | B18: 0 | C18: 0 | D18: 0 | E18: 0 | F18: 0
A19: Sin Estudios | B19: 5 | C19: 0 | D19: 0 | E19: 0 | F19: 5
A20: Total | B20: =SUM(B5:B19) -> 558 | C20: 97 | D20: 139 | E20: 233 | F20: 89
A21: Fuente: Secretaría Administrativa / Coordinación Personal Corte: Diciembre, 2025

Sheet T-96
A1: Eje 5: Gestión que construye | J1: Índice
A2: Personal pensionado por plazas académicas, sindicalizadas y de confianza, 2019-2025 | H2: Tabla 96
A3: Categoría | B3: Pensionados
A4: Categoría | B4: 2019 | C4: 2020 | D4: 2021 | E4: 2022 | F4: 2023 | G4: 2024 | H4: 2025
A5: Plazas Académicas | B5: 0 | C5: 0 | D5: 0 | E5: 0 | F5: 0 | G5: 11 | H5: 0
A6: Plazas de Confianza | B6: 0 | C6: 0 | D6: 0 | E6: 0 | F6: 1 | G6: 1 | H6: 0
A7: Plazas Laboral | B7: 0 | C7: 0 | D7: 0 | E7: 0 | F7: 0 | G7: 0 | H7: 0
A8: Plazas Sindicalizadas | B8: 0 | C8: 0 | D8: 2 | E8: 1 | F8: 0 | G8: 3 | H8: 0
A9: Total | B9: =SUM(B5:B8) -> 0 | C9: 0 | D9: 2 | E9: 1 | F9: 1 | G9: 15 | H9: 0
A10: Fuente: Secretaría Administrativa / Coordinación de Personal Corte: Diciembre, 2025
H78: 2023 | I78: 2021 | J78: 2022
H79: 2 | I79: 5 | J79: 2

Sheet T-97
A1: Eje 5: Gestión que construye | J1: Índice
A2: Personal jubilado por plazas académicas, sindicalizadas y de confianza, 2019-2025 | G2: Tabla 97
A3: Categoría | B3: Jubilados
A4: Categoría | B4: 2019 | C4: 2020 | D4: 2021 | E4: 2022 | F4: 2023 | G4: 2024 | H4: 2025
A5: Plazas Académicas | B5: 21 | C5: 34 | D5: 32 | E5: 27 | F5: 27 | G5: 12 | H5: 3
A6: Plazas de Confianza | B6: 0 | C6: 1 | D6: 0 | E6: 1 | F6: 1 | G6: 1 | H6: 0
A7: Plazas Laboral | B7: =SUM(C7:F7) -> 1 | C7: 0 | D7: 0 | E7: 0 | F7: 1 | G7: 0 | H7: 0
A8: Plazas Sindicalizadas | B8: 0 | C8: 1 | D8: 5 | E8: 2 | F8: 4 | G8: 3 | H8: 8
A9: Total | B9: =SUM(B5:B8) -> 22 | C9: 36 | D9: 37 | E9: 30 | F9: 33 | G9: 16 | H9: 11
A10: Fuente: Secretaría Administrativa / Coordinación de Personal Corte: Diciembre, 2025
D78: Categoría | E78: 2019 | F78: 2020 | I78: 2021 | J78: 2022 | K78: 2023
D79: Plazas Académicas | E79: 21 | F79: 34 | I79: 5 | J79: 2 | K79: 2
F82: Jubilados
E83: 2019 | F83: 21
E84: 2020 | F84: 34
E85: 2021 | F85: 32
E86: 2022 | F86: 27
E87: 2023 | F87: 27
E88: 2024 | F88: 12

Sheet T-98
A1: Eje 5: Gestión que construye | J1: Índice
A2: Personal fallecido por plazas académicas, sindicalizadas y de confianza, 2019-2025 | H2: Tabla 98
A3: Categoría | B3: Fallecidos
A4: Categoría | B4: 2019 | C4: 2020 | D4: 2021 | E4: 2022 | F4: 2023 | G4: 2024 | H4: 2025
A5: Plazas Académicas | B5: 0 | C5: 5 | D5: 5 | E5: 2 | F5: 2 | G5: 0 | H5: 0
A6: Plazas de Confianza | B6: 0 | C6: 0 | D6: 0 | E6: 0 | F6: 0 | G6: 0 | H6: 0
A7: Plazas Laboral | B7: 0 | C7: 0 | D7: 0 | E7: 0 | F7: 0 | G7: 0 | H7: 0
A8: Plazas Sindicalizadas | B8: 0 | C8: 0 | D8: 0 | E8: 1 | F8: 1 | G8: 3 | H8: 1
A9: Total | B9: =SUM(B5:B8) -> 0 | C9: 5 | D9: 5 | E9: 3 | F9: 3 | G9: 3 | H9: 1
A10: Fuente: Secretaría Administrativa / Coordinación de Personal Corte: Diciembre, 2025
B78: 2021 | C78: 2022 | D78: 2023 | E78: 2019 | F78: 2020 | I78: 2021 | J78: 2022 | K78: 2023
B79: 32 | C79: 27 | D79: 27 | E79: 0 | F79: 5 | I79: 5 | J79: 2 | K79: 2
B82: Fallecidos
B83: 0
B84: 5
B85: 5
B86: 2
B87: 2
B88: 0

Sheet T-99
A1: Eje 5: Gestión que construye | F1: Índice
A2: Proyectos capturados en el presupuesto ordinario federal, 2025 | D2: Tabla 99
A3: URes | B3: Descripción Ures | C3: N°P3E | D3: Monto (Pesos)
A4: 2.1.1 | B4: Rectoría | C4: 280778 | D4: 424000
A5: 2.1.2 | B5: Secretaría Académica | C5: 279851 | D5: 2110803.54
A6: 2.1.2.2 | B6: Coordinación de Planeación | C6: 280498 | D6: 230000
A7: 2.1.2.3 | B7: Coordinación de Programas Docentes | C7: 280110 | D7: 50000
A8: 2.1.2.3.3 | B8: Coordinación de Posgrado | C8: 279895 | D8: 133000
A9: 2.1.2.4 | B9: Coordinación de Investigación | C9: 280314 | D9: 300000
A10: 2.1.2.5 | B10: Coordinación de Extensión | C10: 27938 | D10: 300000
A11: 2.1.2.6 | B11: Coordinación de Servicios Académicos | C11: 279333 | D11: 300000
A12: 2.1.2.7 | B12: Coordinación de Tecnologías para el Aprendizaje | C12: 279738 | D12: 675074.83
A13: 2.1.7.1 | B13: Programa Centro de Innovación para el Aceleramiento al Desarrollo Económico y Social (CIADEyS) | C13: 278928 | D13: 200000
A14: 2.1.3 | B14: Secretaria Administrativa | C14: 280703 | D14: 5474744.13
A15: 2.1.3.5 | B15: Coordinación de Servicios Generales | C15: 280071 | D15: 100000
A16: 2.1.4 | B16: División de Economía y Sociedad | C16: 279370 | D16: 478982.93
A17: 2.1.4.2 | B17: Departamento de Economía | C17: 279133 | D17: 524577.73
A18: 2.1.4.3 | B18: Departamento de Estudios Regionales INESER | C18: 278860 | D18: 801158.32
A19: 2.1.4.4 | B19: Departamento de Métodos Cuantitativos | C19: 279148 | D19: 381658.33
A20: 2.1.4.5 | B20: Departamento de Ciencias Sociales y Jurídicas | C20: 279922 | D20: 414524.72
A21: 2.1.4.6 | B21: Departamento de Políticas Públicas | C21: 279650 | D21: 432937.86
A22: 2.1.4.6.2 | B22: Instituto de Investigación en Rendición de Cuentas y Combate a la Corrupción | C22: 279327 | D22: 2300000
A23: 2.1.4.6.2 | B23: Instituto de Investigación Educativa | C23: 279286 | D23: 1320000
A24: 2.1.4.6.4 | B24: Instituto de Investigación en Políticas Públicas y Gobierno | C24: 280122 | D24: 1320000
A25: 2.1.5 | B25: División de Gestión Empresarial | C25: 279717 | D25: 755038.64
A26: 2.1.5.2 | B26: Departamento de Administración | C26: 279868 | D26: 445588.7
A27: 2.1.5.3 | B27: Departamento de Mercadotecnia y Negocios Internacionales | C27: 280278 | D27: 528220.89
A28: 2.1.5.4 | B28: Departamento de Sistemas de Información | C28: 279642 | D28: 326380.42
A29: 2.1.5.5 | B29: Departamento de Recursos Humanos | C29: 279517 | D29: 278815.98
A30: 2.1.5.6 | B30: Departamento de Turismo, Recreación y Servicios | C30: 278944 | D30: 290684.36
A31: 2.1.6 | B31: División de Contaduría | C31: 279977 | D31: 469994.84
A32: 2.1.6.2 | B32: Departamento de Finanzas | C32: 280167 | D32: 288957.83
A33: 2.1.6.3 | B33: Departamento de Auditoría | C33: 279925 | D33: 288957.83
A34: 2.1.6.4 | B34: Departamento de Contabilidad | C34: 278942 | D34: 621991.29
A35: 2.1.6.5 | B35: Departamento de Impuestos | C35: 278862 | D35: 288957.83
A36: Total | D36: =SUM(D4:D35) -> 22855051
A37: Fuente: Secretaría Académica / Coordinación de Planeación Corte: Diciembre, 2025

Sheet T-100
A1: Eje 5: Gestión que construye | F1: Índice
A2: Proyectos capturados en el presupuesto ordinario estatal, 2025 | D2: Tabla 100
A3: URes | B3: Descripción Ures | C3: N°P3E | D3: Monto (Pesos)
A4: 2.1.2 | B4: Secretaría Académica | C4: 280128 | D4: 463626
A5: 2.1.2.3 | B5: Coordinación de Programas Docentes | C5: 280113 | D5: 50000
A6: 2.1.2.4 | B6: Coordinación de Investigación | C6: 280328 | D6: 100000
A7: 2.1.2.5 | B7: Coordinación de Extensión | C7: 279339 | D7: 100000
A8: 2.1.2.7 | B8: Coordinación de Tecnologías para el Aprendizaje | C8: 279616 | D8: 500000
A9: 2.1.3 | B9: Secretaria Administrativa | C9: 280705 | D9: 201000
A10: 2.1.4 | B10: División de Economía y Sociedad | C10: 279379 | D10: 80000
A11: 2.1.4.2 | B11: Departamento de Economía | C11: 279163 | D11: 80000
A12: 2.1.4.3 | B12: Departamento de Estudios Regionales INESER | C12: 278852 | D12: 80000
A13: 2.1.4.4 | B13: Departamento de Métodos Cuantitativos | C13: 279135 | D13: 80000
A14: 2.1.4.5 | B14: Departamento de Ciencias Sociales y Jurídicas | C14: 279920 | D14: 80000
A15: 2.1.4.6 | B15: Departamento de Políticas Públicas | C15: 279671 | D15: 80000
A16: 2.1.4.6.4 | B16: Instituto de Investigación en Políticas Públicas y Gobierno | C16: 279723 | D16: 50000
A17: 2.1.5 | B17: División de Gestión Empresarial | C17: 279706 | D17: 80000
A18: 2.1.5.2 | B18: Departamento de Administración | C18: 279884 | D18: 80000
A19: 2.1.5.3 | B19: Departamento de Mercadotecnia y Negocios Internacionales | C19: 280275 | D19: 80000
A20: 2.1.5.4 | B20: Departamento de Sistemas de Información | C20: 279718 | D20: 80000
A21: 2.1.5.5 | B21: Departamento de Recursos Humanos | C21: 279555 | D21: 80000
A22: 2.1.5.6 | B22: Departamento de Turismo, Recreación y Servicios | C22: 279109 | D22: 80000
A23: 2.1.6 | B23: División de Contaduría | C23: 279988 | D23: 80000
A24: 2.1.6.2 | B24: Departamento de Finanzas | C24: 280276 | D24: 80000
A25: 2.1.6.3 | B25: Departamento de Auditoría | C25: 279924 | D25: 80000
A26: 2.1.6.4 | B26: Departamento de Contabilidad | C26: 279442 | D26: 80000
A27: 2.1.6.5 | B27: Departamento de Impuestos | C27: 278883 | D27: 80000
A28: Total | D28: =SUM(D4:D27) -> 2824626
A29: Fuente: Secretaría Académica / Coordinación de Planeación Corte: Diciembre, 2025

Sheet T-101
A1: Eje 5: Gestión que construye | F1: Índice
A2: Proyectos capturados en el presupuesto autogenerado, 2025 | D2: Tabla 101
A3: N°P3E | B3: URes | C3: Descripción URes | D3: Monto (Pesos)
A4: 280777 | B4: 2.1.1 | C4: Rectoría | D4: 3000000
A5: 280138 | B5: 2.1.2 | C5: Secretaría Académica | D5: 1726113.4
A6: 280133 | B6: 2.1.2 | C6: Secretaría Académica | D6: 1500000
A7: 279330 | B7: 2.1.2.6 | C7: Coordinación de Servicios Académicos | D7: 6000000
A8: 280197 | B8: 2.1.7.1 | C8: Programa Integral de Formación para la Actividad Física y el Deporte "CUCEA Smart Sport" | D8: 1000000
A9: 280708 | B9: 2.1.3 | C9: Secretaría Administrativa | D9: 6594109.99
A10: 280879 | B10: 2.1.3 | C10: Secretaría Administrativa | D10: 2000000
A11: 280769 | B11: 2.1.3.3 | C11: Coordinación de Finanzas | D11: 7350000
A12: 279981 | B12: 2.1.3.4 | C12: Coordinación de Personal | D12: 39721167.61
A13: 279724 | B13: 2.1.3.4 | C13: Coordinación de Personal | D13: 14000000
A14: 280067 | B14: 2.1.3.5 | C14: Coordinación de Servicios Generales | D14: 6500000
A15: 279528 | B15: 2.1.4 | C15: División de Economía y Sociedad | D15: 443000
A16: 280129 | B16: 2.1.4.6.4 | C16: Instituto en Investigación en Políticas Públicas y Gobierno | D16: 200000
A17: 279711 | B17: 2.1.5 | C17: División de Gestión Empresarial | D17: 1000000
A18: 280108 | B18: 2.1.5.2 | C18: Departamento de Administración | D18: 400000
A19: 279743 | B19: 2.1.5.2.2 | C19: Instituto para el desarrollo y la innovación de la tecnología en la pequeña y mediana empresa (IDITpyme) | D19: 300000
A20: 279720 | B20: 2.1.5.4 | C20: Departamento de Sistemas de Información | D20: 50000
A21: 279124 | B21: 2.1.5.6 | C21: Departamento de Turismo | D21: 1500000
A22: 279989 | B22: 2.1.6 | C22: División de Contaduría | D22: 700000
A23: 279581 | B23: 2.1.6.4 | C23: Departamento de Contabilidad | D23: 3000000
A24: 280447 | B24: 2.1.6.2 | C24: Departamento de Finanzas | D24: 200000
A25: Total | D25: =SUM(D4:D24) -> 97184391
A26: Fuente: Secretaría Académica / Coordinación de Planeación Corte: Diciembre, 2025

Sheet T-102
A1: Eje 5: Gestión que construye
A2: Presupuesto Ejercido, 2019-2025 | H2: Tabla 102 | J2: Índice
A3: Tipo de Fondo | B3: Año
B4: 2019 | C4: 2020 | D4: 2021 | E4: 2022 | F4: 2023 | G4: 2024 | H4: 2025
A5: Subsidio ordinario Federal | B5: 28396294 | C5: 16758904.81 | D5: 11511455.65 | E5: 11298504 | F5: 12004661 | G5: 22139289.85 | H5: 25135327.05
A6: Subsidio ordinario Estatal | B6: 0 | C6: 0 | D6: 7211674.35 | E6: 17024626 | F6: 11930604 | G6: 2818104.28 | H6: 2897690.3
A7: Fondos Extraordinarios | B7: 6509678.06 | C7: 8722576 | D7: 0 | E7: 0 | F7: 0 | G7: 7677556.93 | H7: 16290304.91
A8: Fondos Institucionales Participables FIP´s | B8: 14972497.05 | C8: 14164107.5 | D8: 15581138.81 | E8: 17517366.93 | F8: 17391766.23 | G8: 27842091.6 | H8: 28607492
A9: Compromisos Institucionales | B9: 700000 | C9: 760000 | D9: 760000 | E9: 760000 | F9: 856472 | G9: 767544.17 | H9: 807423.01
A10: Ingresos Autogenerados | B10: 67706666 | C10: 67706666 | D10: 63411455 | E10: 78757795.5 | F10: 84121313.31 | G10: 76300014.31 | H10: 79084743.79
A11: Fideicomiso para el Fondo de Infraestructura Física de la Red Universitaria FIFRU (CUCEA) | B11: 12282844.7 | C11: 10042271 | D11: 25054527 | E11: 5000000 | F11: 16587562 | G11: 21000000 | H11: 12193220.44
A12: Total | B12: =SUM(B5:B11) -> 130567979.8 | C12: 118154525.3 | D12: 123530250.8 | E12: 130358292.4 | F12: 142892378.5 | G12: 158544601.1 | H12: 165016201.5
A13: Fuente: Secretaría Administrativa / Coordinación de Finanzas Corte: Diciembre, 2025

Sheet T-103
A1: Eje 5: Gestión que construye
A2: Presupuesto de ingresos y egresos, 2021-2025 | B2: Tabla 103 | D2: Índice
A3: Fondo | B3: Autorizado
A4: Subsidio ordinario Federal
A5: Subsidio ordinario federal | B5: 20199035
A6: Subsidio ordinario federal IRCCC | B6: 2300000
A7: Subsidio ordinario federal IIE | B7: 1320000
A8: Subsidio ordinario federal IIPP | B8: 1320000
A9: Total | B9: =SUM(B5:B8) -> 25139035
A10: Subsidio ordinario Estatal
A11: Subsidio ordinario estatal (capítulo 5000) | B11: 2897749.37
A12: Total | B12: =SUM(B11) -> 2897749.37
A13: Fondos Extraordinarios*
A14: Fondo de Aportaciones Múltiples (FAM) | B14: 16290304.91
A15: Total | B15: =SUM(B14) -> 16290304.91
A16: Fondos Institucionales Participables FIP´s
A17: Programa de Formación para la Innovación Docente (PROINNOVA) | B17: 396000
A18: Subsidio Federal | B18: =SUM(B17) -> 396000
A19: Adquisición de Material Bibliográfico | B19: 3759965.26
A20: Programa de Apoyo a l a mejora de las condiciones de producción de los miembros del SNII y SNCA PROSNII | B20: 6654415.14
A21: Programa de Revistas Científicas Universitarias | B21: 1332176
A22: Programa de incorporación y Permanencia del Posgrado (PROINPEP)
A23: Programa para el aseguramiento de la calidad de los posgrados (PROAC) | B23: 4107517
A24: Programa Compensatorio para la Transición Gradual hacia la Gratuidad de los Servicios Educativos de Posgrado PROGAP | B24: 10706980.02
A25: Concurrencias Financieras para la Investigación y Atención de la Vinculación | B25: 108000
A26: Fortalecimiento al posgrado | B26: 800000
A27: Fortalecimiento de Instituto, centros y Laboratorios de Investigación | B27: 1213143.3
A28: Programa de Formación para la Innovación Docente (PROINNOVA)
A29: Nuevos Programas de Posgrado | B29: 99999.54
A30: Evaluación y Acreditación
A31: Gestión de Talento y Emprendimiento
A32: Programas Estratégicos de la Red
A33: Fomento a la Internacionalización en casa | B33: 150285.85
A34: Financiamiento de Proyectos de Investigación Estratégicos | B34: 577033.6
A35: Programa para el desarrollo profesional docente para el tipo superior (PRODEP) | B35: 166470
A36: Subsidio Estatal | B36: =SUM(B19:B35) -> 29675985.71
A37: Total Estatal + Federal | B37: =B36+B18 -> 30071985.71
A38: Compromisos Institucionales
A39: Examen de admisión | B39: 807423.01
A40: Total | B40: =SUM(B39) -> 807423.01
A41: Ingresos Autogenerados
A42: Ingresos Autogenerados del Ejercicio | B42: 82488807.4
A43: Programa de Apoyo a l a mejora de las condiciones de producción de los miembros del SNII y SNCA PROSNII | B43: 30000
A44: Total | B44: =SUM(B42:B43) -> 82518807.4
A45: CUCEA
A46: Fondo de Infraestructura Física de la Red Universitaria | B46: 26965844.42
A47: Total | B47: =SUM(B46) -> 26965844.42
A48: RECURSOS TOTALES | B48: =B47+B44+B40+B37+B15+B12+B9 -> 184691149.8
A49: Fuente: Secretaría Administrativa / Coordinación Finanzas Corte: Diciembre, 2025 Nota:

Sheet T-104
A1: Eje 5: Gestión que construye | E1: Índice
A2: Procesos de adjudicación a través del Comité de Compras, 2025 | C2: Tabla 104
A3: Tipo de proceso | B3: Cantidad | C3: Monto adjudicado
A4: Adjudicaciones directas | B4: 0 | C4: 0
A5: Invitaciones | B5: 12 | C5: 4383598.92
A6: Concursos | B6: 11 | C6: 8294802.07
A7: Licitaciones | B7: 1 | C7: 15698916.31
A8: Total | B8: =SUM(B4:B7) -> 24 | C8: 28377317.3
A9: Fuente: Secretaría Administrativa / Coordinación de Servicios Generales Corte: Diciembre, 2025

Sheet T-105
A1: Eje 5: Gestión que construye | H1: Índice
A2: Informe global de transferencias, 2025 | F2: Tabla 105
A3: Recursos | B3: Transferido (peso) | C3: Comprobado (peso) | D3: Porcentaje comprobado | E3: Por comprobar | F3: Porcentaje por comprobar
A4: Adquisición de Material Bibliográfico | B4: 3759965.26 | C4: 2247662.81 | D4: 0.5978 | E4: 1512302.45 | F4: 0.4
A5: Programa de Apoyo a l a mejora de las condiciones de producción de los miembros del SNII y SNCA PROSNII | B5: 6663868.15 | C5: 103500 | D5: 0.0155 | E5: 6560368.15 | F5: 0.98
A6: Programa de Revistas Científicas Universitarias | B6: 596120.5 | C6: 15881.81 | D6: 0.0266 | E6: 580238.69 | F6: 0.97
A7: Programa de incorporación y Permanencia del Posgrado (PROINPEP) | B7: 0 | C7: 0 | D7: 0 | E7: 0 | F7: 0
A8: Programa para el aseguramiento de la calidad de los posgrados (PROAC) | B8: 4143151.91 | C8: 358129.06 | D8: 0.0864 | E8: 3785022.85 | F8: 0.91
A9: Programa Compensatorio para la Transición Gradual hacia la Gratuidad de los Servicios Educativos de Posgrado PROGAP | B9: 12331137.02 | C9: 1909025.16 | D9: 0.1548 | E9: 10422111.86 | F9: 0.85
A10: Concurrencias Financieras para la Investigación y Atención de la Vinculación | B10: 108000 | C10: 0 | D10: 0 | E10: 108000 | F10: 1
A11: Fortalecimiento al posgrado | B11: 0 | C11: 0 | D11: 0 | E11: 0 | F11: 0
A12: Fortalecimiento de Instituto, centros y Laboratorios de Investigación | B12: 1196243.27 | C12: 7795.2 | D12: 0.0065 | E12: 1188448.07 | F12: 0.99
A13: Programa de Formación para la Innovación Docente (PROINNOVA) | B13: 154956.98 | C13: 0 | D13: 0 | E13: 154956.98 | F13: 1
A14: Nuevos Programas de Posgrado | B14: 99999.54 | C14: 1927.5 | D14: 0.0193 | E14: 98072.04 | F14: 0.98
A15: Evaluación y Acreditación | B15: 0 | C15: 0 | D15: 0 | E15: 0 | F15: 0
A16: Gestión de Talento y Emprendimiento | B16: 0 | C16: 0 | D16: 0 | E16: 0 | F16: 0
A17: Programas Estratégicos de la Red | B17: 0 | C17: 0 | D17: 0 | E17: 0 | F17: 0
A18: Fomento a la Internacionalización en casa | B18: 150285.85 | C18: 19237 | D18: 0.128 | E18: 131048.85 | F18: 0.87
A19: Financiamiento de Proyectos de Investigación Estratégicos | B19: 577033.6 | C19: 66000 | D19: 0.1144 | E19: 511033.6 | F19: 0.89
A20: Total | B20: =SUM(B4:B19) -> 29780762.08 | C20: 4729158.54 | D20: - | E20: =SUM(E4:E19) -> 25051603.54 | F20: -
A21: Fuente: Secretaría Administrativa / Coordinación de Finanzas Corte: Diciembre, 2025

Sheet T-106
A1: Eje 5: Gestión que construye | D1: Índice
A2: Solicitudes de Acceso a la Información Pública, 2025 | B2: Tabla 106
A3: Mes | B3: Solicitudes
A4: Enero | B4: 5
A5: Febrero | B5: 7
A6: Marzo | B6: 16
A7: Abril | B7: 13
A8: Mayo | B8: 3
A9: Junio | B9: 6
A10: Julio | B10: 2
A11: Agosto | B11: 6
A12: Septiembre | B12: 2
A13: Octubre | B13: 12
A14: Noviembre | B14: 18
A15: Diciembre | B15: 11
A16: Total | B16: =SUM(B4:B15) -> 101
A17: Fuente: Secretaría Administrativa / Asuntos Jurídicos, Transparencia y Archivo

Sheet T-107
A1: Eje 5: Gestión que construye
A2: Solicitudes de Acceso a la Información Pública, por dependencia, 2025 | B2: Tabla 107
A3: Dependencia | B3: Solicitudes
A4: Asuntos Jurídicos | B4: 10
A5: Empresas Universitarias | B5: 7
A6: Asuntos Financieros | B6: 23
A7: Asuntos Administrativa | B7: 14
A8: Asuntos Académica | B8: 12
A9: Asuntos de Posgrado | B9: 4
A10: Recursos Humanos | B10: 9
A11: Asuntos de Control y Trámites Escolares | B11: 5
A12: Investigación, Planeación y Proyectos | B12: 2
A13: Divisiones y Departamentos de Centro | B13: 7
A14: Servicios Académicos | B14: 3
A15: Programas de Servicios Sociales y Culturales | B15: 5
A16: Total | B16: =SUM(B4:B15) -> 101
A17: Fuente: Secretaría Administrativa / Asuntos Jurídicos, Transparencia y Archivo Corte: Diciembre, 2025

Sheet T-108
A1: Eje 5: Gestión que construye | D1: Índice
A2: Protección de Datos Personales, 2025 | B2: Tabla 108
A3: Rubro | B3: Datos protegidos
A4: Estados de Cuenta | B4: 811
A5: Procesos de compra, licitación, adjudicación y concurso | B5: 4082
A6: Documentos Académicos | B6: 560
A7: Convenios de Prácticas Profesionales | B7: 1400
A8: Total | B8: =SUM(B4:B7) -> 6853
A9: Fuente: Secretaría Administrativa / Asuntos Jurídicos, Transparencia y Archivo Corte: Diciembre, 2025

Sheet T-109
A1: Eje 5: Gestión que construye | G1: Índice
A2: Posición de las maestrías en rankings Eduniversal, 2025 | D2: Tabla 109
A3: Maestría | B3: Posición
B4: América Latina | C4: IES Nacionales | D4: IES Públicas | E4: Años en el Ranking
A5: Maestría en Tecnologías de Información | B5: 12 | C5: 3 | D5: 1 | E5: 6
A6: Maestría en Dirección de Mercadotecnia | B6: 6 | C6: 2 | D6: 1 | E6: 4
A7: Maestría en Administración de Negocios (Ejecutivo) | B7: 20 | C7: 5 | D7: 1 | E7: 3
A8: Maestría en Negocios y Estudios Económicos | B8: 14 | C8: 2 | D8: 1 | E8: 1
A9: Maestría en Relaciones Económicas Internacionales y Cooperación (con énfasis en AL-UE) | B9: 17 | C9: 2 | D9: 1 | E9: 1
A10: Fuente: Eduniversal, https://eduniversal.com/ Corte: Diciembre, 2025

Sheet T-110
A1: Eje 5: Gestión que construye
A2: Solicitudes de información de la Auditoría Superior de la Federación (ASF) y la Auditoría Superior de Jalisco (ASJ), 2025 | F2: Tabla 110
A3: Núm | B3: No. Solicitud | C3: Fecha de Solicitud | D3: Tipo de Revisión | E3: Fecha de entrega | F3: Estatus
A4: 1 | B4: Sol. 03/12/2024 | C4: 2024-12-03 | D4: ASEJ | 2023 | Obra Pública | E4: 2025-04-11 | F4: Finalizada sin observaciones
A5: 2 | B5: No. 3369/2024 | C5: 2024-12-16 | D5: ASEJ | 2023 | Pliego de observaciones- Financiero Número de oficio 23-DPE-PO-012-200100-A-01 | E5: Entregar a más tardar el 17 de enero de 2025 | F5: Entregado el 17 de enero de 2025, con el oficio número CUCEA/SAD/011/2025
A6: 3 | B6: Aud. 1226 | C6: 2025-01-29 | D6: ASF | 2023 | Aud. 1226 | Integral | Registros de asistencia 2023 - CUCEA | E6: 2025-01-29 | F6: Entregada
A7: 4 | B7: Aud. 1083 | C7: 2025-03-20 | D7: ASF | 2023 | Aud. 1226 | Integral | Pliego de Observaciones R-20 (CUCEA) | E7: 2025-03-20 | F7: Entregada
A8: 5 | B8: Aud. 1184 | C8: 2025-03-22 | D8: ASF | 2024 | Aud. núm. 1184 | Orden de auditoria y requerimiento de información (corregidos) "Recursos del Gasto Federalizado Transferidos a las Universidades Públicas Estatales" | E8: Entregar a más tardar el 24 de marzo de 2025 | F8: Enviado el 28 de marzo de 2025, por medio de correo
A9: 6 | B9: Aud. 1184 | C9: 2025-03-22 | D9: ASF | 2024 | Obra Pública | E9: 2025-05-14 | F9: Finalizada sin observaciones
A10: 7 | B10: Aud. 1184 | C10: 2025-05-05 | D10: ASF | 2024 | Aud. 1184 | Solicitud de contratos - Adquisiciones CUCEA B. Información relacionada con los procesos de adjudicación y contratación de bienes y servicios | E10: Entregar a más tardar el 12 de mayo de 2025 | F10: Entregado el 12 de mayo de 2025, con el oficio número CUCEA/SAD/100/2025
A11: 8 | B11: Oficio 1244/2025 | C11: 2025-05-19 | D11: ASEJ | 2024 | Requerimiento de información y documentación inicial | E11: Entregar a más tardar el 23 de mayo de 2025 | F11: Enviado el 26 de mayo de 2025, por medio de correo
A12: 9 | B12: Oficio 1244/2025 | C12: 2025-05-19 | D12: ASEJ | 2024 | Obra Pública | E12: 2026-01-23 | F12: En revisión
A13: 10 | B13: Aud. 1184 | C13: 2025-05-27 | D13: ASF | 2024 | Aud. 1184 | Solicitud inciso a) 13 Anexo 6.2 Relación Becas | CUCEA | E13: Entregar a más tardar el 05 de junio de 2025 | F13: Entregado el 30 de mayo de 2025, con el oficio número CUCEA/SAD/113/2025
A14: 11 | B14: Aud. 1226 | C14: 2025-07-01 | D14: ASF | 2023 | Aud. 1226 | Solicitud de información R-20 | Folios de nómina firmados por: Renuncia, término de período y ocupar otro puesto | E14: Entregar a más tardar el 04 de julio de 2025 | F14: Entregado el 03 de julio de 2025, con el oficio número CUCEA/SAD/155/2025
A15: 12 | B15: Sol. 01/2025 | C15: 2025-08-12 | D15: ASEJ | 2024 | UDG | Solicitud de información y documentación no. 01/2025 Punto 14 - anexo I - Constru en proceso Punto 16 anexo III - Bienes muebless y activos intangibles Punto 22 inciso b - Materiales y equipos menores | E15: Entregar a más tardar el 15 de agosto de 2025 | F15: Entregado el 15 de agosto de 2025,con el oficio número CUCEA/SAD/197/2025
A16: 13 | B16: Sol. 01/2025 | C16: 2025-08-12 | D16: ASEJ | 2024 | Adquisiciones | E16: 2025-09-01 | F16: En revisión
A17: 14 | B17: Sol. 03/2025 | C17: 2025-08-12 | D17: ASEJ | 2024 | Adquisiciones | E17: 2025-09-01 | F17: En revisión
A18: 15 | B18: Sol. 01/2025 | C18: 2025-08-14 | D18: ASEJ | 2024 | UDG | Solicitud 01/2025 | Punto 20 Servicios personales | CUCEA. I. Nombramientos III. Registro de ingreso y salida IV. Comprobantes de pago y/o recibo de nómina VII. Expedientes laborales | E18: Entregar a más tardar el 21 de agosto de 2025 | F18: Entregado el 21 de agosto de 2025, con el oficio número CUCEA/SAD/223/2025
A19: 16 | B19: Sol. 01/2025 | C19: 2025-08-14 | D19: ASEJ | 2024 | UDG | Solicitud 01/2025 | Punto 20 Servicios personales | CUCEA | E19: 2025-08-20 | F19: Entregada
A20: 17 | B20: Sol. 03/2025 | C20: 2025-09-22 | D20: ASEJ | 2024 | Bienes | E20: 2025-10-29 | F20: EN REVISION
A21: 18 | B21: Sol. 03/2025 | C21: 2025-09-23 | D21: ASEJ | 2024 | Sol. información 03/2025 Punto 20 - Serv. Prof. Personas Físicas Punto 21- Serv. Prof. Personas Morales Punto 28 - Impresiones y publicaciones Punto 29 - Pasajes aéreos Punto 31- Viáticos hospedaje en el extranjero Punto 35 - Becarios | E21: Entregar del 03 al 07 de octubre de 2025 | F21: Entregado el 06 de octubre de 2025, con el oficio número CUCEA/SAD/327/2025
A22: 19 | B22: Aud. 1184 | C22: 2025-10-24 | D22: ASF | 2024 | Aud. 1184 | Exp. Personal (CUCEA) | E22: 2025-10-28 | F22: Entregada
A23: 20 | B23: No. 4572/2025 | C23: 2025-12-09 | D23: ASEJ | 2024 | PO 001 - Conciliaciones y estados de cuenta | CUCEA, por el mes de diciembre de 2024 | E23: Entregar a más tardar el 16 de diciembre de 2025 | F23: Entregado el 17 de diciembre de 2025, con el oficio número CUCEA/SAD/547/2025
A24: 21 | B24: N° 020/2025 | C24: 2025-08-29 | D24: Auditoria Financiera de Adquisiciones de Bienes y Contratación de Servicios | E24: Entregar a más tardar el 01 de octubre de 2025 | F24: Solventada el 27 de octubre de 2025, en el oficio IV/10/2025/2844/II
A25: Fuente: Secretaría Administrativa Corte: Diciembre, 2025

Sheet T-111
A1: Logros y Retos | O1: Índice
A2: Cursos, talleres y conferencias presenciales y asistencia realizados , 2025 | K2: Tabla 111
A3: Asistencia | B3: Evento / Temática
B4: Total | C4: Cursos / Talleres | H4: Total | I4: Conferencias
C5: Ciencia y tecnología e innovación | D5: Culturales y artísticos | E5: Deportivos | F5: Sostenibilidad y medio ambiente | G5: Académicos | I5: Ciencia y tecnología e innovación | J5: Culturales y artísticos | K5: Deportivos | L5: Sostenibilidad y medio ambiente | M5: Académicos
A6: Eventos | B6: =SUM(C6:G6) -> 119 | C6: 16 | D6: 23 | E6: 1 | F6: 8 | G6: 71 | H6: =SUM(I6:M6) -> 152 | I6: 35 | J6: 9 | K6: 0 | L6: 7 | M6: 101
A7: Asistentes | B7: 8342 | C7: =SUM(C8:C11) -> 571 | D7: 4128 | E7: 200 | F7: 239 | G7: 3204 | H7: 18337 | I7: =SUM(I8:I11) -> 1754 | J7: 494 | K7: 0 | L7: 634 | M7: 15455
A8: Estudiantes | B8: 6761 | C8: 352 | D8: 3665 | E8: 200 | F8: 127 | G8: 2417 | H8: 11364 | I8: 1305 | J8: 254 | K8: 0 | L8: 534 | M8: 9271
A9: Personal académico | B9: 824 | C9: 125 | D9: 154 | E9: 0 | F9: 17 | G9: 528 | H9: 3451 | I9: 273 | J9: 68 | K9: 0 | L9: 61 | M9: 3049
A10: Personal administrativo | B10: 360 | C10: 19 | D10: 128 | E10: 0 | F10: 46 | G10: 167 | H10: 399 | I10: 69 | J10: 41 | K10: 0 | L10: 29 | M10: 260
A11: Sociedad general | B11: 397 | C11: 75 | D11: 181 | E11: 0 | F11: 49 | G11: 92 | H11: 3123 | I11: 107 | J11: 131 | K11: 0 | L11: 10 | M11: 2875
A12: Fuente: Secretaría Administrativa / Secretaría Académica / Coordinación de Extensión / Coordinación de Investigación Corte: Diciembre, 2025

Sheet T-112
A1: Logros y Retos | O1: Índice
A2: Jornadas y congresos presenciales y asistencia realizados, 2025 | M2: Tabla 112
A3: Asistencia | B3: Evento / Temática
B4: Total | C4: Jornadas | H4: Total | I4: Congresos
C5: Ciencia y tecnología e innovación | D5: Culturales y artísticos | E5: Deportivos | F5: Sostenibilidad y medio ambiente | G5: Académicos | I5: Ciencia y tecnología e innovación | J5: Culturales y artísticos | K5: Deportivos | L5: Sostenibilidad y medio ambiente | M5: Académicos
A6: Eventos | B6: =SUM(C6:G6) -> 19 | C6: 3 | D6: 5 | E6: 0 | F6: 1 | G6: 10 | H6: =SUM(I6:M6) -> 18 | I6: 4 | J6: 0 | K6: 0 | L6: 0 | M6: 14
A7: Asistentes | B7: 5421 | C7: =SUM(C8:C11) -> 1115 | D7: 790 | E7: 0 | F7: 480 | G7: 3036 | H7: 2603 | I7: =SUM(I8:I11) -> 209 | J7: 0 | K7: 0 | L7: 0 | M7: 2394
A8: Estudiantes | B8: 4072 | C8: 802 | D8: 140 | E8: 0 | F8: 387 | G8: 2743 | H8: 1556 | I8: 145 | J8: 0 | K8: 0 | L8: 0 | M8: 1411
A9: Personal docente | B9: 362 | C9: 213 | D9: 0 | E9: 0 | F9: 93 | G9: 56 | H9: 266 | I9: 41 | J9: 0 | K9: 0 | L9: 0 | M9: 225
A10: Personal administrativo | B10: 62 | C10: 30 | D10: 0 | E10: 0 | F10: 0 | G10: 32 | H10: 22 | I10: 3 | J10: 0 | K10: 0 | L10: 0 | M10: 19
A11: Sociedad general | B11: 925 | C11: 70 | D11: 650 | E11: 0 | F11: 0 | G11: 205 | H11: 759 | I11: 20 | J11: 0 | K11: 0 | L11: 0 | M11: 739
A12: Fuente: Secretaría Administrativa / Secretaría Académica / Coordinación de Extensión / Coordinación de Investigación Corte: Diciembre, 2025

Sheet T-113
A1: Logros y Retos
A2: Foros y seminarios presenciales y asistencia realizados, 2025 | M2: Tabla 113 | O2: Índice
A3: Asistencia | B3: Evento / Temática
B4: Total | C4: Foros | H4: Total | I4: Seminarios
C5: Ciencia y tecnología e innovación | D5: Culturales y artísticos | E5: Deportivos | F5: Sostenibilidad y medio ambiente | G5: Académicos | I5: Ciencia y tecnología e innovación | J5: Culturales y artísticos | K5: Deportivos | L5: Sostenibilidad y medio ambiente | M5: Académicos
A6: Eventos | B6: =SUM(C6:G6) -> 23 | C6: 5 | D6: 0 | E6: 0 | F6: 4 | G6: 14 | H6: =SUM(I6:M6) -> 19 | I6: 11 | J6: 0 | K6: 0 | L6: 0 | M6: 8
A7: Asistentes | B7: 6034 | C7: =SUM(C8:C11) -> 3360 | D7: 0 | E7: 0 | F7: 194 | G7: 2480 | H7: 1419 | I7: =SUM(I8:I11) -> 389 | J7: 0 | K7: 0 | L7: 0 | M7: 1030
A8: Estudiantes | B8: 3852 | C8: 1659 | D8: 0 | E8: 0 | F8: 90 | G8: 2103 | H8: 917 | I8: 330 | J8: 0 | K8: 0 | L8: 0 | M8: 587
A9: Personal docente | B9: 1806 | C9: 1639 | D9: 0 | E9: 0 | F9: 31 | G9: 136 | H9: 365 | I9: 49 | J9: 0 | K9: 0 | L9: 0 | M9: 316
A10: Personal administrativo | B10: 110 | C10: 20 | D10: 0 | E10: 0 | F10: 26 | G10: 64 | H10: 58 | I10: 10 | J10: 0 | K10: 0 | L10: 0 | M10: 48
A11: Sociedad general | B11: 266 | C11: 42 | D11: 0 | E11: 0 | F11: 47 | G11: 177 | H11: 79 | I11: 0 | J11: 0 | K11: 0 | L11: 0 | M11: 79
A12: Fuente: Secretaría Administrativa / Secretaría Académica / Coordinación de Extensión / Coordinación de Investigación Corte: Diciembre, 2025

Sheet T-114
A1: Logros y Retos | O1: Índice
A2: Simposios y coloquios presenciales y asistencia realizados, 2025 | K2: Tabla 114
A3: Asistencia | B3: Evento / Temática
B4: Total | C4: Simposios | H4: Total | I4: Coloquios
C5: Ciencia y tecnología e innovación | D5: Culturales y artísticos | E5: Deportivos | F5: Sostenibilidad y medio ambiente | G5: Académicos | I5: Ciencia y tecnología e innovación | J5: Culturales y artísticos | K5: Deportivos | L5: Sostenibilidad y medio ambiente | M5: Académicos
A6: Eventos | B6: =SUM(C6:G6) -> 3 | C6: 0 | D6: 2 | E6: 0 | F6: 0 | G6: 1 | H6: =SUM(I6:M6) -> 9 | I6: 1 | J6: 3 | K6: 0 | L6: 1 | M6: 4
A7: Asistentes | B7: 113 | C7: =SUM(C8:C11) -> 0 | D7: 68 | E7: 0 | F7: 0 | G7: 45 | H7: 512 | I7: =SUM(I8:I11) -> 174 | J7: 158 | K7: 0 | L7: 8 | M7: 172
A8: Estudiantes | B8: 63 | C8: 0 | D8: 63 | E8: 0 | F8: 0 | G8: 0 | H8: 352 | I8: 160 | J8: 125 | K8: 0 | L8: 0 | M8: 67
A9: Personal académico | B9: 50 | C9: 0 | D9: 5 | E9: 0 | F9: 0 | G9: 45 | H9: 106 | I9: 12 | J9: 15 | K9: 0 | L9: 8 | M9: 71
A10: Personal administrativo | B10: 0 | C10: 0 | D10: 0 | E10: 0 | F10: 0 | G10: 0 | H10: 16 | I10: 2 | J10: 0 | K10: 0 | L10: 0 | M10: 14
A11: Sociedad general | B11: 0 | C11: 0 | D11: 0 | E11: 0 | F11: 0 | G11: 0 | H11: 38 | I11: 0 | J11: 18 | K11: 0 | L11: 0 | M11: 20
A12: Fuente: Secretaría Administrativa / Secretaría Académica / Coordinación de Extensión / Coordinación de Investigación Corte: Diciembre, 2025

Sheet T-115
A1: Logros y Retos | N1: Índice
A2: Festivales, exhibiciones y exposiciones presenciales y asistencia realizados, 2025 | M2: Tabla 115
A3: Asistencia | B3: Evento / Temática
B4: Total | C4: Festivales | H4: Total | I4: Exposiciones / Exhibiciones
C5: Ciencia y tecnología e innovación | D5: Culturales y artísticos | E5: Deportivos | F5: Sostenibilidad y medio ambiente | G5: Académicos | I5: Ciencia y tecnología e innovación | J5: Culturales y artísticos | K5: Deportivos | L5: Sostenibilidad y medio ambiente | M5: Académicos
A6: Eventos | B6: =SUM(C6:G6) -> 22 | C6: 8 | D6: 12 | E6: 0 | F6: 0 | G6: 2 | H6: =SUM(I6:M6) -> 37 | I6: 0 | J6: 34 | K6: 0 | L6: 1 | M6: 2
A7: Asistentes | B7: 4065 | C7: =SUM(C8:C11) -> 94 | D7: 3769 | E7: 0 | F7: 0 | G7: 202 | H7: 4249 | I7: =SUM(I8:I11) -> 0 | J7: 3892 | K7: 0 | L7: 7 | M7: 350
A8: Estudiantes | B8: 2606 | C8: 0 | D8: 2606 | E8: 0 | F8: 0 | G8: 0 | H8: 1796 | I8: 0 | J8: 1650 | K8: 0 | L8: 0 | M8: 146
A9: Personal docente | B9: 407 | C9: 94 | D9: 311 | E9: 0 | F9: 0 | G9: 2 | H9: 175 | I9: 0 | J9: 72 | K9: 0 | L9: 7 | M9: 96
A10: Personal administrativo | B10: 136 | C10: 0 | D10: 136 | E10: 0 | F10: 0 | G10: 0 | H10: 36 | I10: 0 | J10: 36 | K10: 0 | L10: 0 | M10: 0
A11: Sociedad general | B11: 916 | C11: 0 | D11: 716 | E11: 0 | F11: 0 | G11: 200 | H11: 2242 | I11: 0 | J11: 2134 | K11: 0 | L11: 0 | M11: 108
A12: Fuente: Secretaría Administrativa / Secretaría Académica / Coordinación de Extensión / Coordinación de Investigación Corte: Diciembre, 2025

Sheet T-116
A1: Logros y Retos | H1: Índice
A2: Premios y reconocimientos, 2025 | F2: Tabla 116
A3: Entidad universitaria / Nombre de participante | B3: Número de participantes | C3: Perfil | D3: Disciplina | E3: Descripción | F3: Instancia emisora
A4: Ruben Antonio Chavarín Rodríguez | B4: 1 | C4: Personal académico | D4: Sociales y Humanidades | E4: Obtención segundo lugar en el concurso Latinoamericano MootComp de competencia económica. El equipo de la UDG llegó a la semifinal en el evento llevado a cabo en el CIDE de la ciudad de México. | F4: OLIMPIADAS MootComp
A5: Alumnos de pregrado | B5: 3 | C5: Estudiante | D5: Sociales y Humanidades | E5: Obtención segundo lugar en el concurso Latinoamericano MootComp de competencia económica. El equipo de la UDG llegó a la semifinal en el evento llevado a cabo en el CIDE de la ciudad de México. | F5: OLIMPIADAS MootComp
A6: Alejandro Isidoro Canales Cerón | B6: 1 | C6: Personal académico | D6: Sociales y Humanidades | E6: Reconocimiento de profesor emérito por el SECIHTI | F6: SECIHTI
A7: Salvador Peniche Camps | B7: 1 | C7: Personal académico | D7: Sostenibilidad y Medio Ambiente | E7: Mesas de trabajo de la Reunión con el sector académico y organizaciones de la sociedad civil para la elaboración del Programa Nacional de Restauración 2024-2030 | F7: Dirección General de Agroecología y Patrimonio Biocultural, Secretaría de Medio Ambiente y Recursos Naturales
A8: Javier Gonzalo Rodríguez Ruiz | B8: 1 | C8: Personal académico | D8: Sociales y Humanidades | E8: Medalla al Economista del año 2024 | F8: Colegio de Economistas Jaliscienses A. C.
A9: Ramona Esmeralda Velázquez García | B9: 1 | C9: Personal académico | D9: Sociales y Humanidades | E9: Reconocimiento a la trayectoria laboral en la comunidad universitaria. | F9: Stau de G / Delegación División de Economía y Sociedad
A10: Roberto Ramírez Espitia | B10: 1 | C10: Personal académico | D10: Sostenibilidad y Medio Ambiente | E10: Participación en el primer congreso internacional interdisciplinario de ciencias biológicas de Panamá | F10: Colegio de Biólogos de Panamá
A11: Teresa Nohemi Cardenas A. | B11: 1 | C11: Personal académico | D11: Educación | E11: Reconocimientos por ser un valioso y destacado egresado de la Licenciatura en Matemáticas. | F11: CUCEI - Universidad de Guadalajara
A12: Andrea Jimena Anceno Robles Fernanda Guadalupe García Castañeda Kimberly Atziri Torres Ocegueda Fernanda Jacqueline Delgado Orendain Jessy Itzel Rubio Avila | B12: 5 | C12: Estudiante | D12: Deportiva | E12: segundo lugar y medalla de plata durante el Campeonato Nacional Universitario ANUIES 2025 en la categoría de Rugby Femenil | F12: ANUIES
A13: Dra. Susana Gabriela Muñiz Moreno | B13: 1 | C13: Personal administrativo | D13: Sociales y Humanidades | E13: Reconocimiento al Affidamento Jalisco 2025 Fue reconocida en la categoría “Educación Ciudadana Transformadora con Enfoque Feminista e Inclusivo | F13: Instituto Electoral y de Participación Ciudadana del Estado de Jalisco.
A14: Dr. Edgar Alejandro Ruvalcaba Gómez | B14: 1 | C14: Personal académico | D14: Ciencia Tecnología e Innovación | E14: Premio Estatal de Innovación, Ciencia y Tecnología 2025 Categoría: CIENCIA "Inteligencia artificial y apertura en el sector público de jalisco" | F14: Secretaría de Innovación, Ciencia y Tecnología (SICyT)
A15: Dra. Karla Haydeé Ortiz Palafox | B15: 1 | C15: Personal académico | D15: Sostenibilidad y Medio Ambiente | E15: Primer Premio #HilandoCiencia 2025 de la Organización de Estados Iberoamericanos (OEI) | F15: Organización de Estados Iberoamericanos (OEI)
A16: Dr. Enrique Cabrero Mendoza | B16: 1 | C16: Personal académico | D16: Docencia | E16: Premio Iberoamericano Alexis de Tocqueville | F16: Unión Iberoamericana de Municipalistas
A17: Lourdes Nayeli Quevedo Huerta | B17: 1 | C17: Personal administrativo | D17: Docencia | E17: Representante de los Centros Clacso en México. | F17: Centros Clacso
A18: Maestría en Administración de Empresas (MBA) | B18: 1 | C18: Institución | D18: Educación | E18: El MBA (la Maestría en Administración de Negocios), del Centro Universitario de Ciencias Económico Administrativas (CUCEA), destaca en el ranking de las mejores escuelas de negocios en América Latina (AL) de la revista internacional AméricaEconomía, esto al posicionarse en el número 1 nacional y número 2 en AL en el indicador de Retorno de inversión. | F18: Ranking de las mejores escuelas de negocios en América Latina (AL) de la revista internacional AméricaEconomía
A19: Maestría en Ciencias de los datos Maestría en Economía Maestría en Educación Superior Internacional Maestría en Estudios de las Violencias de Género Maestría en Estudio sobre Juventudes Maestría en Finanzas Maestría en Gestión de la Seguridad y Salud en el Trabajo Maestría en Gestión y Políticas de la Educación Superior Maestría en Gobierno Electrónico Maestría en Negocios Internacionales Maestría en Negocios y Estudios Económicos Maestría en Políticas Públicas Maestría en Resolución de Conflictos Maestría en Tecnologías de Información Maestría en Tecnologías para el Aprendizaje Doctorado en Estudios Fiscales Doctorado en Gestión de la Educación Superior Doctorado en Gestión de la Paz y Prevención de las Violencias Doctorado en innovación y Sustentabilidad en los Negocios Doctorado en Políticas Públicas y Desarrollo | B19: 20 | C19: Institución | D19: Educación | E19: Resultados de la evaluación del Sistema Nacional de Posgrados 2025 En Posgrados CUCEA celebramos los resultados obtenidos en la evaluación del Sistema Nacional de Posgrados (SNP) 2025, convocada por la Secretaría de Ciencia, Humanidades, Tecnología e Innovación (SECIHTI). De los programas evaluados en Posgrados CUCEA: Del total de programas evaluados, el 90 % acreditó satisfactoriamente la evaluación. Estos resultados reflejan el compromiso de nuestra comunidad académica con la calidad, la investigación y la mejora continua de los programas. Reconocemos y valoramos el esfuerzo del personal administrativo, estudiantes, profesores y coordinadores de los programas de posgrado. | F19: Secretaría de Ciencia, Humanidades, Tecnología e Innovación (SECIHTI).
A20: González Tovar María del Carmen Balvaneda Díaz Sonia Lizbeth García Villalobos Christian Jovanni Guitron García Janette Vanesa Mendoza Sánchez Marco Antonio Orozco Núñez Alexa Patricia Ponce Virgen Jesús Jair Printzen Torres Miguel Alejandro Salazar Barboza Sergio Bladimir Romero Plascencia Fernando Díaz Rodríguez Diego Alberto González de la Torre Miguel Magdaleno Herrera Daniela Guadalupe Rodríguez Bermúdez Romeo Alonzo Estrada Miguel Alvarado Alvarado Hugo Fernando Álvarez Hernández Luis Francisco Calderón Juárez Martha Estefanía Castillo Saldívar Tania Josselyn Castro Robles Kimberly Janely Cervantes Castro Víctor Francisco Domínguez López Lorena Flores Becerra María de los Ángeles Gallegos Valencia Teresa Esmeralda García Cham Mauricio González Cejudo Gabriela Patricia González Plascencia Noemí Jaqueline Hernández García Diego Madrigal Valles Sergio Ernesto Mata López Eduardo Alejandro Medina Álvarez Johan Ricardo Mendoza Ramírez José Antonio Moreno Velasco Jesús Saulo Palafox Ruiz Vanessa Kristal Parra Velasco Marisol del Carmen Pérez Cortés Juan Pablo Pinedo Robles Carlos Gabriel Ramírez Alatorre Itzel Anahí Ramos Robles Jonathan Rigoberto Rangel Barragán Rodolfo Javier Rivera Guillén Karla Paola Romero Cerda Brandon Omar Romero Cornejo Fernando Jhosua Alcalá Ramírez Diego Armando Coronado Hernández Felipe de Jesús Maraveles Núñez Rodrigo de Jesús Ontiveros Ríos Omar Castro Villafaña Emmanuel Corona Abundis Diego Alejandro Cuadro Moreno Tomás Elías Díaz Arellano Alonso Maximiliano Fregoso Rizo Carlos Hernández Manrique Laura Adriana Hernández Rosales Luis Jorge Jaras Ibarra Citlalli Guadalupe Jáuregui Salazar Andrea Martínez González Axel Ulises Martínez Leal Blanca Ivonne Medeles Sánchez Melany Stephanie Piña Palos Naomi Guadalupe Prieto Hernández Aime Reyes Aceves James Ryan Reyes García Ramón Rivera Murillo Karla Paola Rodríguez Hernández Oscar Javier Ruiz Suárez Asael Sebastián Sánchez Muñoz Esdras Alexandro | B20: 67 | C20: Egresado | D20: Educación | E20: Premio CENEVAL al Desempeño de Excelencia EGEL | F20: Centro Nacional de Evaluación para la Educación Superior, A.C. (CENEVAL)
A21: Nancy García Vázquez | B21: 1 | C21: Personal académico | D21: Sociales y Humanidades | E21: Presea Hermila Galindo | F21: Congreso del Estado de Jalisco
A22: Luis Fernando Cervantes Portillo Denisse Isabel Ornelas Trejo Karen Judith Moran Arceo | B22: 1 | C22: Estudiante | D22: Sociales y Humanidades | E22: MOOT COMP | F22: CIDE
A23: Dr. César Omar Mora Pérez | B23: 2 | C23: Personal académico | D23: Sociales y Humanidades | E23: Tercer Lugar del Concurso de Ensayo de la Contraloría Social | F23: Contraloría del Estado de Jalisco
A24: C. Monserrat Viridiana Mendoza Cisneros | B24: 2 | C24: Estudiante | D24: Sociales y Humanidades | E24: Tercer Lugar del Concurso de Ensayo de la Contraloría Social | F24: Contraloría del Estado de Jalisco
A25: Dra. Karla Haydee Ortiz Palafox | B25: 1 | C25: Personal académico | D25: Sostenibilidad y Medio Ambiente | E25: Primer Premio de #HilandoCiencia 2025 | F25: Organización de Estados Iberoamericanos (OEI)
A26: Pilar Morales Valdés | B26: 1 | C26: Personal académico | D26: Sociales y Humanidades | E26: Premio Paco Cossío a la mejor investigación por una joven investigadora | F26: Academia Europea de Economía y Dirección de Empresa (AEDEM)
A27: Alfredo Aguilar Ruiz | B27: 1 | C27: Personal académico | D27: Sociales y Humanidades | E27: Tercer Lugar del XL Premio Nacional de Tesis del Doctorado | F27: Asociación Nacional de Facultades y Escuelas de Contaduría y Administración (ANFECA)
A28: Sergio Roberto Dávalos García | B28: 1 | C28: Personal académico | D28: Ciencia Tecnología e Innovación | E28: Premio por haber dirigido el 1o. lugar a la mejor tesis de doctorado | F28: Colegio de Profesionistas Especialistas en Investigación (COPEIN)
A29: Licenciatura en Turismo | B29: 1 | C29: Institución | D29: Educación | E29: Certificación | F29: UNWTO TEDQUAL
A30: Licenciatura en Gestión de Negocios Gastronómicos | B30: 1 | C30: Institución | D30: Educación | E30: Acreditación | F30: CONAET
A31: Cristian Omar Alcantar López | B31: 1 | C31: Personal académico | D31: Sociales y Humanidades | E31: Por su destacada participación como jurista y por el profundo conocimiento y experiencia demostrada en ámbito legal tributario, así como por su contribución al desarrollo del derecho tributario y en observancia a la defensa de los derechos de los contribuyentes. | F31: Barra Nacional de Abogados Fiscalistas de México
A32: Antonio Sánchez Sierra | B32: 1 | C32: Personal académico | D32: Sociales y Humanidades | E32: Por su destacada participación como jurista y por el profundo conocimiento y experiencia demostrada en ámbito legal tributario, así como por su contribución al desarrollo del derecho tributario y en observancia a la defensa de los derechos de los contribuyentes. | F32: Barra Nacional de Abogados Fiscalistas de México
A33: Cristian Omar Alcantar López | B33: 1 | C33: Personal académico | D33: Docencia | E33: Reconocimiento por su ingreso al Sistema Nacional de Investigadores nivel 1 | F33: Consejo Nacional de Humanidades, Ciencias y Tecnologías
A34: Joaquín Sánchez Flores | B34: 1 | C34: Personal académico | D34: Educación | E34: reconocimiento a la calidad académica en la docencia por parte de la ANFECA | F34: La asamblea nacional de facultad y escuelas de Contaduría y administración ANFECA
A35: Daniel Olvera Palomera Daniela Sinai Medrano Valenzuela Hugo Guadalupe Trujillo Jose Roberto Alfaro Rivera, Pablo Bravo Valeria Cardenas Marroquin, Juan Pablo Carlos Ernesto Vargas Lazcano, Jazmin Madrigal David Antonio Valerio Villasana, Vanessa Paola Michelle Duran Palma, Nallely Jazmin | B35: 13 | C35: Estudiante | D35: Educación | E35: reconocimiento como triunfadores del CME trading Challenge | F35: Chicago mercantile exchange (CME)
A36: Dra. Sandra Guillermina Paredes Baltazar | B36: 1 | C36: Personal académico | D36: Sociales y Humanidades | E36: Galardón Nacional al Mediador y Mediadora “Dr. Jorge Pesqueira Leal” 2025 | F36: Centros y Prestadores de Justicia Alternativa de México A.C. (CEPREJAM)
A37: Fuente: División de Contaduría / División de Economía y Sociedad / División de Gestión Empresarial / Departamentos Corte: Diciembre, 2025
